{"text_format":"1","workbook":"xlsx","n_sheets":3,"sheets":["input","calculation","Musterwerte Validierung Info"],"not_rendered":{"charts":0,"images":8,"macros":1,"external_links":0,"defined_names":2,"comments":0,"pivot_tables":0},"unopened":[],"bounds":{"document_bytes":16777216,"sheet_cells":100000,"rows_first":2000,"rows_last":500,"rows_between":2000,"halvings":0,"cell_chars":16384,"cell_head_chars":4096},"cells_cut":0,"cells_raw":0,"read":"whole","date_system":"1900"}

{"sheet":"input","index":0,"n_rows":57,"n_cols":26,"rows_kept":57,"cut":false,"hidden":false,"merged":[[32,13,32,16],[25,17,26,17],[25,18,26,18],[1,8,3,16],[10,17,10,18],[11,17,11,18],[27,13,27,16],[28,13,28,16],[29,13,29,16],[30,13,30,16],[31,13,31,16],[8,24,8,25],[9,24,9,25],[10,24,10,25],[5,1,6,1],[5,2,5,7],[5,8,6,8],[5,9,6,9],[5,10,6,10],[17,24,17,25],[18,24,18,25],[17,17,17,18],[18,17,18,18],[1,1,3,7],[13,17,13,18],[14,17,14,18],[15,17,15,18],[16,17,16,18],[1,17,3,25],[12,20,12,25],[16,24,16,25],[7,17,7,18],[8,17,8,18],[9,17,9,18],[7,24,7,25]]}
[]
[null,null,null,null,null,null,null,null,"Messsystemanalyse Verfahren 7\nattributive Merkmale (Bosch Heft Nr. 10 / AIAG)"]
[]
[]
[]
[null,"Teil","Prüfergebnisse",null,null,null,null,null,"Refe-renz"," Ref. Wert","Code"]
[null,null,"A-1","A-2","A-3","A-4","A-5","A-6",null,null,null,null,null,"Merkmal",null,null,null,null,null,null,"Messmittel"]
[null,1,1,1,1,1,1,1,0,null,{"$f":"IF(C8<>\"\",IF(SUM(C8:I8)=COUNT(C8:I8),\"+\",IF(SUM(C8:I8)=0,\"-\",\"x\")),\"\")","v":"x"},null,null,"Bezeichnung",null,null,null,null,null,null,"Name"]
[null,{"$f":"B8+1","v":2},1,1,1,1,1,1,1,null,"+",null,null,"Merkmalsnummer",null,null,null,null,null,null,"Nummer"]
[null,3,0,0,0,0,0,0,0,null,"-",null,null,"Masseinheit",null,null,null,null,null,null,"Standort"]
[null,4,0,0,0,0,0,0,0,null,"-",null,null,"Zeichnungsnummer",null,null,null,null,null,null,"Kalibrierschein"]
[null,5,0,0,0,0,0,0,0,null,"-",null,null,"Änderungsstand"]
[null,6,1,1,0,1,1,0,1,null,"x",null,null,null,null,null,null,null,null,null,"Bewertung Ergebnis / Fleiss Kappa"]
[null,7,1,1,1,1,1,1,1,null,"+",null,null,"Text1",null,null,null,null,null,null,"Ergebnis <=",null,null,0.7,0.8,1]
[null,8,1,1,1,1,1,1,1,null,"+",null,null,"Text1",null,null,null,null,null,null,"Fleiss Kappa <=",null,null,0.7,0.8,1]
[null,9,0,0,0,0,0,0,0,null,"-",null,null,"Text1",null,null,null,null,null,null,"Spezifikation"]
[null,10,1,1,1,1,1,1,1,null,"+",null,null,"Prüfdatum",null,null,null,null,null,null,"Untere Spez.-Grenze"]
[null,11,1,1,1,1,1,1,1,null,"+",null,null,"Prüfung durch ",null,null,null,null,null,null,"Obere Spez.-Grenze"]
[null,12,0,0,0,0,0,0,0,null,"-",null,null,"Prüfung durch Name",null,null,null,null,null,null,"Auflösung"]
[null,13,1,1,1,1,1,1,1,null,"+"]
[null,14,1,1,0,1,1,1,1,null,"x",null,null,"Anzahl Durchgänge",null,null,null,{"$f":"IF(C8<>\"\",COUNT(C8:H8),\"\")","v":6}]
[null,15,1,1,1,1,1,1,1,null,"+",null,null,"Anzahl Teile",null,null,null,{"$f":"IF(C8<>\"\",COUNT(C8:C57),\"\")","v":36}]
[null,16,1,1,1,1,1,1,1,null,"+"]
[null,17,1,1,1,1,1,1,1,null,"+"]
[null,18,1,1,1,1,1,1,1,null,"+"]
[null,19,1,1,1,1,1,1,1,null,"+",null,null,null,null,null,null,"Innerhalb Prüfer","Prüfer vs. Referenz"]
[null,20,1,1,1,1,1,1,1,null,"+"]
[null,21,1,1,0,1,0,1,1,null,"x",null,null,"Geprüft gesamt",null,null,null,{"$f":"calculation!V28","v":36},{"$f":"calculation!V38","v":36}]
[null,22,0,0,1,0,1,0,0,null,"x",null,null,"Anzahl richtig",null,null,null,{"$f":"calculation!V29","v":28},{"$f":"calculation!V39","v":27}]
[null,23,1,1,1,1,1,1,1,null,"+",null,null,"95% obere CI",null,null,null,{"$f":"calculation!V30","v":0.89884946965508727},{"$f":"calculation!V43","v":0.87879670587616476}]
[null,24,1,1,1,1,1,1,1,null,"+",null,null,"Ergebnis",null,null,null,{"$f":"calculation!V31","v":0.77777777777777779},{"$f":"calculation!V44","v":0.75}]
[null,25,0,0,0,0,0,0,0,null,"-",null,null,"95% untere CI",null,null,null,{"$f":"calculation!V32","v":0.60848235084261848},{"$f":"calculation!V45","v":0.5779704154218559}]
[null,26,0,1,0,0,0,0,0,null,"x",null,null,"Fleiss Kappa",null,null,null,{"$f":"calculation!V33","v":0.7599999999999999},{"$f":"calculation!V46","v":0.80021266031496208}]
[null,27,1,1,1,1,1,1,1,null,"+"]
[null,28,1,1,1,1,1,1,1,null,"+"]
[null,29,1,1,1,1,1,1,1,null,"+"]
[null,30,0,0,0,0,0,1,0,null,"x"]
[null,31,1,1,1,1,1,1,1,null,"+"]
[null,32,1,1,1,1,1,1,1,null,"+"]
[null,33,1,1,1,1,1,1,1,null,{"$f":"IF(C40<>\"\",IF(SUM(C40:I40)=COUNT(C40:I40),\"+\",IF(SUM(C40:I40)=0,\"-\",\"x\")),\"\")","v":"+"}]
[null,34,0,0,1,0,0,1,0,null,"x"]
[null,35,1,1,1,1,1,1,1,null,"+"]
[null,36,1,1,0,1,1,1,1,null,"x"]
[null,37,null,null,null,null,null,null,null,null,""]
[null,38,null,null,null,null,null,null,null,null,""]
[null,39,null,null,null,null,null,null,null,null,""]
[null,40,null,null,null,null,null,null,null,null,""]
[null,{"$f":"B47+1","v":41},null,null,null,null,null,null,null,null,"",null,"Anmerkungen:"]
[null,{"$f":"B48+1","v":42},null,null,null,null,null,null,null,null,"",null,"Mindestens 3 Prüfer und 3 Durchgänge, ansonsten falsche Ergebnisse"]
[null,43,null,null,null,null,null,null,null,null,"",null,"Bosch ermittelt aus allen Kappa Werten den Minimalwert und bewertet anhand dessen"]
[null,44,null,null,null,null,null,null,null,null,"",null,"das Messsystem"]
[null,45,null,null,null,null,null,null,null,null,""]
[null,46,null,null,null,null,null,null,null,null,""]
[null,47,null,null,null,null,null,null,null,null,""]
[null,48,null,null,null,null,null,null,null,null,""]
[null,49,null,null,null,null,null,null,null,null,""]
[null,50,null,null,null,null,null,null,null,null,""]

{"sheet":"calculation","index":1,"n_rows":456,"n_cols":95,"rows_kept":456,"cut":false,"hidden":true,"merged":[[1,1,3,7],[1,8,3,16],[1,17,3,24],[5,1,6,1],[5,2,5,7],[5,8,6,8],[5,9,6,9],[5,10,6,10],[24,12,24,23],[7,17,7,18],[7,24,7,25],[8,17,8,18],[8,24,8,25],[9,17,9,18],[9,24,9,25],[10,17,10,18],[10,24,10,25],[11,17,11,18],[15,24,15,25],[16,24,16,25],[25,15,25,20],[25,21,25,23],[26,15,26,16],[26,17,26,18],[26,19,26,20],[26,21,26,23],[27,15,27,16],[27,17,27,18],[27,19,27,20],[27,21,27,23],[28,15,28,16],[28,17,28,18],[28,19,28,20],[28,21,28,23],[29,15,29,16],[29,17,29,18],[29,19,29,20],[29,21,29,23],[30,15,30,16],[30,17,30,18],[30,19,30,20],[30,21,30,23],[32,12,32,14],[32,15,32,16],[32,17,32,18],[32,19,32,20],[32,21,32,23],[31,12,31,14],[31,15,31,16],[31,17,31,18],[31,19,31,20],[31,21,31,23],[34,12,34,23],[35,15,35,20],[35,21,36,23],[36,15,36,16],[36,17,36,18],[36,19,36,20],[43,15,43,16],[43,21,43,23],[37,15,37,16],[37,17,37,18],[37,19,37,20],[37,21,37,23],[38,15,38,16],[38,21,38,23],[39,15,39,16],[40,15,40,16],[41,15,41,16],[42,15,42,16],[42,21,42,23],[44,15,44,16],[44,17,44,18],[44,19,44,20],[44,21,44,23],[45,12,45,14],[45,15,45,16],[45,17,45,18],[45,19,45,20],[45,21,45,22]]}
[]
[null,null,null,null,null,null,null,null,"Messsystemanalyse Verfahren 7\nattributive Merkmale (Bosch Heft Nr. 10 / AIAG)"]
[null,null,null,null,null,null,null,null,null,null,null,null,null,null,null,null,null,null,null,null,null,null,null,null,null,null,null,null,null,{"$f":"TODAY()","v":"2023-11-21"},null,"2023-11-17",{"$f":"IF(AD3=AF3,1,0)","v":0},null,"2023-11-21",null,null,null,null,null,null,null,null,null,null,null,null,null,null,"A*B*C"]
[null,null,null,null,null,null,null,null,null,null,null,null,null,null,null,null,null,null,null,null,null,null,null,null,null,null,null,null,null,null,null,null,null,null,null,null,null,null,null,null,null,null,null,null,null,"geändert",null,null,null,"nik",null,null,"nik*(Nik-1)"]
[null,null,null,null,null,null,null,null,null,null,null,null,null,null,null,null,null,null,null,null,null,null,null,null,null,null,null,null,null,"3 Durchl",null,"mix","2 Durchl.",null,null,null,null,null,null,null,null,null,null,null,null,null,null,null,null,"k=1","K=2",null,"k=1","K=2",null,null,null,null,null,null,null,null,null,null,null,null,null,null,null,null,null,null,null,null,null,null,null,null,null,null,null,"Minitab Tabelle"]
[null,"Part","Appraiser-Evaluation",null,null,null,null,null,"Stan-dard","Standard Value","Code",null,null,null,null,null,null,null,null,null,null,null,null,null,null,null,null,null,null,"A",null,null,null,null,null,null,null,"B",null,null,null,"C",null,null,null,"All",null,null,null,0,1,null,0,1,null,null,null,null,"A*A",null,"B*B",null,null,"C*C",null,null,null,null,"A1-Ref","A2-Ref","A3-Ref","B1-Ref","B2-Ref","B3-Ref","C1-Ref","C2-Ref","C3-Ref",null,null,null,null,"Reihenfolge","Prüfer","Versuch","Prüfeinheit","Ergebnis","Referenz",null,null,"Reihenfolge","Prüfer","Versuch","Prüfeinheit","Ergebnis","Referenz"]
[null,null,"A-1","A-2","A-3","B-1","B-2","B-3",null,null,null,null,null,null,null,null,null,null,null,null,null,null,null,null,null,null,null,null,null,{"$f":"IF(C8<>\"\",IF(AND(C8=D8,D8=E8),1,0),\"\")","v":1},{"$f":"IF(C8<>\"\",IF(AND(C8=D8,D8=E8,E8=I8),1,0),\"\")","v":0},{"$f":"IF(AD7<>\"\",IF(AD7<>AE7,$I8,\"\"),\"\")","v":0},null,null,{"$f":"IF(AG7<>\"\",IF(AG7<>AH7,$I8,\"\"),\"\")","v":""},null,null,{"$f":"IF(F8<>\"\",IF(AND(F8=G8,F8=H8),1,0),\"\")","v":1},{"$f":"IF(F8<>\"\",IF(AND(F8=G8,G8=H8,H8=I8),1,0),\"\")","v":0},{"$f":"IF(AL7<>\"\",IF(AL7<>AM7,I8,\"\"),\"\")","v":0},null,{"$f":"IF(#REF!<>\"\",IF(AND(#REF!=#REF!,#REF!=#REF!),1,0),\"\")","v":{"$error":"#REF!"}},{"$f":"IF(#REF!<>\"\",IF(AND(#REF!=#REF!,#REF!=#REF!,#REF!=I8),1,0),\"\")","v":{"$error":"#REF!"}},{"$f":"IF(AP7<>\"\",IF(AP7<>AQ7,I8,\"\"),\"\")","v":{"$error":"#REF!"}},null,{"$f":"IF(C8=\"\",\"\",IF(OR(SUM(C8:H8)=6,SUM(C8:H8)=0),1,0))","v":1},{"$f":"IF(C8=\"\",\"\",IF(AND(SUM(C8:I8)>0,SUM(C8:I8)<7),0,1))","v":0},null,null,null,null,null,null,null,null,null,null,null,null,null,null,null,null,null,null,null,null,null,null,null,null,null,null,null,null,null,null,null,null,null,null,1,"A",1,1,{"$f":"C8","v":1},{"$f":"I8","v":0},null,null,1,"A",1,1,1,0]
[null,1,{"$f":"IF(input!C8=\"\",\"\",input!C8)","v":1},{"$f":"IF(input!D8=\"\",\"\",input!D8)","v":1},{"$f":"IF(input!E8=\"\",\"\",input!E8)","v":1},{"$f":"IF(input!F8=\"\",\"\",input!F8)","v":1},{"$f":"IF(input!G8=\"\",\"\",input!G8)","v":1},{"$f":"IF(input!H8=\"\",\"\",input!H8)","v":1},{"$f":"IF(input!I8=\"\",\"\",input!I8)","v":0},null,{"$f":"IF(C8<>\"\",IF(SUM(C8:H8)=COUNT(C8:H8),\"+\",IF(SUM(C8:H8)=0,\"-\",\"x\")),\"\")","v":"+"},null,null,"Reference Value",null,null,null,null,null,null,"Date Preformed",null,null,null,null,null,null,null,null,1,1,{"$f":"IF(AD8<>\"\",IF(AD8<>AE8,$I9,\"\"),\"\")","v":""},null,null,{"$f":"IF(AG8<>\"\",IF(AG8<>AH8,$I9,\"\"),\"\")","v":""},null,null,1,1,"",null,{"$f":"IF(#REF!<>\"\",IF(AND(#REF!=#REF!,#REF!=#REF!),1,0),\"\")","v":{"$error":"#REF!"}},{"$f":"IF(#REF!<>\"\",IF(AND(#REF!=#REF!,#REF!=#REF!,#REF!=I9),1,0),\"\")","v":{"$error":"#REF!"}},{"$error":"#REF!"},null,1,1,null,null,{"$f":"COUNTIF(C8:H8,0)","v":0},{"$f":"COUNTIF(C8:H8,1)","v":6},null,{"$f":"AX8*(AX8-1)","v":0},{"$f":"AY8*(AY8-1)","v":30},null,{"$f":"IF(C8=\"\",\"\",IF(C8=D8,2,0))","v":2},{"$f":"IF(E8=\"\",\"\",IF(C8=E8,2,0))","v":2},{"$f":"IF(D8=\"\",\"\",IF(D8=E8,2,0))","v":2},{"$f":"SUM(BD8:BF8)","v":6},{"$f":"IF(G8=\"\",\"\",IF(F8=G8,2,0))","v":2},{"$f":"IF(H8=\"\",\"\",IF(F8=H8,2,0))","v":2},{"$f":"IF(H8=\"\",\"\",IF(G8=H8,2,0))","v":2},{"$f":"SUM(BH8:BJ8)","v":6},{"$f":"IF(#REF!=\"\",\"\",IF(#REF!=#REF!,2,0))","v":{"$error":"#REF!"}},{"$f":"IF(#REF!=\"\",\"\",IF(#REF!=#REF!,2,0))","v":{"$error":"#REF!"}},{"$f":"IF(#REF!=\"\",\"\",IF(#REF!=#REF!,2,0))","v":{"$error":"#REF!"}},{"$f":"SUM(BL8:BN8)","v":{"$error":"#REF!"}},{"$f":"BA8+BB8","v":30},{"$f":"IF(C8=\"\",\"\",IF(C8=$I8,2,0))","v":0},{"$f":"IF(D8=\"\",\"\",IF(D8=$I8,2,0))","v":0},{"$f":"IF(E8=\"\",\"\",IF(E8=$I8,2,0))","v":0},{"$f":"IF(F8=\"\",\"\",IF(F8=$I8,2,0))","v":0},{"$f":"IF(G8=\"\",\"\",IF(G8=$I8,2,0))","v":0},{"$f":"IF(H8=\"\",\"\",IF(H8=$I8,2,0))","v":0},{"$f":"IF(#REF!=\"\",\"\",IF(#REF!=$I8,2,0))","v":{"$error":"#REF!"}},{"$f":"IF(#REF!=\"\",\"\",IF(#REF!=$I8,2,0))","v":{"$error":"#REF!"}},{"$f":"IF(#REF!=\"\",\"\",IF(#REF!=$I8,2,0))","v":{"$error":"#REF!"}},null,null,null,null,2,"A",1,2,1,{"$f":"I9","v":1},null,null,2,"A",1,2,1,1]
[null,{"$f":"B8+1","v":2},{"$f":"IF(input!C9=\"\",\"\",input!C9)","v":1},{"$f":"IF(input!D9=\"\",\"\",input!D9)","v":1},{"$f":"IF(input!E9=\"\",\"\",input!E9)","v":1},{"$f":"IF(input!F9=\"\",\"\",input!F9)","v":1},{"$f":"IF(input!G9=\"\",\"\",input!G9)","v":1},{"$f":"IF(input!H9=\"\",\"\",input!H9)","v":1},{"$f":"IF(input!I9=\"\",\"\",input!I9)","v":1},null,"+",null,null,"Specification Number",null,null,null,null,null,null,"Gage Name",null,null,null,null,null,null,null,null,1,1,"",null,null,"",null,null,1,1,"",null,{"$f":"IF(#REF!<>\"\",IF(AND(#REF!=#REF!,#REF!=#REF!),1,0),\"\")","v":{"$error":"#REF!"}},{"$f":"IF(#REF!<>\"\",IF(AND(#REF!=#REF!,#REF!=#REF!,#REF!=I10),1,0),\"\")","v":{"$error":"#REF!"}},{"$error":"#REF!"},null,1,1,null,null,0,6,null,{"$f":"AX9*(AX9-1)","v":0},30,null,2,2,2,{"$f":"SUM(BD9:BF9)","v":6},2,2,2,{"$f":"SUM(BH9:BJ9)","v":6},{"$f":"IF(#REF!=\"\",\"\",IF(#REF!=#REF!,2,0))","v":{"$error":"#REF!"}},{"$f":"IF(#REF!=\"\",\"\",IF(#REF!=#REF!,2,0))","v":{"$error":"#REF!"}},{"$f":"IF(#REF!=\"\",\"\",IF(#REF!=#REF!,2,0))","v":{"$error":"#REF!"}},{"$f":"SUM(BL9:BN9)","v":{"$error":"#REF!"}},{"$f":"BA9+BB9","v":30},2,2,2,2,2,2,{"$f":"IF(#REF!=\"\",\"\",IF(#REF!=$I9,2,0))","v":{"$error":"#REF!"}},{"$f":"IF(#REF!=\"\",\"\",IF(#REF!=$I9,2,0))","v":{"$error":"#REF!"}},{"$f":"IF(#REF!=\"\",\"\",IF(#REF!=$I9,2,0))","v":{"$error":"#REF!"}},null,null,null,null,3,"A",1,3,0,0,null,null,3,"A",1,3,0,0]
[null,3,{"$f":"IF(input!C10=\"\",\"\",input!C10)","v":0},{"$f":"IF(input!D10=\"\",\"\",input!D10)","v":0},{"$f":"IF(input!E10=\"\",\"\",input!E10)","v":0},{"$f":"IF(input!F10=\"\",\"\",input!F10)","v":0},{"$f":"IF(input!G10=\"\",\"\",input!G10)","v":0},{"$f":"IF(input!H10=\"\",\"\",input!H10)","v":0},{"$f":"IF(input!I10=\"\",\"\",input!I10)","v":0},null,"-",null,null,"Characteristic Name",null,null,null,null,null,null,"Gage Number",null,null,null,null,null,null,null,null,1,1,"",null,null,"",null,null,1,1,"",null,{"$f":"IF(#REF!<>\"\",IF(AND(#REF!=#REF!,#REF!=#REF!),1,0),\"\")","v":{"$error":"#REF!"}},{"$f":"IF(#REF!<>\"\",IF(AND(#REF!=#REF!,#REF!=#REF!,#REF!=I11),1,0),\"\")","v":{"$error":"#REF!"}},{"$error":"#REF!"},null,1,1,null,null,6,0,null,30,0,null,2,2,2,6,2,2,2,6,{"$f":"IF(#REF!=\"\",\"\",IF(#REF!=#REF!,2,0))","v":{"$error":"#REF!"}},{"$f":"IF(#REF!=\"\",\"\",IF(#REF!=#REF!,2,0))","v":{"$error":"#REF!"}},{"$f":"IF(#REF!=\"\",\"\",IF(#REF!=#REF!,2,0))","v":{"$error":"#REF!"}},{"$error":"#REF!"},30,2,2,2,2,2,2,{"$f":"IF(#REF!=\"\",\"\",IF(#REF!=$I10,2,0))","v":{"$error":"#REF!"}},{"$f":"IF(#REF!=\"\",\"\",IF(#REF!=$I10,2,0))","v":{"$error":"#REF!"}},{"$f":"IF(#REF!=\"\",\"\",IF(#REF!=$I10,2,0))","v":{"$error":"#REF!"}},null,null,null,null,4,"A",1,4,0,0,null,null,4,"A",1,4,0,0]
[null,4,{"$f":"IF(input!C11=\"\",\"\",input!C11)","v":0},{"$f":"IF(input!D11=\"\",\"\",input!D11)","v":0},{"$f":"IF(input!E11=\"\",\"\",input!E11)","v":0},{"$f":"IF(input!F11=\"\",\"\",input!F11)","v":0},{"$f":"IF(input!G11=\"\",\"\",input!G11)","v":0},{"$f":"IF(input!H11=\"\",\"\",input!H11)","v":0},{"$f":"IF(input!I11=\"\",\"\",input!I11)","v":0},null,"-",null,null,"Characteristic Type",null,null,null,null,null,null,"Gage Type",null,null,null,null,null,null,null,null,1,1,"",null,null,"",null,null,1,1,"",null,{"$f":"IF(#REF!<>\"\",IF(AND(#REF!=#REF!,#REF!=#REF!),1,0),\"\")","v":{"$error":"#REF!"}},{"$f":"IF(#REF!<>\"\",IF(AND(#REF!=#REF!,#REF!=#REF!,#REF!=I12),1,0),\"\")","v":{"$error":"#REF!"}},{"$error":"#REF!"},null,1,1,null,null,6,0,null,30,0,null,2,2,2,6,2,2,2,6,{"$f":"IF(#REF!=\"\",\"\",IF(#REF!=#REF!,2,0))","v":{"$error":"#REF!"}},{"$f":"IF(#REF!=\"\",\"\",IF(#REF!=#REF!,2,0))","v":{"$error":"#REF!"}},{"$f":"IF(#REF!=\"\",\"\",IF(#REF!=#REF!,2,0))","v":{"$error":"#REF!"}},{"$error":"#REF!"},30,2,2,2,2,2,2,{"$f":"IF(#REF!=\"\",\"\",IF(#REF!=$I11,2,0))","v":{"$error":"#REF!"}},{"$f":"IF(#REF!=\"\",\"\",IF(#REF!=$I11,2,0))","v":{"$error":"#REF!"}},{"$f":"IF(#REF!=\"\",\"\",IF(#REF!=$I11,2,0))","v":{"$error":"#REF!"}},null,null,null,null,5,"A",1,5,0,0,null,null,5,"A",1,5,0,0]
[null,5,{"$f":"IF(input!C12=\"\",\"\",input!C12)","v":0},{"$f":"IF(input!D12=\"\",\"\",input!D12)","v":0},{"$f":"IF(input!E12=\"\",\"\",input!E12)","v":0},{"$f":"IF(input!F12=\"\",\"\",input!F12)","v":0},{"$f":"IF(input!G12=\"\",\"\",input!G12)","v":0},{"$f":"IF(input!H12=\"\",\"\",input!H12)","v":0},{"$f":"IF(input!I12=\"\",\"\",input!I12)","v":0},null,"-",null,null,"TPS Anzahl",null,null,null,null,null,null,null,null,null,null,null,null,null,null,null,0,0,"",null,null,"",null,null,0,0,"",null,{"$f":"IF(#REF!<>\"\",IF(AND(#REF!=#REF!,#REF!=#REF!),1,0),\"\")","v":{"$error":"#REF!"}},{"$f":"IF(#REF!<>\"\",IF(AND(#REF!=#REF!,#REF!=#REF!,#REF!=I13),1,0),\"\")","v":{"$error":"#REF!"}},{"$error":"#REF!"},null,0,0,null,null,6,0,null,30,0,null,2,2,2,6,2,2,2,6,{"$f":"IF(#REF!=\"\",\"\",IF(#REF!=#REF!,2,0))","v":{"$error":"#REF!"}},{"$f":"IF(#REF!=\"\",\"\",IF(#REF!=#REF!,2,0))","v":{"$error":"#REF!"}},{"$f":"IF(#REF!=\"\",\"\",IF(#REF!=#REF!,2,0))","v":{"$error":"#REF!"}},{"$error":"#REF!"},30,2,2,2,2,2,2,{"$f":"IF(#REF!=\"\",\"\",IF(#REF!=$I12,2,0))","v":{"$error":"#REF!"}},{"$f":"IF(#REF!=\"\",\"\",IF(#REF!=$I12,2,0))","v":{"$error":"#REF!"}},{"$f":"IF(#REF!=\"\",\"\",IF(#REF!=$I12,2,0))","v":{"$error":"#REF!"}},null,null,null,null,6,"A",1,6,1,1,null,null,6,"A",1,6,1,1]
[null,6,{"$f":"IF(input!C13=\"\",\"\",input!C13)","v":1},{"$f":"IF(input!D13=\"\",\"\",input!D13)","v":1},{"$f":"IF(input!E13=\"\",\"\",input!E13)","v":0},{"$f":"IF(input!F13=\"\",\"\",input!F13)","v":1},{"$f":"IF(input!G13=\"\",\"\",input!G13)","v":1},{"$f":"IF(input!H13=\"\",\"\",input!H13)","v":0},{"$f":"IF(input!I13=\"\",\"\",input!I13)","v":1},null,"x",null,null,null,null,null,null,null,null,null,"Score <",null,null,0.81,0.95,1,null,null,null,1,1,"",null,null,"",null,null,1,1,"",null,{"$f":"IF(#REF!<>\"\",IF(AND(#REF!=#REF!,#REF!=#REF!),1,0),\"\")","v":{"$error":"#REF!"}},{"$f":"IF(#REF!<>\"\",IF(AND(#REF!=#REF!,#REF!=#REF!,#REF!=I14),1,0),\"\")","v":{"$error":"#REF!"}},{"$error":"#REF!"},null,1,1,null,null,2,4,null,2,12,null,2,0,0,2,2,0,0,2,{"$f":"IF(#REF!=\"\",\"\",IF(#REF!=#REF!,2,0))","v":{"$error":"#REF!"}},{"$f":"IF(#REF!=\"\",\"\",IF(#REF!=#REF!,2,0))","v":{"$error":"#REF!"}},{"$f":"IF(#REF!=\"\",\"\",IF(#REF!=#REF!,2,0))","v":{"$error":"#REF!"}},{"$error":"#REF!"},14,2,2,0,2,2,0,{"$f":"IF(#REF!=\"\",\"\",IF(#REF!=$I13,2,0))","v":{"$error":"#REF!"}},{"$f":"IF(#REF!=\"\",\"\",IF(#REF!=$I13,2,0))","v":{"$error":"#REF!"}},{"$f":"IF(#REF!=\"\",\"\",IF(#REF!=$I13,2,0))","v":{"$error":"#REF!"}},null,null,null,null,7,"A",1,7,1,1,null,null,7,"A",1,7,1,1]
[null,7,{"$f":"IF(input!C14=\"\",\"\",input!C14)","v":1},{"$f":"IF(input!D14=\"\",\"\",input!D14)","v":1},{"$f":"IF(input!E14=\"\",\"\",input!E14)","v":1},{"$f":"IF(input!F14=\"\",\"\",input!F14)","v":1},{"$f":"IF(input!G14=\"\",\"\",input!G14)","v":1},{"$f":"IF(input!H14=\"\",\"\",input!H14)","v":1},{"$f":"IF(input!I14=\"\",\"\",input!I14)","v":1},null,"+",null,null,"Prüfer A",null,null,null,"Prüfer A",null,null,"Fleiss Kappa <",null,null,0.81,0.95,1,null,null,null,1,1,"",null,null,"",null,null,1,1,"",null,{"$f":"IF(#REF!<>\"\",IF(AND(#REF!=#REF!,#REF!=#REF!),1,0),\"\")","v":{"$error":"#REF!"}},{"$f":"IF(#REF!<>\"\",IF(AND(#REF!=#REF!,#REF!=#REF!,#REF!=I15),1,0),\"\")","v":{"$error":"#REF!"}},{"$error":"#REF!"},null,1,1,null,null,0,6,null,0,30,null,2,2,2,6,2,2,2,6,{"$f":"IF(#REF!=\"\",\"\",IF(#REF!=#REF!,2,0))","v":{"$error":"#REF!"}},{"$f":"IF(#REF!=\"\",\"\",IF(#REF!=#REF!,2,0))","v":{"$error":"#REF!"}},{"$f":"IF(#REF!=\"\",\"\",IF(#REF!=#REF!,2,0))","v":{"$error":"#REF!"}},{"$error":"#REF!"},30,2,2,2,2,2,2,{"$f":"IF(#REF!=\"\",\"\",IF(#REF!=$I14,2,0))","v":{"$error":"#REF!"}},{"$f":"IF(#REF!=\"\",\"\",IF(#REF!=$I14,2,0))","v":{"$error":"#REF!"}},{"$f":"IF(#REF!=\"\",\"\",IF(#REF!=$I14,2,0))","v":{"$error":"#REF!"}},null,null,null,null,8,"A",1,8,1,1,null,null,8,"A",1,8,1,1]
[null,8,{"$f":"IF(input!C15=\"\",\"\",input!C15)","v":1},{"$f":"IF(input!D15=\"\",\"\",input!D15)","v":1},{"$f":"IF(input!E15=\"\",\"\",input!E15)","v":1},{"$f":"IF(input!F15=\"\",\"\",input!F15)","v":1},{"$f":"IF(input!G15=\"\",\"\",input!G15)","v":1},{"$f":"IF(input!H15=\"\",\"\",input!H15)","v":1},{"$f":"IF(input!I15=\"\",\"\",input!I15)","v":1},null,"+",null,null,"Prüfer B",null,null,null,"Prüfer B",null,null,"Specifications",null,null,null,null,null,null,null,null,1,1,"",null,null,"",null,null,1,1,"",null,{"$f":"IF(#REF!<>\"\",IF(AND(#REF!=#REF!,#REF!=#REF!),1,0),\"\")","v":{"$error":"#REF!"}},{"$f":"IF(#REF!<>\"\",IF(AND(#REF!=#REF!,#REF!=#REF!,#REF!=I16),1,0),\"\")","v":{"$error":"#REF!"}},{"$error":"#REF!"},null,1,1,null,null,0,6,null,0,30,null,2,2,2,6,2,2,2,6,{"$f":"IF(#REF!=\"\",\"\",IF(#REF!=#REF!,2,0))","v":{"$error":"#REF!"}},{"$f":"IF(#REF!=\"\",\"\",IF(#REF!=#REF!,2,0))","v":{"$error":"#REF!"}},{"$f":"IF(#REF!=\"\",\"\",IF(#REF!=#REF!,2,0))","v":{"$error":"#REF!"}},{"$error":"#REF!"},30,2,2,2,2,2,2,{"$f":"IF(#REF!=\"\",\"\",IF(#REF!=$I15,2,0))","v":{"$error":"#REF!"}},{"$f":"IF(#REF!=\"\",\"\",IF(#REF!=$I15,2,0))","v":{"$error":"#REF!"}},{"$f":"IF(#REF!=\"\",\"\",IF(#REF!=$I15,2,0))","v":{"$error":"#REF!"}},null,null,null,null,9,"A",1,9,0,0,null,null,9,"A",1,9,0,0]
[null,9,{"$f":"IF(input!C16=\"\",\"\",input!C16)","v":0},{"$f":"IF(input!D16=\"\",\"\",input!D16)","v":0},{"$f":"IF(input!E16=\"\",\"\",input!E16)","v":0},{"$f":"IF(input!F16=\"\",\"\",input!F16)","v":0},{"$f":"IF(input!G16=\"\",\"\",input!G16)","v":0},{"$f":"IF(input!H16=\"\",\"\",input!H16)","v":0},{"$f":"IF(input!I16=\"\",\"\",input!I16)","v":0},null,"-",null,null,"Prüfer C",null,null,null,"Prüfer C",null,null," - LSL",null,null,null,null,null,null,null,null,1,1,"",null,null,"",null,null,1,1,"",null,{"$f":"IF(#REF!<>\"\",IF(AND(#REF!=#REF!,#REF!=#REF!),1,0),\"\")","v":{"$error":"#REF!"}},{"$f":"IF(#REF!<>\"\",IF(AND(#REF!=#REF!,#REF!=#REF!,#REF!=I17),1,0),\"\")","v":{"$error":"#REF!"}},{"$error":"#REF!"},null,1,1,null,null,6,0,null,30,0,null,2,2,2,6,2,2,2,6,{"$f":"IF(#REF!=\"\",\"\",IF(#REF!=#REF!,2,0))","v":{"$error":"#REF!"}},{"$f":"IF(#REF!=\"\",\"\",IF(#REF!=#REF!,2,0))","v":{"$error":"#REF!"}},{"$f":"IF(#REF!=\"\",\"\",IF(#REF!=#REF!,2,0))","v":{"$error":"#REF!"}},{"$error":"#REF!"},30,2,2,2,2,2,2,{"$f":"IF(#REF!=\"\",\"\",IF(#REF!=$I16,2,0))","v":{"$error":"#REF!"}},{"$f":"IF(#REF!=\"\",\"\",IF(#REF!=$I16,2,0))","v":{"$error":"#REF!"}},{"$f":"IF(#REF!=\"\",\"\",IF(#REF!=$I16,2,0))","v":{"$error":"#REF!"}},null,null,null,null,10,"A",1,10,1,1,null,null,10,"A",1,10,1,1]
[null,10,{"$f":"IF(input!C17=\"\",\"\",input!C17)","v":1},{"$f":"IF(input!D17=\"\",\"\",input!D17)","v":1},{"$f":"IF(input!E17=\"\",\"\",input!E17)","v":1},{"$f":"IF(input!F17=\"\",\"\",input!F17)","v":1},{"$f":"IF(input!G17=\"\",\"\",input!G17)","v":1},{"$f":"IF(input!H17=\"\",\"\",input!H17)","v":1},{"$f":"IF(input!I17=\"\",\"\",input!I17)","v":1},null,"+",null,null,"Prüfdatum",null,null,null,null,null,null," - USL",null,null,null,null,null,null,null,null,1,1,"",null,null,"",null,null,1,1,"",null,{"$f":"IF(#REF!<>\"\",IF(AND(#REF!=#REF!,#REF!=#REF!),1,0),\"\")","v":{"$error":"#REF!"}},{"$f":"IF(#REF!<>\"\",IF(AND(#REF!=#REF!,#REF!=#REF!,#REF!=I18),1,0),\"\")","v":{"$error":"#REF!"}},{"$error":"#REF!"},null,1,1,null,null,0,6,null,0,30,null,2,2,2,6,2,2,2,6,{"$f":"IF(#REF!=\"\",\"\",IF(#REF!=#REF!,2,0))","v":{"$error":"#REF!"}},{"$f":"IF(#REF!=\"\",\"\",IF(#REF!=#REF!,2,0))","v":{"$error":"#REF!"}},{"$f":"IF(#REF!=\"\",\"\",IF(#REF!=#REF!,2,0))","v":{"$error":"#REF!"}},{"$error":"#REF!"},30,2,2,2,2,2,2,{"$f":"IF(#REF!=\"\",\"\",IF(#REF!=$I17,2,0))","v":{"$error":"#REF!"}},{"$f":"IF(#REF!=\"\",\"\",IF(#REF!=$I17,2,0))","v":{"$error":"#REF!"}},{"$f":"IF(#REF!=\"\",\"\",IF(#REF!=$I17,2,0))","v":{"$error":"#REF!"}},null,null,null,null,11,"A",1,11,1,1,null,null,11,"A",1,11,1,1]
[null,11,{"$f":"IF(input!C18=\"\",\"\",input!C18)","v":1},{"$f":"IF(input!D18=\"\",\"\",input!D18)","v":1},{"$f":"IF(input!E18=\"\",\"\",input!E18)","v":1},{"$f":"IF(input!F18=\"\",\"\",input!F18)","v":1},{"$f":"IF(input!G18=\"\",\"\",input!G18)","v":1},{"$f":"IF(input!H18=\"\",\"\",input!H18)","v":1},{"$f":"IF(input!I18=\"\",\"\",input!I18)","v":1},null,"+",null,null,"Prüfung durch Id",null,null,null,null,null,null,"Resolution",null,null,null,null,null,null,null,null,1,1,"",null,null,"",null,null,1,1,"",null,{"$f":"IF(#REF!<>\"\",IF(AND(#REF!=#REF!,#REF!=#REF!),1,0),\"\")","v":{"$error":"#REF!"}},{"$f":"IF(#REF!<>\"\",IF(AND(#REF!=#REF!,#REF!=#REF!,#REF!=I19),1,0),\"\")","v":{"$error":"#REF!"}},{"$error":"#REF!"},null,1,1,null,null,0,6,null,0,30,null,2,2,2,6,2,2,2,6,{"$f":"IF(#REF!=\"\",\"\",IF(#REF!=#REF!,2,0))","v":{"$error":"#REF!"}},{"$f":"IF(#REF!=\"\",\"\",IF(#REF!=#REF!,2,0))","v":{"$error":"#REF!"}},{"$f":"IF(#REF!=\"\",\"\",IF(#REF!=#REF!,2,0))","v":{"$error":"#REF!"}},{"$error":"#REF!"},30,2,2,2,2,2,2,{"$f":"IF(#REF!=\"\",\"\",IF(#REF!=$I18,2,0))","v":{"$error":"#REF!"}},{"$f":"IF(#REF!=\"\",\"\",IF(#REF!=$I18,2,0))","v":{"$error":"#REF!"}},{"$f":"IF(#REF!=\"\",\"\",IF(#REF!=$I18,2,0))","v":{"$error":"#REF!"}},null,null,null,null,12,"A",1,12,0,0,null,null,12,"A",1,12,0,0]
[null,12,{"$f":"IF(input!C19=\"\",\"\",input!C19)","v":0},{"$f":"IF(input!D19=\"\",\"\",input!D19)","v":0},{"$f":"IF(input!E19=\"\",\"\",input!E19)","v":0},{"$f":"IF(input!F19=\"\",\"\",input!F19)","v":0},{"$f":"IF(input!G19=\"\",\"\",input!G19)","v":0},{"$f":"IF(input!H19=\"\",\"\",input!H19)","v":0},{"$f":"IF(input!I19=\"\",\"\",input!I19)","v":0},null,"-",null,null,"Prüfung durch Name",null,null,null,null,null,null,null,null,null,null,null,null,null,null,null,1,1,"",null,null,"",null,null,1,1,"",null,{"$f":"IF(#REF!<>\"\",IF(AND(#REF!=#REF!,#REF!=#REF!),1,0),\"\")","v":{"$error":"#REF!"}},{"$f":"IF(#REF!<>\"\",IF(AND(#REF!=#REF!,#REF!=#REF!,#REF!=I20),1,0),\"\")","v":{"$error":"#REF!"}},{"$error":"#REF!"},null,1,1,null,null,6,0,null,30,0,null,2,2,2,6,2,2,2,6,{"$f":"IF(#REF!=\"\",\"\",IF(#REF!=#REF!,2,0))","v":{"$error":"#REF!"}},{"$f":"IF(#REF!=\"\",\"\",IF(#REF!=#REF!,2,0))","v":{"$error":"#REF!"}},{"$f":"IF(#REF!=\"\",\"\",IF(#REF!=#REF!,2,0))","v":{"$error":"#REF!"}},{"$error":"#REF!"},30,2,2,2,2,2,2,{"$f":"IF(#REF!=\"\",\"\",IF(#REF!=$I19,2,0))","v":{"$error":"#REF!"}},{"$f":"IF(#REF!=\"\",\"\",IF(#REF!=$I19,2,0))","v":{"$error":"#REF!"}},{"$f":"IF(#REF!=\"\",\"\",IF(#REF!=$I19,2,0))","v":{"$error":"#REF!"}},null,null,null,null,13,"A",1,13,1,1,null,null,13,"A",1,13,1,1]
[null,13,{"$f":"IF(input!C20=\"\",\"\",input!C20)","v":1},{"$f":"IF(input!D20=\"\",\"\",input!D20)","v":1},{"$f":"IF(input!E20=\"\",\"\",input!E20)","v":1},{"$f":"IF(input!F20=\"\",\"\",input!F20)","v":1},{"$f":"IF(input!G20=\"\",\"\",input!G20)","v":1},{"$f":"IF(input!H20=\"\",\"\",input!H20)","v":1},{"$f":"IF(input!I20=\"\",\"\",input!I20)","v":1},null,"+",null,null,null,null,null,null,null,null,null,null,null,null,null,null,null,null,null,null,0,0,"",null,null,"",null,null,1,1,"",null,{"$f":"IF(#REF!<>\"\",IF(AND(#REF!=#REF!,#REF!=#REF!),1,0),\"\")","v":{"$error":"#REF!"}},{"$f":"IF(#REF!<>\"\",IF(AND(#REF!=#REF!,#REF!=#REF!,#REF!=I21),1,0),\"\")","v":{"$error":"#REF!"}},{"$error":"#REF!"},null,0,0,null,null,0,6,null,0,30,null,2,2,2,6,2,2,2,6,{"$f":"IF(#REF!=\"\",\"\",IF(#REF!=#REF!,2,0))","v":{"$error":"#REF!"}},{"$f":"IF(#REF!=\"\",\"\",IF(#REF!=#REF!,2,0))","v":{"$error":"#REF!"}},{"$f":"IF(#REF!=\"\",\"\",IF(#REF!=#REF!,2,0))","v":{"$error":"#REF!"}},{"$error":"#REF!"},30,2,2,2,2,2,2,{"$f":"IF(#REF!=\"\",\"\",IF(#REF!=$I20,2,0))","v":{"$error":"#REF!"}},{"$f":"IF(#REF!=\"\",\"\",IF(#REF!=$I20,2,0))","v":{"$error":"#REF!"}},{"$f":"IF(#REF!=\"\",\"\",IF(#REF!=$I20,2,0))","v":{"$error":"#REF!"}},null,null,null,null,14,"A",1,14,1,1,null,null,14,"A",1,14,1,1]
[null,14,{"$f":"IF(input!C21=\"\",\"\",input!C21)","v":1},{"$f":"IF(input!D21=\"\",\"\",input!D21)","v":1},{"$f":"IF(input!E21=\"\",\"\",input!E21)","v":0},{"$f":"IF(input!F21=\"\",\"\",input!F21)","v":1},{"$f":"IF(input!G21=\"\",\"\",input!G21)","v":1},{"$f":"IF(input!H21=\"\",\"\",input!H21)","v":1},{"$f":"IF(input!I21=\"\",\"\",input!I21)","v":1},null,"x",null,null,"Anzahl Durchgänge",null,null,null,{"$f":"IF(C8<>\"\",COUNT(C8:E8),\"\")","v":3},null,null,null,null,null,null,null,null,null,null,null,1,1,"",null,null,"",null,null,1,1,"",null,{"$f":"IF(#REF!<>\"\",IF(AND(#REF!=#REF!,#REF!=#REF!),1,0),\"\")","v":{"$error":"#REF!"}},{"$f":"IF(#REF!<>\"\",IF(AND(#REF!=#REF!,#REF!=#REF!,#REF!=I22),1,0),\"\")","v":{"$error":"#REF!"}},{"$error":"#REF!"},null,1,1,null,null,1,5,null,0,20,null,2,0,0,2,2,2,2,6,{"$f":"IF(#REF!=\"\",\"\",IF(#REF!=#REF!,2,0))","v":{"$error":"#REF!"}},{"$f":"IF(#REF!=\"\",\"\",IF(#REF!=#REF!,2,0))","v":{"$error":"#REF!"}},{"$f":"IF(#REF!=\"\",\"\",IF(#REF!=#REF!,2,0))","v":{"$error":"#REF!"}},{"$error":"#REF!"},20,2,2,0,2,2,2,{"$f":"IF(#REF!=\"\",\"\",IF(#REF!=$I21,2,0))","v":{"$error":"#REF!"}},{"$f":"IF(#REF!=\"\",\"\",IF(#REF!=$I21,2,0))","v":{"$error":"#REF!"}},{"$f":"IF(#REF!=\"\",\"\",IF(#REF!=$I21,2,0))","v":{"$error":"#REF!"}},null,null,null,null,15,"A",1,15,1,1,null,null,15,"A",1,15,1,1]
[null,15,{"$f":"IF(input!C22=\"\",\"\",input!C22)","v":1},{"$f":"IF(input!D22=\"\",\"\",input!D22)","v":1},{"$f":"IF(input!E22=\"\",\"\",input!E22)","v":1},{"$f":"IF(input!F22=\"\",\"\",input!F22)","v":1},{"$f":"IF(input!G22=\"\",\"\",input!G22)","v":1},{"$f":"IF(input!H22=\"\",\"\",input!H22)","v":1},{"$f":"IF(input!I22=\"\",\"\",input!I22)","v":1},null,"+",null,null,"Anzahl Teile",null,null,null,{"$f":"IF(C8<>\"\",COUNT(C8:C57),\"\")","v":36},null,null,null,null,null,null,null,null,null,null,null,1,1,"",null,null,"",null,null,1,1,"",null,{"$f":"IF(#REF!<>\"\",IF(AND(#REF!=#REF!,#REF!=#REF!),1,0),\"\")","v":{"$error":"#REF!"}},{"$f":"IF(#REF!<>\"\",IF(AND(#REF!=#REF!,#REF!=#REF!,#REF!=I23),1,0),\"\")","v":{"$error":"#REF!"}},{"$error":"#REF!"},null,1,1,null,null,0,6,null,0,30,null,2,2,2,6,2,2,2,6,{"$f":"IF(#REF!=\"\",\"\",IF(#REF!=#REF!,2,0))","v":{"$error":"#REF!"}},{"$f":"IF(#REF!=\"\",\"\",IF(#REF!=#REF!,2,0))","v":{"$error":"#REF!"}},{"$f":"IF(#REF!=\"\",\"\",IF(#REF!=#REF!,2,0))","v":{"$error":"#REF!"}},{"$error":"#REF!"},30,2,2,2,2,2,2,{"$f":"IF(#REF!=\"\",\"\",IF(#REF!=$I22,2,0))","v":{"$error":"#REF!"}},{"$f":"IF(#REF!=\"\",\"\",IF(#REF!=$I22,2,0))","v":{"$error":"#REF!"}},{"$f":"IF(#REF!=\"\",\"\",IF(#REF!=$I22,2,0))","v":{"$error":"#REF!"}},null,null,null,null,16,"A",1,16,1,1,null,null,16,"A",1,16,1,1]
[null,16,{"$f":"IF(input!C23=\"\",\"\",input!C23)","v":1},{"$f":"IF(input!D23=\"\",\"\",input!D23)","v":1},{"$f":"IF(input!E23=\"\",\"\",input!E23)","v":1},{"$f":"IF(input!F23=\"\",\"\",input!F23)","v":1},{"$f":"IF(input!G23=\"\",\"\",input!G23)","v":1},{"$f":"IF(input!H23=\"\",\"\",input!H23)","v":1},{"$f":"IF(input!I23=\"\",\"\",input!I23)","v":1},null,"+",null,null,"Anzahl of Prüfer",null,null,null,{"$f":"IF(C8<>\"\",COUNT(C8,F8,#REF!),\"\")","v":2},null,null,null,null,null,null,null,null,null,null,null,1,1,"",null,null,"",null,null,1,1,"",null,{"$f":"IF(#REF!<>\"\",IF(AND(#REF!=#REF!,#REF!=#REF!),1,0),\"\")","v":{"$error":"#REF!"}},{"$f":"IF(#REF!<>\"\",IF(AND(#REF!=#REF!,#REF!=#REF!,#REF!=I24),1,0),\"\")","v":{"$error":"#REF!"}},{"$error":"#REF!"},null,1,1,null,null,0,6,null,0,30,null,2,2,2,6,2,2,2,6,{"$f":"IF(#REF!=\"\",\"\",IF(#REF!=#REF!,2,0))","v":{"$error":"#REF!"}},{"$f":"IF(#REF!=\"\",\"\",IF(#REF!=#REF!,2,0))","v":{"$error":"#REF!"}},{"$f":"IF(#REF!=\"\",\"\",IF(#REF!=#REF!,2,0))","v":{"$error":"#REF!"}},{"$error":"#REF!"},30,2,2,2,2,2,2,{"$f":"IF(#REF!=\"\",\"\",IF(#REF!=$I23,2,0))","v":{"$error":"#REF!"}},{"$f":"IF(#REF!=\"\",\"\",IF(#REF!=$I23,2,0))","v":{"$error":"#REF!"}},{"$f":"IF(#REF!=\"\",\"\",IF(#REF!=$I23,2,0))","v":{"$error":"#REF!"}},null,null,null,null,17,"A",1,17,1,1,null,null,17,"A",1,17,1,1]
[null,17,{"$f":"IF(input!C24=\"\",\"\",input!C24)","v":1},{"$f":"IF(input!D24=\"\",\"\",input!D24)","v":1},{"$f":"IF(input!E24=\"\",\"\",input!E24)","v":1},{"$f":"IF(input!F24=\"\",\"\",input!F24)","v":1},{"$f":"IF(input!G24=\"\",\"\",input!G24)","v":1},{"$f":"IF(input!H24=\"\",\"\",input!H24)","v":1},{"$f":"IF(input!I24=\"\",\"\",input!I24)","v":1},null,"+",null,null,null,null,null,null,null,null,null,null,null,null,null,null,null,null,null,null,1,1,"",null,null,"",null,null,1,1,"",null,{"$f":"IF(#REF!<>\"\",IF(AND(#REF!=#REF!,#REF!=#REF!),1,0),\"\")","v":{"$error":"#REF!"}},{"$f":"IF(#REF!<>\"\",IF(AND(#REF!=#REF!,#REF!=#REF!,#REF!=I25),1,0),\"\")","v":{"$error":"#REF!"}},{"$error":"#REF!"},null,1,1,null,null,0,6,null,0,30,null,2,2,2,6,2,2,2,6,{"$f":"IF(#REF!=\"\",\"\",IF(#REF!=#REF!,2,0))","v":{"$error":"#REF!"}},{"$f":"IF(#REF!=\"\",\"\",IF(#REF!=#REF!,2,0))","v":{"$error":"#REF!"}},{"$f":"IF(#REF!=\"\",\"\",IF(#REF!=#REF!,2,0))","v":{"$error":"#REF!"}},{"$error":"#REF!"},30,2,2,2,2,2,2,{"$f":"IF(#REF!=\"\",\"\",IF(#REF!=$I24,2,0))","v":{"$error":"#REF!"}},{"$f":"IF(#REF!=\"\",\"\",IF(#REF!=$I24,2,0))","v":{"$error":"#REF!"}},{"$f":"IF(#REF!=\"\",\"\",IF(#REF!=$I24,2,0))","v":{"$error":"#REF!"}},null,null,null,null,18,"A",1,18,1,1,null,null,18,"A",1,18,1,1]
[null,18,{"$f":"IF(input!C25=\"\",\"\",input!C25)","v":1},{"$f":"IF(input!D25=\"\",\"\",input!D25)","v":1},{"$f":"IF(input!E25=\"\",\"\",input!E25)","v":1},{"$f":"IF(input!F25=\"\",\"\",input!F25)","v":1},{"$f":"IF(input!G25=\"\",\"\",input!G25)","v":1},{"$f":"IF(input!H25=\"\",\"\",input!H25)","v":1},{"$f":"IF(input!I25=\"\",\"\",input!I25)","v":1},null,"+",null,"Prüfer",null,null,null,null,null,null,null,null,null,null,null,null,null,null,null,null,1,1,"",null,null,"",null,null,1,1,"",null,{"$f":"IF(#REF!<>\"\",IF(AND(#REF!=#REF!,#REF!=#REF!),1,0),\"\")","v":{"$error":"#REF!"}},{"$f":"IF(#REF!<>\"\",IF(AND(#REF!=#REF!,#REF!=#REF!,#REF!=I26),1,0),\"\")","v":{"$error":"#REF!"}},{"$error":"#REF!"},null,1,1,null,null,0,6,null,0,30,null,2,2,2,6,2,2,2,6,{"$f":"IF(#REF!=\"\",\"\",IF(#REF!=#REF!,2,0))","v":{"$error":"#REF!"}},{"$f":"IF(#REF!=\"\",\"\",IF(#REF!=#REF!,2,0))","v":{"$error":"#REF!"}},{"$f":"IF(#REF!=\"\",\"\",IF(#REF!=#REF!,2,0))","v":{"$error":"#REF!"}},{"$error":"#REF!"},30,2,2,2,2,2,2,{"$f":"IF(#REF!=\"\",\"\",IF(#REF!=$I25,2,0))","v":{"$error":"#REF!"}},{"$f":"IF(#REF!=\"\",\"\",IF(#REF!=$I25,2,0))","v":{"$error":"#REF!"}},{"$f":"IF(#REF!=\"\",\"\",IF(#REF!=$I25,2,0))","v":{"$error":"#REF!"}},null,null,null,null,19,"A",1,19,1,1,null,null,19,"A",1,19,1,1]
[null,19,{"$f":"IF(input!C26=\"\",\"\",input!C26)","v":1},{"$f":"IF(input!D26=\"\",\"\",input!D26)","v":1},{"$f":"IF(input!E26=\"\",\"\",input!E26)","v":1},{"$f":"IF(input!F26=\"\",\"\",input!F26)","v":1},{"$f":"IF(input!G26=\"\",\"\",input!G26)","v":1},{"$f":"IF(input!H26=\"\",\"\",input!H26)","v":1},{"$f":"IF(input!I26=\"\",\"\",input!I26)","v":1},null,"+",null,null,null,null,"Innerhalb Prüfer",null,null,null,null,null,"Zwischen",null,null,null,null,null,null,null,1,1,"",null,null,"",null,null,1,1,"",null,{"$f":"IF(#REF!<>\"\",IF(AND(#REF!=#REF!,#REF!=#REF!),1,0),\"\")","v":{"$error":"#REF!"}},{"$f":"IF(#REF!<>\"\",IF(AND(#REF!=#REF!,#REF!=#REF!,#REF!=I27),1,0),\"\")","v":{"$error":"#REF!"}},{"$error":"#REF!"},null,1,1,null,null,0,6,null,0,30,null,2,2,2,6,2,2,2,6,{"$f":"IF(#REF!=\"\",\"\",IF(#REF!=#REF!,2,0))","v":{"$error":"#REF!"}},{"$f":"IF(#REF!=\"\",\"\",IF(#REF!=#REF!,2,0))","v":{"$error":"#REF!"}},{"$f":"IF(#REF!=\"\",\"\",IF(#REF!=#REF!,2,0))","v":{"$error":"#REF!"}},{"$error":"#REF!"},30,2,2,2,2,2,2,{"$f":"IF(#REF!=\"\",\"\",IF(#REF!=$I26,2,0))","v":{"$error":"#REF!"}},{"$f":"IF(#REF!=\"\",\"\",IF(#REF!=$I26,2,0))","v":{"$error":"#REF!"}},{"$f":"IF(#REF!=\"\",\"\",IF(#REF!=$I26,2,0))","v":{"$error":"#REF!"}},null,null,null,null,20,"A",1,20,1,1,null,null,20,"A",1,20,1,1]
[null,20,{"$f":"IF(input!C27=\"\",\"\",input!C27)","v":1},{"$f":"IF(input!D27=\"\",\"\",input!D27)","v":1},{"$f":"IF(input!E27=\"\",\"\",input!E27)","v":1},{"$f":"IF(input!F27=\"\",\"\",input!F27)","v":1},{"$f":"IF(input!G27=\"\",\"\",input!G27)","v":1},{"$f":"IF(input!H27=\"\",\"\",input!H27)","v":1},{"$f":"IF(input!I27=\"\",\"\",input!I27)","v":1},null,"+",null,null,null,null,{"$f":"R14","v":"Prüfer A"},null,{"$f":"R15","v":"Prüfer B"},null,{"$f":"R16","v":"Prüfer C"},null,"Prüfer",null,null,null,null,null,null,null,0,0,"",null,null,"",null,null,0,0,"",null,{"$f":"IF(#REF!<>\"\",IF(AND(#REF!=#REF!,#REF!=#REF!),1,0),\"\")","v":{"$error":"#REF!"}},{"$f":"IF(#REF!<>\"\",IF(AND(#REF!=#REF!,#REF!=#REF!,#REF!=I28),1,0),\"\")","v":{"$error":"#REF!"}},{"$error":"#REF!"},null,0,0,null,null,0,6,null,0,30,null,2,2,2,6,2,2,2,6,{"$f":"IF(#REF!=\"\",\"\",IF(#REF!=#REF!,2,0))","v":{"$error":"#REF!"}},{"$f":"IF(#REF!=\"\",\"\",IF(#REF!=#REF!,2,0))","v":{"$error":"#REF!"}},{"$f":"IF(#REF!=\"\",\"\",IF(#REF!=#REF!,2,0))","v":{"$error":"#REF!"}},{"$error":"#REF!"},30,2,2,2,2,2,2,{"$f":"IF(#REF!=\"\",\"\",IF(#REF!=$I27,2,0))","v":{"$error":"#REF!"}},{"$f":"IF(#REF!=\"\",\"\",IF(#REF!=$I27,2,0))","v":{"$error":"#REF!"}},{"$f":"IF(#REF!=\"\",\"\",IF(#REF!=$I27,2,0))","v":{"$error":"#REF!"}},null,null,null,null,21,"A",1,21,1,1,null,null,21,"A",1,21,1,1]
[null,21,{"$f":"IF(input!C28=\"\",\"\",input!C28)","v":1},{"$f":"IF(input!D28=\"\",\"\",input!D28)","v":1},{"$f":"IF(input!E28=\"\",\"\",input!E28)","v":0},{"$f":"IF(input!F28=\"\",\"\",input!F28)","v":1},{"$f":"IF(input!G28=\"\",\"\",input!G28)","v":0},{"$f":"IF(input!H28=\"\",\"\",input!H28)","v":1},{"$f":"IF(input!I28=\"\",\"\",input!I28)","v":1},null,"x",null,"Geprüft gesamt",null,null,{"$f":"IF(C8<>\"\",COUNT(C8:C57),\"\")","v":36},null,{"$f":"IF(F8<>\"\",COUNT(F8:F57),\"\")","v":36},null,{"$f":"IF(#REF!<>\"\",COUNT(#REF!),\"\")","v":{"$error":"#REF!"}},null,{"$f":"P28","v":36},null,null,null,null,null,null,null,0,0,"",null,null,"",null,null,0,0,"",null,{"$f":"IF(#REF!<>\"\",IF(AND(#REF!=#REF!,#REF!=#REF!),1,0),\"\")","v":{"$error":"#REF!"}},{"$f":"IF(#REF!<>\"\",IF(AND(#REF!=#REF!,#REF!=#REF!,#REF!=I29),1,0),\"\")","v":{"$error":"#REF!"}},{"$error":"#REF!"},null,0,0,null,null,2,4,null,2,12,null,2,0,0,2,0,2,0,2,{"$f":"IF(#REF!=\"\",\"\",IF(#REF!=#REF!,2,0))","v":{"$error":"#REF!"}},{"$f":"IF(#REF!=\"\",\"\",IF(#REF!=#REF!,2,0))","v":{"$error":"#REF!"}},{"$f":"IF(#REF!=\"\",\"\",IF(#REF!=#REF!,2,0))","v":{"$error":"#REF!"}},{"$error":"#REF!"},14,2,2,0,2,0,2,{"$f":"IF(#REF!=\"\",\"\",IF(#REF!=$I28,2,0))","v":{"$error":"#REF!"}},{"$f":"IF(#REF!=\"\",\"\",IF(#REF!=$I28,2,0))","v":{"$error":"#REF!"}},{"$f":"IF(#REF!=\"\",\"\",IF(#REF!=$I28,2,0))","v":{"$error":"#REF!"}},null,null,null,null,22,"A",1,22,0,0,null,null,22,"A",1,22,0,0]
[null,22,{"$f":"IF(input!C29=\"\",\"\",input!C29)","v":0},{"$f":"IF(input!D29=\"\",\"\",input!D29)","v":0},{"$f":"IF(input!E29=\"\",\"\",input!E29)","v":1},{"$f":"IF(input!F29=\"\",\"\",input!F29)","v":0},{"$f":"IF(input!G29=\"\",\"\",input!G29)","v":1},{"$f":"IF(input!H29=\"\",\"\",input!H29)","v":0},{"$f":"IF(input!I29=\"\",\"\",input!I29)","v":0},null,"x",null,"# Matched",null,null,{"$f":"IF(C8<>\"\",SUM(AD7:AD56),\"\")","v":29},null,{"$f":"IF(F8<>\"\",SUM(AL7:AL56),\"\")","v":31},null,{"$f":"IF(#REF!<>\"\",SUM(AP7:AP56),\"\")","v":{"$error":"#REF!"}},null,{"$f":"IF(P28<>\"\",SUM(AT7:AT56),\"\")","v":28},null,null,null,null,null,null,null,1,1,"",null,null,"",null,null,1,1,"",null,{"$f":"IF(#REF!<>\"\",IF(AND(#REF!=#REF!,#REF!=#REF!),1,0),\"\")","v":{"$error":"#REF!"}},{"$f":"IF(#REF!<>\"\",IF(AND(#REF!=#REF!,#REF!=#REF!,#REF!=I30),1,0),\"\")","v":{"$error":"#REF!"}},{"$error":"#REF!"},null,1,1,null,null,4,2,null,12,2,null,2,0,0,2,0,2,0,2,{"$f":"IF(#REF!=\"\",\"\",IF(#REF!=#REF!,2,0))","v":{"$error":"#REF!"}},{"$f":"IF(#REF!=\"\",\"\",IF(#REF!=#REF!,2,0))","v":{"$error":"#REF!"}},{"$f":"IF(#REF!=\"\",\"\",IF(#REF!=#REF!,2,0))","v":{"$error":"#REF!"}},{"$error":"#REF!"},14,2,2,0,2,0,2,{"$f":"IF(#REF!=\"\",\"\",IF(#REF!=$I29,2,0))","v":{"$error":"#REF!"}},{"$f":"IF(#REF!=\"\",\"\",IF(#REF!=$I29,2,0))","v":{"$error":"#REF!"}},{"$f":"IF(#REF!=\"\",\"\",IF(#REF!=$I29,2,0))","v":{"$error":"#REF!"}},null,null,null,null,23,"A",1,23,1,1,null,null,23,"A",1,23,1,1]
[null,23,{"$f":"IF(input!C30=\"\",\"\",input!C30)","v":1},{"$f":"IF(input!D30=\"\",\"\",input!D30)","v":1},{"$f":"IF(input!E30=\"\",\"\",input!E30)","v":1},{"$f":"IF(input!F30=\"\",\"\",input!F30)","v":1},{"$f":"IF(input!G30=\"\",\"\",input!G30)","v":1},{"$f":"IF(input!H30=\"\",\"\",input!H30)","v":1},{"$f":"IF(input!I30=\"\",\"\",input!I30)","v":1},null,"+",null,"95% upper CI",null,null,{"$f":"IF(P29<>\"\",IF(P28=P29,1,(2*(P29+1)*FINV(0.025,2*(P29+1),2*(P28-P29)))/(2*(P28-P29)+2*(P29+1)*FINV(0.025,2*(P29+1),2*(P28-P29)))),\"\")","v":0.91805636023479109},null,{"$f":"IF(R29<>\"\",IF(R28=R29,1,(2*(R29+1)*FINV(0.025,2*(R29+1),2*(R28-R29)))/(2*(R28-R29)+2*(R29+1)*FINV(0.025,2*(R29+1),2*(R28-R29)))),\"\")","v":0.9533223393969098},null,{"$f":"IF(T29<>\"\",IF(T28=T29,1,(2*(T29+1)*FINV(0.025,2*(T29+1),2*(T28-T29)))/(2*(T28-T29)+2*(T29+1)*FINV(0.025,2*(T29+1),2*(T28-T29)))),\"\")","v":{"$error":"#REF!"}},null,{"$f":"IF(V29<>\"\",IF(V28=V29,1,(2*(V29+1)*FINV(0.025,2*(V29+1),2*(V28-V29)))/(2*(V28-V29)+2*(V29+1)*FINV(0.025,2*(V29+1),2*(V28-V29)))),\"\")","v":0.89884946965508727},null,null,null,null,null,null,null,1,1,"",null,null,"",null,null,1,1,"",null,{"$f":"IF(#REF!<>\"\",IF(AND(#REF!=#REF!,#REF!=#REF!),1,0),\"\")","v":{"$error":"#REF!"}},{"$f":"IF(#REF!<>\"\",IF(AND(#REF!=#REF!,#REF!=#REF!,#REF!=I31),1,0),\"\")","v":{"$error":"#REF!"}},{"$error":"#REF!"},null,1,1,null,null,0,6,null,0,30,null,2,2,2,6,2,2,2,6,{"$f":"IF(#REF!=\"\",\"\",IF(#REF!=#REF!,2,0))","v":{"$error":"#REF!"}},{"$f":"IF(#REF!=\"\",\"\",IF(#REF!=#REF!,2,0))","v":{"$error":"#REF!"}},{"$f":"IF(#REF!=\"\",\"\",IF(#REF!=#REF!,2,0))","v":{"$error":"#REF!"}},{"$error":"#REF!"},30,2,2,2,2,2,2,{"$f":"IF(#REF!=\"\",\"\",IF(#REF!=$I30,2,0))","v":{"$error":"#REF!"}},{"$f":"IF(#REF!=\"\",\"\",IF(#REF!=$I30,2,0))","v":{"$error":"#REF!"}},{"$f":"IF(#REF!=\"\",\"\",IF(#REF!=$I30,2,0))","v":{"$error":"#REF!"}},null,null,null,null,24,"A",1,24,1,1,null,null,24,"A",1,24,1,1]
[null,24,{"$f":"IF(input!C31=\"\",\"\",input!C31)","v":1},{"$f":"IF(input!D31=\"\",\"\",input!D31)","v":1},{"$f":"IF(input!E31=\"\",\"\",input!E31)","v":1},{"$f":"IF(input!F31=\"\",\"\",input!F31)","v":1},{"$f":"IF(input!G31=\"\",\"\",input!G31)","v":1},{"$f":"IF(input!H31=\"\",\"\",input!H31)","v":1},{"$f":"IF(input!I31=\"\",\"\",input!I31)","v":1},null,"+",null,"Ergebnis",null,null,{"$f":"IF(P28<>\"\",(P29/P28)/AG3,\"\")","v":{"$error":"#DIV/0!"}},null,{"$f":"IF(R28<>\"\",(R29/R28)/AG3,\"\")","v":{"$error":"#DIV/0!"}},null,{"$f":"IF(T28<>\"\",(T29/T28)/AG3,\"\")","v":{"$error":"#REF!"}},null,{"$f":"IF(V28<>\"\",V29/V28,\"\")","v":0.77777777777777779},null,null,null,null,null,null,null,1,1,"",null,null,"",null,null,1,1,"",null,{"$f":"IF(#REF!<>\"\",IF(AND(#REF!=#REF!,#REF!=#REF!),1,0),\"\")","v":{"$error":"#REF!"}},{"$f":"IF(#REF!<>\"\",IF(AND(#REF!=#REF!,#REF!=#REF!,#REF!=I32),1,0),\"\")","v":{"$error":"#REF!"}},{"$error":"#REF!"},null,1,1,null,null,0,6,null,0,30,null,2,2,2,6,2,2,2,6,{"$f":"IF(#REF!=\"\",\"\",IF(#REF!=#REF!,2,0))","v":{"$error":"#REF!"}},{"$f":"IF(#REF!=\"\",\"\",IF(#REF!=#REF!,2,0))","v":{"$error":"#REF!"}},{"$f":"IF(#REF!=\"\",\"\",IF(#REF!=#REF!,2,0))","v":{"$error":"#REF!"}},{"$error":"#REF!"},30,2,2,2,2,2,2,{"$f":"IF(#REF!=\"\",\"\",IF(#REF!=$I31,2,0))","v":{"$error":"#REF!"}},{"$f":"IF(#REF!=\"\",\"\",IF(#REF!=$I31,2,0))","v":{"$error":"#REF!"}},{"$f":"IF(#REF!=\"\",\"\",IF(#REF!=$I31,2,0))","v":{"$error":"#REF!"}},null,null,null,null,25,"A",1,25,0,0,null,null,25,"A",1,25,0,0]
[null,25,{"$f":"IF(input!C32=\"\",\"\",input!C32)","v":0},{"$f":"IF(input!D32=\"\",\"\",input!D32)","v":0},{"$f":"IF(input!E32=\"\",\"\",input!E32)","v":0},{"$f":"IF(input!F32=\"\",\"\",input!F32)","v":0},{"$f":"IF(input!G32=\"\",\"\",input!G32)","v":0},{"$f":"IF(input!H32=\"\",\"\",input!H32)","v":0},{"$f":"IF(input!I32=\"\",\"\",input!I32)","v":0},null,"-",null,"95% lower CI",null,null,{"$f":"IF(P29<>\"\",IF(P29=0,0,(2*P29*FINV(0.975,2*P29,2*(P28-P29+1)))/(2*(P28-P29+1)+2*P29*FINV(0.975,2*P29,2*(P28-P29+1)))),\"\")","v":0.63975198382497478},null,{"$f":"IF(R29<>\"\",IF(P29=0,0,(2*R29*FINV(0.975,2*R29,2*(R28-R29+1)))/(2*(R28-R29+1)+2*R29*FINV(0.975,2*R29,2*(R28-R29+1)))),\"\")","v":0.70502505188936837},null,{"$f":"IF(T29<>\"\",IF(P29=0,0,(2*T29*FINV(0.975,2*T29,2*(T28-T29+1)))/(2*(T28-T29+1)+2*T29*FINV(0.975,2*T29,2*(T28-T29+1)))),\"\")","v":{"$error":"#REF!"}},null,{"$f":"IF(V29<>\"\",IF(P29=0,0,(2*V29*FINV(0.975,2*V29,2*(V28-V29+1)))/(2*(V28-V29+1)+2*V29*FINV(0.975,2*V29,2*(V28-V29+1)))),\"\")","v":0.60848235084261848},null,null,null,null,null,null,null,0,0,"",null,null,"",null,null,1,1,"",null,{"$f":"IF(#REF!<>\"\",IF(AND(#REF!=#REF!,#REF!=#REF!),1,0),\"\")","v":{"$error":"#REF!"}},{"$f":"IF(#REF!<>\"\",IF(AND(#REF!=#REF!,#REF!=#REF!,#REF!=I33),1,0),\"\")","v":{"$error":"#REF!"}},{"$error":"#REF!"},null,0,0,null,null,6,0,null,30,0,null,2,2,2,6,2,2,2,6,{"$f":"IF(#REF!=\"\",\"\",IF(#REF!=#REF!,2,0))","v":{"$error":"#REF!"}},{"$f":"IF(#REF!=\"\",\"\",IF(#REF!=#REF!,2,0))","v":{"$error":"#REF!"}},{"$f":"IF(#REF!=\"\",\"\",IF(#REF!=#REF!,2,0))","v":{"$error":"#REF!"}},{"$error":"#REF!"},30,2,2,2,2,2,2,{"$f":"IF(#REF!=\"\",\"\",IF(#REF!=$I32,2,0))","v":{"$error":"#REF!"}},{"$f":"IF(#REF!=\"\",\"\",IF(#REF!=$I32,2,0))","v":{"$error":"#REF!"}},{"$f":"IF(#REF!=\"\",\"\",IF(#REF!=$I32,2,0))","v":{"$error":"#REF!"}},null,null,null,null,26,"A",1,26,0,0,null,null,26,"A",1,26,0,0]
[null,26,{"$f":"IF(input!C33=\"\",\"\",input!C33)","v":0},{"$f":"IF(input!D33=\"\",\"\",input!D33)","v":1},{"$f":"IF(input!E33=\"\",\"\",input!E33)","v":0},{"$f":"IF(input!F33=\"\",\"\",input!F33)","v":0},{"$f":"IF(input!G33=\"\",\"\",input!G33)","v":0},{"$f":"IF(input!H33=\"\",\"\",input!H33)","v":0},{"$f":"IF(input!I33=\"\",\"\",input!I33)","v":0},null,"x",null,"Fleiss Kappa",null,null,{"$f":"BG73/AG3","v":{"$error":"#DIV/0!"}},null,{"$f":"BK73/AG3","v":{"$error":"#DIV/0!"}},null,{"$f":"BO73/AG3","v":{"$error":"#REF!"}},null,{"$f":"BP73","v":0.7599999999999999},null,null,null,null,null,null,null,1,1,"",null,null,"",null,null,1,1,"",null,{"$f":"IF(#REF!<>\"\",IF(AND(#REF!=#REF!,#REF!=#REF!),1,0),\"\")","v":{"$error":"#REF!"}},{"$f":"IF(#REF!<>\"\",IF(AND(#REF!=#REF!,#REF!=#REF!,#REF!=I34),1,0),\"\")","v":{"$error":"#REF!"}},{"$error":"#REF!"},null,1,1,null,null,5,1,null,20,0,null,0,2,0,2,2,2,2,6,{"$f":"IF(#REF!=\"\",\"\",IF(#REF!=#REF!,2,0))","v":{"$error":"#REF!"}},{"$f":"IF(#REF!=\"\",\"\",IF(#REF!=#REF!,2,0))","v":{"$error":"#REF!"}},{"$f":"IF(#REF!=\"\",\"\",IF(#REF!=#REF!,2,0))","v":{"$error":"#REF!"}},{"$error":"#REF!"},20,2,0,2,2,2,2,{"$f":"IF(#REF!=\"\",\"\",IF(#REF!=$I33,2,0))","v":{"$error":"#REF!"}},{"$f":"IF(#REF!=\"\",\"\",IF(#REF!=$I33,2,0))","v":{"$error":"#REF!"}},{"$f":"IF(#REF!=\"\",\"\",IF(#REF!=$I33,2,0))","v":{"$error":"#REF!"}},null,null,null,null,27,"A",1,27,1,1,null,null,27,"A",1,27,1,1]
[null,27,{"$f":"IF(input!C34=\"\",\"\",input!C34)","v":1},{"$f":"IF(input!D34=\"\",\"\",input!D34)","v":1},{"$f":"IF(input!E34=\"\",\"\",input!E34)","v":1},{"$f":"IF(input!F34=\"\",\"\",input!F34)","v":1},{"$f":"IF(input!G34=\"\",\"\",input!G34)","v":1},{"$f":"IF(input!H34=\"\",\"\",input!H34)","v":1},{"$f":"IF(input!I34=\"\",\"\",input!I34)","v":1},null,"+",null,null,null,null,null,null,null,null,null,null,null,null,null,null,null,null,null,null,1,1,"",null,null,"",null,null,1,1,"",null,{"$f":"IF(#REF!<>\"\",IF(AND(#REF!=#REF!,#REF!=#REF!),1,0),\"\")","v":{"$error":"#REF!"}},{"$f":"IF(#REF!<>\"\",IF(AND(#REF!=#REF!,#REF!=#REF!,#REF!=I35),1,0),\"\")","v":{"$error":"#REF!"}},{"$error":"#REF!"},null,1,1,null,null,0,6,null,0,30,null,2,2,2,6,2,2,2,6,{"$f":"IF(#REF!=\"\",\"\",IF(#REF!=#REF!,2,0))","v":{"$error":"#REF!"}},{"$f":"IF(#REF!=\"\",\"\",IF(#REF!=#REF!,2,0))","v":{"$error":"#REF!"}},{"$f":"IF(#REF!=\"\",\"\",IF(#REF!=#REF!,2,0))","v":{"$error":"#REF!"}},{"$error":"#REF!"},30,2,2,2,2,2,2,{"$f":"IF(#REF!=\"\",\"\",IF(#REF!=$I34,2,0))","v":{"$error":"#REF!"}},{"$f":"IF(#REF!=\"\",\"\",IF(#REF!=$I34,2,0))","v":{"$error":"#REF!"}},{"$f":"IF(#REF!=\"\",\"\",IF(#REF!=$I34,2,0))","v":{"$error":"#REF!"}},null,null,null,null,28,"A",1,28,1,1,null,null,28,"A",1,28,1,1]
[null,28,{"$f":"IF(input!C35=\"\",\"\",input!C35)","v":1},{"$f":"IF(input!D35=\"\",\"\",input!D35)","v":1},{"$f":"IF(input!E35=\"\",\"\",input!E35)","v":1},{"$f":"IF(input!F35=\"\",\"\",input!F35)","v":1},{"$f":"IF(input!G35=\"\",\"\",input!G35)","v":1},{"$f":"IF(input!H35=\"\",\"\",input!H35)","v":1},{"$f":"IF(input!I35=\"\",\"\",input!I35)","v":1},null,"+",null,"Prüfer vs. Standard",null,null,null,null,null,null,null,null,null,null,null,null,null,null,null,null,1,1,"",null,null,"",null,null,1,1,"",null,{"$f":"IF(#REF!<>\"\",IF(AND(#REF!=#REF!,#REF!=#REF!),1,0),\"\")","v":{"$error":"#REF!"}},{"$f":"IF(#REF!<>\"\",IF(AND(#REF!=#REF!,#REF!=#REF!,#REF!=I36),1,0),\"\")","v":{"$error":"#REF!"}},{"$error":"#REF!"},null,1,1,null,null,0,6,null,0,30,null,2,2,2,6,2,2,2,6,{"$f":"IF(#REF!=\"\",\"\",IF(#REF!=#REF!,2,0))","v":{"$error":"#REF!"}},{"$f":"IF(#REF!=\"\",\"\",IF(#REF!=#REF!,2,0))","v":{"$error":"#REF!"}},{"$f":"IF(#REF!=\"\",\"\",IF(#REF!=#REF!,2,0))","v":{"$error":"#REF!"}},{"$error":"#REF!"},30,2,2,2,2,2,2,{"$f":"IF(#REF!=\"\",\"\",IF(#REF!=$I35,2,0))","v":{"$error":"#REF!"}},{"$f":"IF(#REF!=\"\",\"\",IF(#REF!=$I35,2,0))","v":{"$error":"#REF!"}},{"$f":"IF(#REF!=\"\",\"\",IF(#REF!=$I35,2,0))","v":{"$error":"#REF!"}},null,null,null,null,29,"A",1,29,1,1,null,null,29,"A",1,29,1,1]
[null,29,{"$f":"IF(input!C36=\"\",\"\",input!C36)","v":1},{"$f":"IF(input!D36=\"\",\"\",input!D36)","v":1},{"$f":"IF(input!E36=\"\",\"\",input!E36)","v":1},{"$f":"IF(input!F36=\"\",\"\",input!F36)","v":1},{"$f":"IF(input!G36=\"\",\"\",input!G36)","v":1},{"$f":"IF(input!H36=\"\",\"\",input!H36)","v":1},{"$f":"IF(input!I36=\"\",\"\",input!I36)","v":1},null,"+",null,"Source",null,null,"Einzelne Prüfer vs. Standard",null,null,null,null,null,"Alle Prüfer vs. Standard ",null,null,null,null,null,null,null,1,1,"",null,null,"",null,null,0,0,"",null,{"$f":"IF(#REF!<>\"\",IF(AND(#REF!=#REF!,#REF!=#REF!),1,0),\"\")","v":{"$error":"#REF!"}},{"$f":"IF(#REF!<>\"\",IF(AND(#REF!=#REF!,#REF!=#REF!,#REF!=I37),1,0),\"\")","v":{"$error":"#REF!"}},{"$error":"#REF!"},null,0,0,null,null,0,6,null,0,30,null,2,2,2,6,2,2,2,6,{"$f":"IF(#REF!=\"\",\"\",IF(#REF!=#REF!,2,0))","v":{"$error":"#REF!"}},{"$f":"IF(#REF!=\"\",\"\",IF(#REF!=#REF!,2,0))","v":{"$error":"#REF!"}},{"$f":"IF(#REF!=\"\",\"\",IF(#REF!=#REF!,2,0))","v":{"$error":"#REF!"}},{"$error":"#REF!"},30,2,2,2,2,2,2,{"$f":"IF(#REF!=\"\",\"\",IF(#REF!=$I36,2,0))","v":{"$error":"#REF!"}},{"$f":"IF(#REF!=\"\",\"\",IF(#REF!=$I36,2,0))","v":{"$error":"#REF!"}},{"$f":"IF(#REF!=\"\",\"\",IF(#REF!=$I36,2,0))","v":{"$error":"#REF!"}},null,null,null,null,30,"A",1,30,0,0,null,null,30,"A",1,30,0,0]
[null,30,{"$f":"IF(input!C37=\"\",\"\",input!C37)","v":0},{"$f":"IF(input!D37=\"\",\"\",input!D37)","v":0},{"$f":"IF(input!E37=\"\",\"\",input!E37)","v":0},{"$f":"IF(input!F37=\"\",\"\",input!F37)","v":0},{"$f":"IF(input!G37=\"\",\"\",input!G37)","v":0},{"$f":"IF(input!H37=\"\",\"\",input!H37)","v":1},{"$f":"IF(input!I37=\"\",\"\",input!I37)","v":0},null,"x",null,null,null,null,{"$f":"P27","v":"Prüfer A"},null,{"$f":"R27","v":"Prüfer B"},null,{"$f":"T27","v":"Prüfer C"},null,null,null,null,null,null,null,null,null,1,1,"",null,null,"",null,null,1,1,"",null,{"$f":"IF(#REF!<>\"\",IF(AND(#REF!=#REF!,#REF!=#REF!),1,0),\"\")","v":{"$error":"#REF!"}},{"$f":"IF(#REF!<>\"\",IF(AND(#REF!=#REF!,#REF!=#REF!,#REF!=I38),1,0),\"\")","v":{"$error":"#REF!"}},{"$error":"#REF!"},null,1,1,null,null,5,1,null,20,0,null,2,2,2,6,2,0,0,2,{"$f":"IF(#REF!=\"\",\"\",IF(#REF!=#REF!,2,0))","v":{"$error":"#REF!"}},{"$f":"IF(#REF!=\"\",\"\",IF(#REF!=#REF!,2,0))","v":{"$error":"#REF!"}},{"$f":"IF(#REF!=\"\",\"\",IF(#REF!=#REF!,2,0))","v":{"$error":"#REF!"}},{"$error":"#REF!"},20,2,2,2,2,2,0,{"$f":"IF(#REF!=\"\",\"\",IF(#REF!=$I37,2,0))","v":{"$error":"#REF!"}},{"$f":"IF(#REF!=\"\",\"\",IF(#REF!=$I37,2,0))","v":{"$error":"#REF!"}},{"$f":"IF(#REF!=\"\",\"\",IF(#REF!=$I37,2,0))","v":{"$error":"#REF!"}},null,null,null,null,31,"A",1,31,1,1,null,null,31,"A",1,31,1,1]
[null,31,{"$f":"IF(input!C38=\"\",\"\",input!C38)","v":1},{"$f":"IF(input!D38=\"\",\"\",input!D38)","v":1},{"$f":"IF(input!E38=\"\",\"\",input!E38)","v":1},{"$f":"IF(input!F38=\"\",\"\",input!F38)","v":1},{"$f":"IF(input!G38=\"\",\"\",input!G38)","v":1},{"$f":"IF(input!H38=\"\",\"\",input!H38)","v":1},{"$f":"IF(input!I38=\"\",\"\",input!I38)","v":1},null,{"$f":"IF(C38<>\"\",IF(SUM(C38:H38)=9,\"+\",IF(SUM(C38:H38)=0,\"-\",\"x\")),\"\")","v":"x"},null,"Geprüft gesamt",null,null,{"$f":"P28","v":36},null,{"$f":"R28","v":36},null,{"$f":"T28","v":{"$error":"#REF!"}},null,{"$f":"P38","v":36},null,null,null,null,null,null,null,1,1,"",null,null,"",null,null,1,1,"",null,{"$f":"IF(#REF!<>\"\",IF(AND(#REF!=#REF!,#REF!=#REF!),1,0),\"\")","v":{"$error":"#REF!"}},{"$f":"IF(#REF!<>\"\",IF(AND(#REF!=#REF!,#REF!=#REF!,#REF!=I39),1,0),\"\")","v":{"$error":"#REF!"}},{"$error":"#REF!"},null,1,1,null,null,0,6,null,0,30,null,2,2,2,6,2,2,2,6,{"$f":"IF(#REF!=\"\",\"\",IF(#REF!=#REF!,2,0))","v":{"$error":"#REF!"}},{"$f":"IF(#REF!=\"\",\"\",IF(#REF!=#REF!,2,0))","v":{"$error":"#REF!"}},{"$f":"IF(#REF!=\"\",\"\",IF(#REF!=#REF!,2,0))","v":{"$error":"#REF!"}},{"$error":"#REF!"},30,2,2,2,2,2,2,{"$f":"IF(#REF!=\"\",\"\",IF(#REF!=$I38,2,0))","v":{"$error":"#REF!"}},{"$f":"IF(#REF!=\"\",\"\",IF(#REF!=$I38,2,0))","v":{"$error":"#REF!"}},{"$f":"IF(#REF!=\"\",\"\",IF(#REF!=$I38,2,0))","v":{"$error":"#REF!"}},null,null,null,null,32,"A",1,32,1,1,null,null,32,"A",1,32,1,1]
[null,32,{"$f":"IF(input!C39=\"\",\"\",input!C39)","v":1},{"$f":"IF(input!D39=\"\",\"\",input!D39)","v":1},{"$f":"IF(input!E39=\"\",\"\",input!E39)","v":1},{"$f":"IF(input!F39=\"\",\"\",input!F39)","v":1},{"$f":"IF(input!G39=\"\",\"\",input!G39)","v":1},{"$f":"IF(input!H39=\"\",\"\",input!H39)","v":1},{"$f":"IF(input!I39=\"\",\"\",input!I39)","v":1},null,"x",null,"# Matched",null,null,{"$f":"IF(P38<>\"\",SUM(AE7:AE56),\"\")","v":28},null,{"$f":"IF(R38<>\"\",SUM(AM7:AM56),\"\")","v":30},null,{"$f":"IF(T38<>\"\",SUM(AQ7:AQ56),\"\")","v":{"$error":"#REF!"}},null,{"$f":"IF(P38<>\"\",SUM(AU7:AU56),\"\")","v":27},null,null,null,null,null,null,null,{"$f":"IF(C40<>\"\",IF(AND(C40=D40,D40=E40),1,0),\"\")","v":1},{"$f":"IF(C40<>\"\",IF(AND(C40=D40,D40=E40,E40=I40),1,0),\"\")","v":1},"",null,null,"",null,null,{"$f":"IF(F40<>\"\",IF(AND(F40=G40,F40=H40),1,0),\"\")","v":1},{"$f":"IF(F40<>\"\",IF(AND(F40=G40,G40=H40,H40=I40),1,0),\"\")","v":1},{"$f":"IF(AL39<>\"\",IF(AL39<>AM39,I40,\"\"),\"\")","v":""},null,{"$f":"IF(#REF!<>\"\",IF(AND(#REF!=#REF!,#REF!=#REF!),1,0),\"\")","v":{"$error":"#REF!"}},{"$f":"IF(#REF!<>\"\",IF(AND(#REF!=#REF!,#REF!=#REF!,#REF!=I40),1,0),\"\")","v":{"$error":"#REF!"}},{"$f":"IF(AP39<>\"\",IF(AP39<>AQ39,I40,\"\"),\"\")","v":{"$error":"#REF!"}},null,{"$f":"IF(C40=\"\",\"\",IF(OR(SUM(C40:H40)=6,SUM(C40:H40)=0),1,0))","v":1},{"$f":"IF(C40=\"\",\"\",IF(AND(SUM(C40:I40)>0,SUM(C40:I40)<7),0,1))","v":1},null,null,0,6,null,0,30,null,2,2,2,6,2,2,2,6,{"$f":"IF(#REF!=\"\",\"\",IF(#REF!=#REF!,2,0))","v":{"$error":"#REF!"}},{"$f":"IF(#REF!=\"\",\"\",IF(#REF!=#REF!,2,0))","v":{"$error":"#REF!"}},{"$f":"IF(#REF!=\"\",\"\",IF(#REF!=#REF!,2,0))","v":{"$error":"#REF!"}},{"$error":"#REF!"},30,2,2,2,2,2,2,{"$f":"IF(#REF!=\"\",\"\",IF(#REF!=$I39,2,0))","v":{"$error":"#REF!"}},{"$f":"IF(#REF!=\"\",\"\",IF(#REF!=$I39,2,0))","v":{"$error":"#REF!"}},{"$f":"IF(#REF!=\"\",\"\",IF(#REF!=$I39,2,0))","v":{"$error":"#REF!"}},null,null,null,null,33,"A",1,33,{"$f":"C40","v":1},1,null,null,33,"A",1,33,1,1]
[null,33,{"$f":"IF(input!C40=\"\",\"\",input!C40)","v":1},{"$f":"IF(input!D40=\"\",\"\",input!D40)","v":1},{"$f":"IF(input!E40=\"\",\"\",input!E40)","v":1},{"$f":"IF(input!F40=\"\",\"\",input!F40)","v":1},{"$f":"IF(input!G40=\"\",\"\",input!G40)","v":1},{"$f":"IF(input!H40=\"\",\"\",input!H40)","v":1},{"$f":"IF(input!I40=\"\",\"\",input!I40)","v":1},null,"x",null,"False Positive (*5)",null,null,{"$f":"IF(P38<>\"\",COUNTIF(AF7:AF56,\"=1\"),\"\")","v":0},null,{"$f":"IF(R38<>\"\",COUNTIF(AN7:AN56,\"=1\"),\"\")","v":0},null,{"$f":"IF(T38<>\"\",COUNTIF(AR7:AR56,\"=1\"),\"\")","v":{"$error":"#REF!"}},null,null,null,null,null,null,null,null,null,0,0,"",null,null,"",null,null,0,0,"",null,{"$f":"IF(#REF!<>\"\",IF(AND(#REF!=#REF!,#REF!=#REF!),1,0),\"\")","v":{"$error":"#REF!"}},{"$f":"IF(#REF!<>\"\",IF(AND(#REF!=#REF!,#REF!=#REF!,#REF!=I41),1,0),\"\")","v":{"$error":"#REF!"}},{"$error":"#REF!"},null,0,0,null,null,{"$f":"COUNTIF(C40:H40,0)","v":0},{"$f":"COUNTIF(C40:H40,1)","v":6},null,0,30,null,{"$f":"IF(C40=\"\",\"\",IF(C40=D40,2,0))","v":2},{"$f":"IF(E40=\"\",\"\",IF(C40=E40,2,0))","v":2},{"$f":"IF(D40=\"\",\"\",IF(D40=E40,2,0))","v":2},6,{"$f":"IF(G40=\"\",\"\",IF(F40=G40,2,0))","v":2},{"$f":"IF(H40=\"\",\"\",IF(F40=H40,2,0))","v":2},{"$f":"IF(H40=\"\",\"\",IF(G40=H40,2,0))","v":2},6,{"$f":"IF(#REF!=\"\",\"\",IF(#REF!=#REF!,2,0))","v":{"$error":"#REF!"}},{"$f":"IF(#REF!=\"\",\"\",IF(#REF!=#REF!,2,0))","v":{"$error":"#REF!"}},{"$f":"IF(#REF!=\"\",\"\",IF(#REF!=#REF!,2,0))","v":{"$error":"#REF!"}},{"$error":"#REF!"},30,{"$f":"IF(C40=\"\",\"\",IF(C40=$I40,2,0))","v":2},{"$f":"IF(D40=\"\",\"\",IF(D40=$I40,2,0))","v":2},{"$f":"IF(E40=\"\",\"\",IF(E40=$I40,2,0))","v":2},{"$f":"IF(F40=\"\",\"\",IF(F40=$I40,2,0))","v":2},{"$f":"IF(G40=\"\",\"\",IF(G40=$I40,2,0))","v":2},{"$f":"IF(H40=\"\",\"\",IF(H40=$I40,2,0))","v":2},{"$f":"IF(#REF!=\"\",\"\",IF(#REF!=$I40,2,0))","v":{"$error":"#REF!"}},{"$f":"IF(#REF!=\"\",\"\",IF(#REF!=$I40,2,0))","v":{"$error":"#REF!"}},{"$f":"IF(#REF!=\"\",\"\",IF(#REF!=$I40,2,0))","v":{"$error":"#REF!"}},null,null,null,null,34,"A",1,34,0,0,null,null,34,"A",1,34,0,0]
[null,34,{"$f":"IF(input!C41=\"\",\"\",input!C41)","v":0},{"$f":"IF(input!D41=\"\",\"\",input!D41)","v":0},{"$f":"IF(input!E41=\"\",\"\",input!E41)","v":1},{"$f":"IF(input!F41=\"\",\"\",input!F41)","v":0},{"$f":"IF(input!G41=\"\",\"\",input!G41)","v":0},{"$f":"IF(input!H41=\"\",\"\",input!H41)","v":1},{"$f":"IF(input!I41=\"\",\"\",input!I41)","v":0},null,"x",null,"False Negative (*6)",null,null,{"$f":"IF(P38<>\"\",COUNTIF(AF7:AF56,\"=0\"),\"\")","v":1},null,{"$f":"IF(R38<>\"\",COUNTIF(AN7:AN56,\"=0\"),\"\")","v":1},null,{"$f":"IF(T38<>\"\",COUNTIF(AR7:AR56,\"=0\"),\"\")","v":{"$error":"#REF!"}},null,null,null,null,null,null,null,null,null,1,1,"",null,null,"",null,null,1,1,"",null,{"$f":"IF(#REF!<>\"\",IF(AND(#REF!=#REF!,#REF!=#REF!),1,0),\"\")","v":{"$error":"#REF!"}},{"$f":"IF(#REF!<>\"\",IF(AND(#REF!=#REF!,#REF!=#REF!,#REF!=I42),1,0),\"\")","v":{"$error":"#REF!"}},{"$error":"#REF!"},null,1,1,null,null,4,2,null,12,2,null,2,0,0,2,2,0,0,2,{"$f":"IF(#REF!=\"\",\"\",IF(#REF!=#REF!,2,0))","v":{"$error":"#REF!"}},{"$f":"IF(#REF!=\"\",\"\",IF(#REF!=#REF!,2,0))","v":{"$error":"#REF!"}},{"$f":"IF(#REF!=\"\",\"\",IF(#REF!=#REF!,2,0))","v":{"$error":"#REF!"}},{"$error":"#REF!"},14,2,2,0,2,2,0,{"$f":"IF(#REF!=\"\",\"\",IF(#REF!=$I41,2,0))","v":{"$error":"#REF!"}},{"$f":"IF(#REF!=\"\",\"\",IF(#REF!=$I41,2,0))","v":{"$error":"#REF!"}},{"$f":"IF(#REF!=\"\",\"\",IF(#REF!=$I41,2,0))","v":{"$error":"#REF!"}},null,null,null,null,35,"A",1,35,1,1,null,null,35,"A",1,35,1,1]
[null,35,{"$f":"IF(input!C42=\"\",\"\",input!C42)","v":1},{"$f":"IF(input!D42=\"\",\"\",input!D42)","v":1},{"$f":"IF(input!E42=\"\",\"\",input!E42)","v":1},{"$f":"IF(input!F42=\"\",\"\",input!F42)","v":1},{"$f":"IF(input!G42=\"\",\"\",input!G42)","v":1},{"$f":"IF(input!H42=\"\",\"\",input!H42)","v":1},{"$f":"IF(input!I42=\"\",\"\",input!I42)","v":1},null,"x",null,"Mixed",null,null,{"$f":"IF(P38<>\"\",P38-P39-P40-P41,\"\")","v":7},null,{"$f":"IF(R38<>\"\",R38-R39-R40-R41,\"\")","v":5},null,{"$f":"IF(T38<>\"\",T38-T39-T40-T41,\"\")","v":{"$error":"#REF!"}},null,null,null,null,null,null,null,null,null,0,0,"",null,null,"",null,null,1,1,"",null,{"$f":"IF(#REF!<>\"\",IF(AND(#REF!=#REF!,#REF!=#REF!),1,0),\"\")","v":{"$error":"#REF!"}},{"$f":"IF(#REF!<>\"\",IF(AND(#REF!=#REF!,#REF!=#REF!,#REF!=I43),1,0),\"\")","v":{"$error":"#REF!"}},{"$error":"#REF!"},null,0,0,null,null,0,6,null,0,30,null,2,2,2,6,2,2,2,6,{"$f":"IF(#REF!=\"\",\"\",IF(#REF!=#REF!,2,0))","v":{"$error":"#REF!"}},{"$f":"IF(#REF!=\"\",\"\",IF(#REF!=#REF!,2,0))","v":{"$error":"#REF!"}},{"$f":"IF(#REF!=\"\",\"\",IF(#REF!=#REF!,2,0))","v":{"$error":"#REF!"}},{"$error":"#REF!"},30,2,2,2,2,2,2,{"$f":"IF(#REF!=\"\",\"\",IF(#REF!=$I42,2,0))","v":{"$error":"#REF!"}},{"$f":"IF(#REF!=\"\",\"\",IF(#REF!=$I42,2,0))","v":{"$error":"#REF!"}},{"$f":"IF(#REF!=\"\",\"\",IF(#REF!=$I42,2,0))","v":{"$error":"#REF!"}},null,null,null,null,36,"A",1,36,1,1,null,null,36,"A",1,36,1,1]
[null,36,{"$f":"IF(input!C43=\"\",\"\",input!C43)","v":1},{"$f":"IF(input!D43=\"\",\"\",input!D43)","v":1},{"$f":"IF(input!E43=\"\",\"\",input!E43)","v":0},{"$f":"IF(input!F43=\"\",\"\",input!F43)","v":1},{"$f":"IF(input!G43=\"\",\"\",input!G43)","v":1},{"$f":"IF(input!H43=\"\",\"\",input!H43)","v":1},{"$f":"IF(input!I43=\"\",\"\",input!I43)","v":1},null,"x",null,"95% upper CI (*7)",null,null,{"$f":"IF(P39<>\"\",IF(P38=P39,1,(2*(P39+1)*FINV(0.025,2*(P39+1),2*(P38-P39)))/(2*(P38-P39)+2*(P39+1)*FINV(0.025,2*(P39+1),2*(P38-P39)))),\"\")","v":0.89884946965508727},null,{"$f":"IF(R39<>\"\",IF(R38=R39,1,(2*(R39+1)*FINV(0.025,2*(R39+1),2*(R38-R39)))/(2*(R38-R39)+2*(R39+1)*FINV(0.025,2*(R39+1),2*(R38-R39)))),\"\")","v":0.93627986639161431},null,{"$f":"IF(T39<>\"\",IF(T38=T39,1,(2*(T39+1)*FINV(0.025,2*(T39+1),2*(T38-T39)))/(2*(T38-T39)+2*(T39+1)*FINV(0.025,2*(T39+1),2*(T38-T39)))),\"\")","v":{"$error":"#REF!"}},null,{"$f":"IF(V39<>\"\",IF(V38=V39,1,(2*(V39+1)*FINV(0.025,2*(V39+1),2*(V38-V39)))/(2*(V38-V39)+2*(V39+1)*FINV(0.025,2*(V39+1),2*(V38-V39)))),\"\")","v":0.87879670587616476},null,null,null,null,null,null,null,"","","",null,null,"",null,null,"","","",null,{"$f":"IF(#REF!<>\"\",IF(AND(#REF!=#REF!,#REF!=#REF!),1,0),\"\")","v":{"$error":"#REF!"}},{"$f":"IF(#REF!<>\"\",IF(AND(#REF!=#REF!,#REF!=#REF!,#REF!=I44),1,0),\"\")","v":{"$error":"#REF!"}},{"$error":"#REF!"},null,"","",null,null,1,5,null,0,20,null,2,0,0,2,2,2,2,6,{"$f":"IF(#REF!=\"\",\"\",IF(#REF!=#REF!,2,0))","v":{"$error":"#REF!"}},{"$f":"IF(#REF!=\"\",\"\",IF(#REF!=#REF!,2,0))","v":{"$error":"#REF!"}},{"$f":"IF(#REF!=\"\",\"\",IF(#REF!=#REF!,2,0))","v":{"$error":"#REF!"}},{"$error":"#REF!"},20,2,2,0,2,2,2,{"$f":"IF(#REF!=\"\",\"\",IF(#REF!=$I43,2,0))","v":{"$error":"#REF!"}},{"$f":"IF(#REF!=\"\",\"\",IF(#REF!=$I43,2,0))","v":{"$error":"#REF!"}},{"$f":"IF(#REF!=\"\",\"\",IF(#REF!=$I43,2,0))","v":{"$error":"#REF!"}},null,null,null,null,37,"A",1,37,"","",null,null,51,"A",2,1,1,0]
[null,37,{"$f":"IF(input!C44=\"\",\"\",input!C44)","v":""},{"$f":"IF(input!D44=\"\",\"\",input!D44)","v":""},{"$f":"IF(input!E44=\"\",\"\",input!E44)","v":""},{"$f":"IF(input!F44=\"\",\"\",input!F44)","v":""},{"$f":"IF(input!G44=\"\",\"\",input!G44)","v":""},{"$f":"IF(input!H44=\"\",\"\",input!H44)","v":""},{"$f":"IF(input!I44=\"\",\"\",input!I44)","v":""},null,"",null,"Ergebnis",null,null,{"$f":"IF(P38<>\"\",P39/P38,\"\")","v":0.77777777777777779},null,{"$f":"IF(R38<>\"\",R39/R38,\"\")","v":0.83333333333333337},null,{"$f":"IF(T38<>\"\",T39/T38,\"\")","v":{"$error":"#REF!"}},null,{"$f":"IF(V38<>\"\",V39/V38,\"\")","v":0.75},null,null,null,null,null,null,null,"","","",null,null,"",null,null,"","","",null,{"$f":"IF(#REF!<>\"\",IF(AND(#REF!=#REF!,#REF!=#REF!),1,0),\"\")","v":{"$error":"#REF!"}},{"$f":"IF(#REF!<>\"\",IF(AND(#REF!=#REF!,#REF!=#REF!,#REF!=I45),1,0),\"\")","v":{"$error":"#REF!"}},{"$error":"#REF!"},null,"","",null,null,0,0,null,0,0,null,"","","",0,"","","",0,{"$f":"IF(#REF!=\"\",\"\",IF(#REF!=#REF!,2,0))","v":{"$error":"#REF!"}},{"$f":"IF(#REF!=\"\",\"\",IF(#REF!=#REF!,2,0))","v":{"$error":"#REF!"}},{"$f":"IF(#REF!=\"\",\"\",IF(#REF!=#REF!,2,0))","v":{"$error":"#REF!"}},{"$error":"#REF!"},0,"","","","","","",{"$f":"IF(#REF!=\"\",\"\",IF(#REF!=$I44,2,0))","v":{"$error":"#REF!"}},{"$f":"IF(#REF!=\"\",\"\",IF(#REF!=$I44,2,0))","v":{"$error":"#REF!"}},{"$f":"IF(#REF!=\"\",\"\",IF(#REF!=$I44,2,0))","v":{"$error":"#REF!"}},null,null,null,null,38,"A",1,38,"","",null,null,52,"A",2,2,1,1]
[null,38,{"$f":"IF(input!C45=\"\",\"\",input!C45)","v":""},{"$f":"IF(input!D45=\"\",\"\",input!D45)","v":""},{"$f":"IF(input!E45=\"\",\"\",input!E45)","v":""},{"$f":"IF(input!F45=\"\",\"\",input!F45)","v":""},{"$f":"IF(input!G45=\"\",\"\",input!G45)","v":""},{"$f":"IF(input!H45=\"\",\"\",input!H45)","v":""},{"$f":"IF(input!I45=\"\",\"\",input!I45)","v":""},null,"",null,"95% lower CI (*7)",null,null,{"$f":"IF(P39<>\"\",IF(P39=0,0,(2*P39*FINV(0.975,2*P39,2*(P38-P39+1)))/(2*(P38-P39+1)+2*P39*FINV(0.975,2*P39,2*(P38-P39+1)))),\"\")","v":0.60848235084261848},null,{"$f":"IF(R39<>\"\",IF(P39=0,0,(2*R39*FINV(0.975,2*R39,2*(R38-R39+1)))/(2*(R38-R39+1)+2*R39*FINV(0.975,2*R39,2*(R38-R39+1)))),\"\")","v":0.671884067957082},null,{"$f":"IF(T39<>\"\",IF(P39=0,0,(2*T39*FINV(0.975,2*T39,2*(T38-T39+1)))/(2*(T38-T39+1)+2*T39*FINV(0.975,2*T39,2*(T38-T39+1)))),\"\")","v":{"$error":"#REF!"}},null,{"$f":"IF(V39<>\"\",IF(P39=0,0,(2*V39*FINV(0.975,2*V39,2*(V38-V39+1)))/(2*(V38-V39+1)+2*V39*FINV(0.975,2*V39,2*(V38-V39+1)))),\"\")","v":0.5779704154218559},null,null,null,null,null,null,null,"","","",null,null,"",null,null,"","","",null,{"$f":"IF(#REF!<>\"\",IF(AND(#REF!=#REF!,#REF!=#REF!),1,0),\"\")","v":{"$error":"#REF!"}},{"$f":"IF(#REF!<>\"\",IF(AND(#REF!=#REF!,#REF!=#REF!,#REF!=I46),1,0),\"\")","v":{"$error":"#REF!"}},{"$error":"#REF!"},null,"","",null,null,0,0,null,0,0,null,"","","",0,"","","",0,{"$f":"IF(#REF!=\"\",\"\",IF(#REF!=#REF!,2,0))","v":{"$error":"#REF!"}},{"$f":"IF(#REF!=\"\",\"\",IF(#REF!=#REF!,2,0))","v":{"$error":"#REF!"}},{"$f":"IF(#REF!=\"\",\"\",IF(#REF!=#REF!,2,0))","v":{"$error":"#REF!"}},{"$error":"#REF!"},0,"","","","","","",{"$f":"IF(#REF!=\"\",\"\",IF(#REF!=$I45,2,0))","v":{"$error":"#REF!"}},{"$f":"IF(#REF!=\"\",\"\",IF(#REF!=$I45,2,0))","v":{"$error":"#REF!"}},{"$f":"IF(#REF!=\"\",\"\",IF(#REF!=$I45,2,0))","v":{"$error":"#REF!"}},null,null,null,null,39,"A",1,39,"","",null,null,53,"A",2,3,0,0]
[null,39,{"$f":"IF(input!C46=\"\",\"\",input!C46)","v":""},{"$f":"IF(input!D46=\"\",\"\",input!D46)","v":""},{"$f":"IF(input!E46=\"\",\"\",input!E46)","v":""},{"$f":"IF(input!F46=\"\",\"\",input!F46)","v":""},{"$f":"IF(input!G46=\"\",\"\",input!G46)","v":""},{"$f":"IF(input!H46=\"\",\"\",input!H46)","v":""},{"$f":"IF(input!I46=\"\",\"\",input!I46)","v":""},null,"",null,"Fleiss Kappa",null,null,{"$f":"BQ74","v":0.78236886727935318},null,{"$f":"BT74","v":0.81805645335057109},null,{"$f":"BW74","v":{"$error":"#DIV/0!"}},null,{"$f":"BQ75","v":0.80021266031496208},null,null,null,null,null,null,null,"","","",null,null,"",null,null,"","","",null,{"$f":"IF(#REF!<>\"\",IF(AND(#REF!=#REF!,#REF!=#REF!),1,0),\"\")","v":{"$error":"#REF!"}},{"$f":"IF(#REF!<>\"\",IF(AND(#REF!=#REF!,#REF!=#REF!,#REF!=I47),1,0),\"\")","v":{"$error":"#REF!"}},{"$error":"#REF!"},null,"","",null,null,0,0,null,0,0,null,"","","",0,"","","",0,{"$f":"IF(#REF!=\"\",\"\",IF(#REF!=#REF!,2,0))","v":{"$error":"#REF!"}},{"$f":"IF(#REF!=\"\",\"\",IF(#REF!=#REF!,2,0))","v":{"$error":"#REF!"}},{"$f":"IF(#REF!=\"\",\"\",IF(#REF!=#REF!,2,0))","v":{"$error":"#REF!"}},{"$error":"#REF!"},0,"","","","","","",{"$f":"IF(#REF!=\"\",\"\",IF(#REF!=$I46,2,0))","v":{"$error":"#REF!"}},{"$f":"IF(#REF!=\"\",\"\",IF(#REF!=$I46,2,0))","v":{"$error":"#REF!"}},{"$f":"IF(#REF!=\"\",\"\",IF(#REF!=$I46,2,0))","v":{"$error":"#REF!"}},null,null,null,null,40,"A",1,40,"","",null,null,54,"A",2,4,0,0]
[null,40,{"$f":"IF(input!C47=\"\",\"\",input!C47)","v":""},{"$f":"IF(input!D47=\"\",\"\",input!D47)","v":""},{"$f":"IF(input!E47=\"\",\"\",input!E47)","v":""},{"$f":"IF(input!F47=\"\",\"\",input!F47)","v":""},{"$f":"IF(input!G47=\"\",\"\",input!G47)","v":""},{"$f":"IF(input!H47=\"\",\"\",input!H47)","v":""},{"$f":"IF(input!I47=\"\",\"\",input!I47)","v":""},null,"",null,null,null,null,null,null,null,null,null,null,null,null,null,null,null,null,null,null,"","","",null,null,"",null,null,"","","",null,{"$f":"IF(#REF!<>\"\",IF(AND(#REF!=#REF!,#REF!=#REF!),1,0),\"\")","v":{"$error":"#REF!"}},{"$f":"IF(#REF!<>\"\",IF(AND(#REF!=#REF!,#REF!=#REF!,#REF!=I48),1,0),\"\")","v":{"$error":"#REF!"}},{"$error":"#REF!"},null,"","",null,null,0,0,null,0,0,null,"","","",0,"","","",0,{"$f":"IF(#REF!=\"\",\"\",IF(#REF!=#REF!,2,0))","v":{"$error":"#REF!"}},{"$f":"IF(#REF!=\"\",\"\",IF(#REF!=#REF!,2,0))","v":{"$error":"#REF!"}},{"$f":"IF(#REF!=\"\",\"\",IF(#REF!=#REF!,2,0))","v":{"$error":"#REF!"}},{"$error":"#REF!"},0,"","","","","","",{"$f":"IF(#REF!=\"\",\"\",IF(#REF!=$I47,2,0))","v":{"$error":"#REF!"}},{"$f":"IF(#REF!=\"\",\"\",IF(#REF!=$I47,2,0))","v":{"$error":"#REF!"}},{"$f":"IF(#REF!=\"\",\"\",IF(#REF!=$I47,2,0))","v":{"$error":"#REF!"}},null,null,null,null,41,"A",1,41,"","",null,null,55,"A",2,5,0,0]
[null,{"$f":"B47+1","v":41},{"$f":"IF(input!C48=\"\",\"\",input!C48)","v":""},{"$f":"IF(input!D48=\"\",\"\",input!D48)","v":""},{"$f":"IF(input!E48=\"\",\"\",input!E48)","v":""},{"$f":"IF(input!F48=\"\",\"\",input!F48)","v":""},{"$f":"IF(input!G48=\"\",\"\",input!G48)","v":""},{"$f":"IF(input!H48=\"\",\"\",input!H48)","v":""},{"$f":"IF(input!I48=\"\",\"\",input!I48)","v":""},null,"",null,"Anmerkungen:",null,null,null,null,null,null,null,null,null,null,null,null,null,null,null,null,"","","",null,null,"",null,null,"","","",null,{"$f":"IF(#REF!<>\"\",IF(AND(#REF!=#REF!,#REF!=#REF!),1,0),\"\")","v":{"$error":"#REF!"}},{"$f":"IF(#REF!<>\"\",IF(AND(#REF!=#REF!,#REF!=#REF!,#REF!=I49),1,0),\"\")","v":{"$error":"#REF!"}},{"$error":"#REF!"},null,"","",null,null,0,0,null,0,0,null,"","","",0,"","","",0,{"$f":"IF(#REF!=\"\",\"\",IF(#REF!=#REF!,2,0))","v":{"$error":"#REF!"}},{"$f":"IF(#REF!=\"\",\"\",IF(#REF!=#REF!,2,0))","v":{"$error":"#REF!"}},{"$f":"IF(#REF!=\"\",\"\",IF(#REF!=#REF!,2,0))","v":{"$error":"#REF!"}},{"$error":"#REF!"},0,"","","","","","",{"$f":"IF(#REF!=\"\",\"\",IF(#REF!=$I48,2,0))","v":{"$error":"#REF!"}},{"$f":"IF(#REF!=\"\",\"\",IF(#REF!=$I48,2,0))","v":{"$error":"#REF!"}},{"$f":"IF(#REF!=\"\",\"\",IF(#REF!=$I48,2,0))","v":{"$error":"#REF!"}},null,null,null,null,42,"A",1,42,"","",null,null,56,"A",2,6,1,1]
[null,{"$f":"B48+1","v":42},{"$f":"IF(input!C49=\"\",\"\",input!C49)","v":""},{"$f":"IF(input!D49=\"\",\"\",input!D49)","v":""},{"$f":"IF(input!E49=\"\",\"\",input!E49)","v":""},{"$f":"IF(input!F49=\"\",\"\",input!F49)","v":""},{"$f":"IF(input!G49=\"\",\"\",input!G49)","v":""},{"$f":"IF(input!H49=\"\",\"\",input!H49)","v":""},{"$f":"IF(input!I49=\"\",\"\",input!I49)","v":""},null,"",null,null,null,null,null,null,null,null,null,null,null,null,null,null,null,null,null,null,"","","",null,null,"",null,null,"","","",null,{"$f":"IF(#REF!<>\"\",IF(AND(#REF!=#REF!,#REF!=#REF!),1,0),\"\")","v":{"$error":"#REF!"}},{"$f":"IF(#REF!<>\"\",IF(AND(#REF!=#REF!,#REF!=#REF!,#REF!=I50),1,0),\"\")","v":{"$error":"#REF!"}},{"$error":"#REF!"},null,"","",null,null,0,0,null,0,0,null,"","","",0,"","","",0,{"$f":"IF(#REF!=\"\",\"\",IF(#REF!=#REF!,2,0))","v":{"$error":"#REF!"}},{"$f":"IF(#REF!=\"\",\"\",IF(#REF!=#REF!,2,0))","v":{"$error":"#REF!"}},{"$f":"IF(#REF!=\"\",\"\",IF(#REF!=#REF!,2,0))","v":{"$error":"#REF!"}},{"$error":"#REF!"},0,"","","","","","",{"$f":"IF(#REF!=\"\",\"\",IF(#REF!=$I49,2,0))","v":{"$error":"#REF!"}},{"$f":"IF(#REF!=\"\",\"\",IF(#REF!=$I49,2,0))","v":{"$error":"#REF!"}},{"$f":"IF(#REF!=\"\",\"\",IF(#REF!=$I49,2,0))","v":{"$error":"#REF!"}},null,null,null,null,43,"A",1,43,"","",null,null,57,"A",2,7,1,1]
[null,43,{"$f":"IF(input!C50=\"\",\"\",input!C50)","v":""},{"$f":"IF(input!D50=\"\",\"\",input!D50)","v":""},{"$f":"IF(input!E50=\"\",\"\",input!E50)","v":""},{"$f":"IF(input!F50=\"\",\"\",input!F50)","v":""},{"$f":"IF(input!G50=\"\",\"\",input!G50)","v":""},{"$f":"IF(input!H50=\"\",\"\",input!H50)","v":""},{"$f":"IF(input!I50=\"\",\"\",input!I50)","v":""},null,"",null,null,null,null,null,null,null,null,null,null,null,null,null,null,null,null,null,null,"","","",null,null,"",null,null,"","","",null,{"$f":"IF(#REF!<>\"\",IF(AND(#REF!=#REF!,#REF!=#REF!),1,0),\"\")","v":{"$error":"#REF!"}},{"$f":"IF(#REF!<>\"\",IF(AND(#REF!=#REF!,#REF!=#REF!,#REF!=I51),1,0),\"\")","v":{"$error":"#REF!"}},{"$error":"#REF!"},null,"","",null,null,0,0,null,0,0,null,"","","",0,"","","",0,{"$f":"IF(#REF!=\"\",\"\",IF(#REF!=#REF!,2,0))","v":{"$error":"#REF!"}},{"$f":"IF(#REF!=\"\",\"\",IF(#REF!=#REF!,2,0))","v":{"$error":"#REF!"}},{"$f":"IF(#REF!=\"\",\"\",IF(#REF!=#REF!,2,0))","v":{"$error":"#REF!"}},{"$error":"#REF!"},0,"","","","","","",{"$f":"IF(#REF!=\"\",\"\",IF(#REF!=$I50,2,0))","v":{"$error":"#REF!"}},{"$f":"IF(#REF!=\"\",\"\",IF(#REF!=$I50,2,0))","v":{"$error":"#REF!"}},{"$f":"IF(#REF!=\"\",\"\",IF(#REF!=$I50,2,0))","v":{"$error":"#REF!"}},null,null,null,null,44,"A",1,44,"","",null,null,58,"A",2,8,1,1]
[null,44,{"$f":"IF(input!C51=\"\",\"\",input!C51)","v":""},{"$f":"IF(input!D51=\"\",\"\",input!D51)","v":""},{"$f":"IF(input!E51=\"\",\"\",input!E51)","v":""},{"$f":"IF(input!F51=\"\",\"\",input!F51)","v":""},{"$f":"IF(input!G51=\"\",\"\",input!G51)","v":""},{"$f":"IF(input!H51=\"\",\"\",input!H51)","v":""},{"$f":"IF(input!I51=\"\",\"\",input!I51)","v":""},null,"",null,null,null,null,null,null,null,null,null,null,null,null,null,null,null,null,null,null,"","","",null,null,"",null,null,"","","",null,{"$f":"IF(#REF!<>\"\",IF(AND(#REF!=#REF!,#REF!=#REF!),1,0),\"\")","v":{"$error":"#REF!"}},{"$f":"IF(#REF!<>\"\",IF(AND(#REF!=#REF!,#REF!=#REF!,#REF!=I52),1,0),\"\")","v":{"$error":"#REF!"}},{"$error":"#REF!"},null,"","",null,null,0,0,null,0,0,null,"","","",0,"","","",0,{"$f":"IF(#REF!=\"\",\"\",IF(#REF!=#REF!,2,0))","v":{"$error":"#REF!"}},{"$f":"IF(#REF!=\"\",\"\",IF(#REF!=#REF!,2,0))","v":{"$error":"#REF!"}},{"$f":"IF(#REF!=\"\",\"\",IF(#REF!=#REF!,2,0))","v":{"$error":"#REF!"}},{"$error":"#REF!"},0,"","","","","","",{"$f":"IF(#REF!=\"\",\"\",IF(#REF!=$I51,2,0))","v":{"$error":"#REF!"}},{"$f":"IF(#REF!=\"\",\"\",IF(#REF!=$I51,2,0))","v":{"$error":"#REF!"}},{"$f":"IF(#REF!=\"\",\"\",IF(#REF!=$I51,2,0))","v":{"$error":"#REF!"}},null,null,null,null,45,"A",1,45,"","",null,null,59,"A",2,9,0,0]
[null,45,{"$f":"IF(input!C52=\"\",\"\",input!C52)","v":""},{"$f":"IF(input!D52=\"\",\"\",input!D52)","v":""},{"$f":"IF(input!E52=\"\",\"\",input!E52)","v":""},{"$f":"IF(input!F52=\"\",\"\",input!F52)","v":""},{"$f":"IF(input!G52=\"\",\"\",input!G52)","v":""},{"$f":"IF(input!H52=\"\",\"\",input!H52)","v":""},{"$f":"IF(input!I52=\"\",\"\",input!I52)","v":""},null,"",null,null,null,null,null,null,null,null,null,null,null,null,null,null,null,null,null,null,"","","",null,null,"",null,null,"","","",null,{"$f":"IF(#REF!<>\"\",IF(AND(#REF!=#REF!,#REF!=#REF!),1,0),\"\")","v":{"$error":"#REF!"}},{"$f":"IF(#REF!<>\"\",IF(AND(#REF!=#REF!,#REF!=#REF!,#REF!=I53),1,0),\"\")","v":{"$error":"#REF!"}},{"$error":"#REF!"},null,"","",null,null,0,0,null,0,0,null,"","","",0,"","","",0,{"$f":"IF(#REF!=\"\",\"\",IF(#REF!=#REF!,2,0))","v":{"$error":"#REF!"}},{"$f":"IF(#REF!=\"\",\"\",IF(#REF!=#REF!,2,0))","v":{"$error":"#REF!"}},{"$f":"IF(#REF!=\"\",\"\",IF(#REF!=#REF!,2,0))","v":{"$error":"#REF!"}},{"$error":"#REF!"},0,"","","","","","",{"$f":"IF(#REF!=\"\",\"\",IF(#REF!=$I52,2,0))","v":{"$error":"#REF!"}},{"$f":"IF(#REF!=\"\",\"\",IF(#REF!=$I52,2,0))","v":{"$error":"#REF!"}},{"$f":"IF(#REF!=\"\",\"\",IF(#REF!=$I52,2,0))","v":{"$error":"#REF!"}},null,null,null,null,46,"A",1,46,"","",null,null,60,"A",2,10,1,1]
[null,46,{"$f":"IF(input!C53=\"\",\"\",input!C53)","v":""},{"$f":"IF(input!D53=\"\",\"\",input!D53)","v":""},{"$f":"IF(input!E53=\"\",\"\",input!E53)","v":""},{"$f":"IF(input!F53=\"\",\"\",input!F53)","v":""},{"$f":"IF(input!G53=\"\",\"\",input!G53)","v":""},{"$f":"IF(input!H53=\"\",\"\",input!H53)","v":""},{"$f":"IF(input!I53=\"\",\"\",input!I53)","v":""},null,"",null,null,null,null,null,null,null,null,null,null,null,null,null,null,null,null,null,null,"","","",null,null,"",null,null,"","","",null,{"$f":"IF(#REF!<>\"\",IF(AND(#REF!=#REF!,#REF!=#REF!),1,0),\"\")","v":{"$error":"#REF!"}},{"$f":"IF(#REF!<>\"\",IF(AND(#REF!=#REF!,#REF!=#REF!,#REF!=I54),1,0),\"\")","v":{"$error":"#REF!"}},{"$error":"#REF!"},null,"","",null,null,0,0,null,0,0,null,"","","",0,"","","",0,{"$f":"IF(#REF!=\"\",\"\",IF(#REF!=#REF!,2,0))","v":{"$error":"#REF!"}},{"$f":"IF(#REF!=\"\",\"\",IF(#REF!=#REF!,2,0))","v":{"$error":"#REF!"}},{"$f":"IF(#REF!=\"\",\"\",IF(#REF!=#REF!,2,0))","v":{"$error":"#REF!"}},{"$error":"#REF!"},0,"","","","","","",{"$f":"IF(#REF!=\"\",\"\",IF(#REF!=$I53,2,0))","v":{"$error":"#REF!"}},{"$f":"IF(#REF!=\"\",\"\",IF(#REF!=$I53,2,0))","v":{"$error":"#REF!"}},{"$f":"IF(#REF!=\"\",\"\",IF(#REF!=$I53,2,0))","v":{"$error":"#REF!"}},null,null,null,null,47,"A",1,47,"","",null,null,61,"A",2,11,1,1]
[null,47,{"$f":"IF(input!C54=\"\",\"\",input!C54)","v":""},{"$f":"IF(input!D54=\"\",\"\",input!D54)","v":""},{"$f":"IF(input!E54=\"\",\"\",input!E54)","v":""},{"$f":"IF(input!F54=\"\",\"\",input!F54)","v":""},{"$f":"IF(input!G54=\"\",\"\",input!G54)","v":""},{"$f":"IF(input!H54=\"\",\"\",input!H54)","v":""},{"$f":"IF(input!I54=\"\",\"\",input!I54)","v":""},null,"",null,null,null,null,null,null,null,null,null,null,null,null,null,null,null,null,null,null,"","","",null,null,"",null,null,"","","",null,{"$f":"IF(#REF!<>\"\",IF(AND(#REF!=#REF!,#REF!=#REF!),1,0),\"\")","v":{"$error":"#REF!"}},{"$f":"IF(#REF!<>\"\",IF(AND(#REF!=#REF!,#REF!=#REF!,#REF!=I55),1,0),\"\")","v":{"$error":"#REF!"}},{"$error":"#REF!"},null,"","",null,null,0,0,null,0,0,null,"","","",0,"","","",0,{"$f":"IF(#REF!=\"\",\"\",IF(#REF!=#REF!,2,0))","v":{"$error":"#REF!"}},{"$f":"IF(#REF!=\"\",\"\",IF(#REF!=#REF!,2,0))","v":{"$error":"#REF!"}},{"$f":"IF(#REF!=\"\",\"\",IF(#REF!=#REF!,2,0))","v":{"$error":"#REF!"}},{"$error":"#REF!"},0,"","","","","","",{"$f":"IF(#REF!=\"\",\"\",IF(#REF!=$I54,2,0))","v":{"$error":"#REF!"}},{"$f":"IF(#REF!=\"\",\"\",IF(#REF!=$I54,2,0))","v":{"$error":"#REF!"}},{"$f":"IF(#REF!=\"\",\"\",IF(#REF!=$I54,2,0))","v":{"$error":"#REF!"}},null,null,null,null,48,"A",1,48,"","",null,null,62,"A",2,12,0,0]
[null,48,{"$f":"IF(input!C55=\"\",\"\",input!C55)","v":""},{"$f":"IF(input!D55=\"\",\"\",input!D55)","v":""},{"$f":"IF(input!E55=\"\",\"\",input!E55)","v":""},{"$f":"IF(input!F55=\"\",\"\",input!F55)","v":""},{"$f":"IF(input!G55=\"\",\"\",input!G55)","v":""},{"$f":"IF(input!H55=\"\",\"\",input!H55)","v":""},{"$f":"IF(input!I55=\"\",\"\",input!I55)","v":""},null,"",null,null,null,null,null,null,null,null,null,null,null,null,null,null,null,null,null,null,"","","",null,null,"",null,null,"","","",null,{"$f":"IF(#REF!<>\"\",IF(AND(#REF!=#REF!,#REF!=#REF!),1,0),\"\")","v":{"$error":"#REF!"}},{"$f":"IF(#REF!<>\"\",IF(AND(#REF!=#REF!,#REF!=#REF!,#REF!=I56),1,0),\"\")","v":{"$error":"#REF!"}},{"$error":"#REF!"},null,"","",null,null,0,0,null,0,0,null,"","","",0,"","","",0,{"$f":"IF(#REF!=\"\",\"\",IF(#REF!=#REF!,2,0))","v":{"$error":"#REF!"}},{"$f":"IF(#REF!=\"\",\"\",IF(#REF!=#REF!,2,0))","v":{"$error":"#REF!"}},{"$f":"IF(#REF!=\"\",\"\",IF(#REF!=#REF!,2,0))","v":{"$error":"#REF!"}},{"$error":"#REF!"},0,"","","","","","",{"$f":"IF(#REF!=\"\",\"\",IF(#REF!=$I55,2,0))","v":{"$error":"#REF!"}},{"$f":"IF(#REF!=\"\",\"\",IF(#REF!=$I55,2,0))","v":{"$error":"#REF!"}},{"$f":"IF(#REF!=\"\",\"\",IF(#REF!=$I55,2,0))","v":{"$error":"#REF!"}},null,null,null,null,49,"A",1,49,"","",null,null,63,"A",2,13,1,1]
[null,49,{"$f":"IF(input!C56=\"\",\"\",input!C56)","v":""},{"$f":"IF(input!D56=\"\",\"\",input!D56)","v":""},{"$f":"IF(input!E56=\"\",\"\",input!E56)","v":""},{"$f":"IF(input!F56=\"\",\"\",input!F56)","v":""},{"$f":"IF(input!G56=\"\",\"\",input!G56)","v":""},{"$f":"IF(input!H56=\"\",\"\",input!H56)","v":""},{"$f":"IF(input!I56=\"\",\"\",input!I56)","v":""},null,"",null,null,null,null,null,null,null,null,null,null,null,null,null,null,null,null,null,null,"","","",null,null,"",null,null,"","","",null,{"$f":"IF(#REF!<>\"\",IF(AND(#REF!=#REF!,#REF!=#REF!),1,0),\"\")","v":{"$error":"#REF!"}},{"$f":"IF(#REF!<>\"\",IF(AND(#REF!=#REF!,#REF!=#REF!,#REF!=I57),1,0),\"\")","v":{"$error":"#REF!"}},{"$error":"#REF!"},null,"","",null,null,0,0,null,0,0,null,"","","",0,"","","",0,{"$f":"IF(#REF!=\"\",\"\",IF(#REF!=#REF!,2,0))","v":{"$error":"#REF!"}},{"$f":"IF(#REF!=\"\",\"\",IF(#REF!=#REF!,2,0))","v":{"$error":"#REF!"}},{"$f":"IF(#REF!=\"\",\"\",IF(#REF!=#REF!,2,0))","v":{"$error":"#REF!"}},{"$error":"#REF!"},0,"","","","","","",{"$f":"IF(#REF!=\"\",\"\",IF(#REF!=$I56,2,0))","v":{"$error":"#REF!"}},{"$f":"IF(#REF!=\"\",\"\",IF(#REF!=$I56,2,0))","v":{"$error":"#REF!"}},{"$f":"IF(#REF!=\"\",\"\",IF(#REF!=$I56,2,0))","v":{"$error":"#REF!"}},null,null,null,null,50,"A",1,50,"","",null,null,64,"A",2,14,1,1]
[null,50,{"$f":"IF(input!C57=\"\",\"\",input!C57)","v":""},{"$f":"IF(input!D57=\"\",\"\",input!D57)","v":""},{"$f":"IF(input!E57=\"\",\"\",input!E57)","v":""},{"$f":"IF(input!F57=\"\",\"\",input!F57)","v":""},{"$f":"IF(input!G57=\"\",\"\",input!G57)","v":""},{"$f":"IF(input!H57=\"\",\"\",input!H57)","v":""},{"$f":"IF(input!I57=\"\",\"\",input!I57)","v":""},null,"",null,null,null,null,null,null,null,null,null,null,null,null,null,null,null,null,null,null,null,null,null,null,null,null,null,null,null,null,null,null,null,null,null,null,null,null,null,null,0,0,null,0,0,null,"","","",0,"","","",0,{"$f":"IF(#REF!=\"\",\"\",IF(#REF!=#REF!,2,0))","v":{"$error":"#REF!"}},{"$f":"IF(#REF!=\"\",\"\",IF(#REF!=#REF!,2,0))","v":{"$error":"#REF!"}},{"$f":"IF(#REF!=\"\",\"\",IF(#REF!=#REF!,2,0))","v":{"$error":"#REF!"}},{"$error":"#REF!"},0,"","","","","","",{"$f":"IF(#REF!=\"\",\"\",IF(#REF!=$I57,2,0))","v":{"$error":"#REF!"}},{"$f":"IF(#REF!=\"\",\"\",IF(#REF!=$I57,2,0))","v":{"$error":"#REF!"}},{"$f":"IF(#REF!=\"\",\"\",IF(#REF!=$I57,2,0))","v":{"$error":"#REF!"}},null,null,null,null,51,"A",2,1,{"$f":"D8","v":1},{"$f":"I8","v":0},null,null,65,"A",2,15,1,1]
[null,null,null,null,null,null,null,null,null,null,null,null,null,null,null,null,null,null,null,null,null,null,null,null,null,null,null,null,null,null,null,null,null,null,null,null,null,null,null,null,null,null,null,null,null,null,null,null,"Summe",{"$f":"SUM(AX8:AX57)","v":60},{"$f":"SUM(AY8:AY57)","v":156},null,{"$f":"SUM(BA8:BA57)","v":248},{"$f":"SUM(BB8:BB57)","v":728},null,null,null,null,{"$f":"SUM(BG8:BG57)","v":188},null,null,null,{"$f":"SUM(BK8:BK57)","v":196},null,null,null,{"$f":"SUM(BO8:BO57)","v":{"$error":"#REF!"}},{"$f":"SUM(BP8:BP57)","v":976},{"$f":"SUM(BQ8:BQ57)","v":70},68,58,70,66,64,{"$error":"#REF!"},{"$error":"#REF!"},{"$error":"#REF!"},null,null,null,null,52,"A",2,2,1,{"$f":"I9","v":1},null,null,66,"A",2,16,1,1]
[null,null,null,null,null,null,null,null,null,null,null,null,null,null,null,null,null,null,null,null,null,null,null,null,null,null,null,null,null,null,null,null,null,null,null,null,null,null,null,null,null,null,null,null,null,null,null,null,null,null,null,null,null,null,null,{"$f":"COUNT(BD8:BD57)*2","v":72},{"$f":"COUNT(BE8:BE57)*2","v":72},{"$f":"COUNT(BF8:BF57)*2","v":72},{"$f":"SUM(BD59:BF59)","v":216},{"$f":"COUNT(BH8:BH57)*2","v":72},72,72,{"$f":"SUM(BH59:BJ59)","v":216},0,0,0,{"$f":"SUM(BL59:BN59)","v":0},{"$f":"BA68","v":1080},{"$f":"COUNT(BQ8:BQ57)*2","v":72},{"$f":"COUNT(BR8:BR57)*2","v":72},72,72,72,72,0,0,0,null,null,null,null,53,"A",2,3,0,0,null,null,67,"A",2,17,1,1]
[null,null,null,null,null,null,null,null,null,null,null,null,null,null,null,null,null,null,null,null,null,null,null,null,null,null,null,null,null,"A",null,"B",null,null,null,null,null,"C",null,null,null,null,null,null,null,null,null,null,null,{"$f":"AX58+AY58","v":216},null,null,{"$f":"BA58+BB58","v":976},null,null,null,null,null,{"$f":"BG58/BG59","v":0.87037037037037035},null,null,null,{"$f":"BK58/BK59","v":0.90740740740740744},null,null,null,{"$f":"BO58/BO59","v":{"$error":"#REF!"}},{"$f":"BP58/BP59","v":0.90370370370370368},{"$f":"BQ58/BQ59","v":0.97222222222222221},0.94444444444444442,{"$f":"IF(BS59=0,\"\",BS58/BS59)","v":0.80555555555555558},0.97222222222222221,0.91666666666666663,{"$f":"IF(BV59=0,\"\",BV58/BV59)","v":0.88888888888888884},{"$error":"#REF!"},{"$error":"#REF!"},{"$f":"IF(BY59=0,\"\",BY58/BY59)","v":""},null,null,null,null,54,"A",2,4,0,0,null,null,68,"A",2,18,1,1]
[null,null,null,null,null,null,null,null,null,null,null,null,null,null,null,null,null,null,null,null,null,null,null,null,null,null,null,null,null,{"$f":"IF(P28<>\"\",P30-P31,\"\")","v":{"$error":"#DIV/0!"}},null,{"$f":"IF(R28<>\"\",R30-R31,\"\")","v":{"$error":"#DIV/0!"}},null,null,null,null,null,{"$f":"IF(T28<>\"\",T30-T31,\"\")","v":{"$error":"#REF!"}},null,null,null,null,null,null,null,null,null,null,null,null,null,null,null,null,null,null,null,null,{"$f":"COUNTIF($C$8:$E$57,0)","v":31},null,null,null,{"$f":"COUNTIF($F$8:$H$57,0)","v":29},null,null,null,{"$f":"COUNTIF(#REF!,0)","v":{"$error":"#REF!"}},{"$f":"COUNTIF($C$8:$H$57,0)","v":60},{"$f":"COUNTIF(C$8:C$57,0)+COUNTIF($I$8:$I$57,0)","v":21},20,23,21,21,20,{"$f":"COUNTIF(#REF!,0)+COUNTIF($I$8:$I$57,0)","v":{"$error":"#REF!"}},{"$f":"COUNTIF(#REF!,0)+COUNTIF($I$8:$I$57,0)","v":{"$error":"#REF!"}},{"$f":"COUNTIF(#REF!,0)+COUNTIF($I$8:$I$57,0)","v":{"$error":"#REF!"}},null,null,null,null,55,"A",2,5,0,0,null,null,69,"A",2,19,1,1]
[null,null,null,null,null,null,null,null,null,null,null,null,null,null,null,null,null,null,null,null,null,null,null,null,null,null,null,null,null,{"$f":"IF(P28<>\"\",P31-P32,\"\")","v":{"$error":"#DIV/0!"}},null,{"$f":"IF(R28<>\"\",R31-R32,\"\")","v":{"$error":"#DIV/0!"}},null,null,null,null,null,{"$f":"IF(T28<>\"\",T31-T32,\"\")","v":{"$error":"#REF!"}},null,null,null,null,null,null,null,null,null,null,null,{"$f":"AX58/$AX$60","v":0.27777777777777779},{"$f":"AY58/$AX$60","v":0.72222222222222221},null,{"$f":"AX8+AY8","v":6},null,null,null,null,null,{"$f":"COUNTIF($C$8:$E$57,1)","v":77},null,null,null,{"$f":"COUNTIF($F$8:$H$57,1)","v":79},null,null,null,{"$f":"COUNTIF(#REF!,1)","v":{"$error":"#REF!"}},{"$f":"COUNTIF($C$8:$H$57,1)","v":156},{"$f":"COUNTIF(C$8:C$57,1)+COUNTIF($I$8:$I$57,1)","v":51},52,49,51,51,52,{"$f":"COUNTIF(#REF!,1)+COUNTIF($I$8:$I$57,1)","v":{"$error":"#REF!"}},{"$f":"COUNTIF(#REF!,1)+COUNTIF($I$8:$I$57,1)","v":{"$error":"#REF!"}},{"$f":"COUNTIF(#REF!,1)+COUNTIF($I$8:$I$57,1)","v":{"$error":"#REF!"}},null,null,null,null,56,"A",2,6,1,1,null,null,70,"A",2,20,1,1]
[null,null,null,null,null,null,null,null,null,null,null,null,null,null,null,null,null,null,null,null,null,null,null,null,null,null,null,null,null,{"$f":"IF(P28<>\"\",P43-P44,\"\")","v":0.12107169187730948},null,{"$f":"IF(R28<>\"\",R43-R44,\"\")","v":0.10294653305828094},null,null,null,null,null,{"$f":"IF(T28<>\"\",T43-T44,\"\")","v":{"$error":"#REF!"}},null,null,null,null,null,null,null,null,null,null,null,null,null,null,null,null,null,null,null,null,null,null,null,null,null,null,null,null,null,null,null,null,null,null,null,null,null,null,null,null,null,null,null,57,"A",2,7,1,1,null,null,71,"A",2,21,1,1]
[null,null,null,null,null,null,null,null,null,null,null,null,null,null,null,null,null,null,null,null,null,null,null,null,null,null,null,null,null,{"$f":"IF(P28<>\"\",P44-P45,\"\")","v":0.16929542693515931},null,{"$f":"IF(R28<>\"\",R44-R45,\"\")","v":0.16144926537625137},null,null,null,null,null,{"$f":"IF(T28<>\"\",T44-T45,\"\")","v":{"$error":"#REF!"}},null,null,null,null,null,null,null,null,null,null,null,null,null,null,null,null,null,null,null,null,null,null,null,null,null,null,null,null,null,null,null,null,null,null,null,null,null,null,null,null,null,null,null,58,"A",2,8,1,1,null,null,72,"A",2,22,0,0]
[null,null,null,null,null,null,null,null,null,null,null,null,null,null,null,null,null,null,null,null,null,null,null,null,null,null,null,null,null,null,null,null,null,null,null,null,null,null,null,null,null,null,null,null,null,null,null,null,null,null,null,null,null,null,null,null,null,null,{"$f":"BG62+BG61","v":108},null,null,null,{"$f":"BK62+BK61","v":108},null,null,null,{"$f":"BO62+BO61","v":{"$error":"#REF!"}},{"$f":"BP62+BP61","v":216},{"$f":"BQ62+BQ61","v":72},{"$f":"BR62+BR61","v":72},72,72,72,72,{"$error":"#REF!"},{"$error":"#REF!"},{"$error":"#REF!"},null,null,null,null,59,"A",2,9,0,0,null,null,73,"A",2,23,1,1]
[null,null,null,null,null,null,null,null,null,null,null,null,null,null,null,null,null,null,null,null,null,null,null,null,null,null,null,null,null,null,null,null,null,null,null,null,null,null,null,null,null,null,null,null,null,null,null,null,null,{"$f":"AX62*AX62","v":7.7160493827160503E-2},{"$f":"AY62*AY62","v":0.52160493827160492},null,{"$f":"BA62*(BA62-1)","v":30},null,null,null,null,null,{"$f":"BG61/BG65","v":0.28703703703703703},null,null,null,{"$f":"BK61/BK65","v":0.26851851851851855},null,null,null,{"$f":"BO61/BO65","v":{"$error":"#REF!"}},{"$f":"BP61/BP65","v":0.27777777777777779},{"$f":"BQ61/BQ65","v":0.29166666666666669},0.27777777777777779,0.31944444444444442,0.29166666666666669,0.29166666666666669,0.27777777777777779,{"$error":"#REF!"},{"$error":"#REF!"},{"$error":"#REF!"},null,null,null,null,60,"A",2,10,1,1,null,null,74,"A",2,24,1,1]
[null,null,null,null,null,null,null,null,null,null,null,null,null,null,null,null,null,null,null,null,null,null,null,null,null,null,null,null,null,null,null,null,null,null,null,null,null,null,null,null,null,null,null,null,null,null,null,null,null,null,null,null,null,null,null,null,null,null,{"$f":"BG62/BG65","v":0.71296296296296291},null,null,null,{"$f":"BK62/BK65","v":0.73148148148148151},null,null,null,{"$f":"BO62/BO65","v":{"$error":"#REF!"}},{"$f":"BP62/BP65","v":0.72222222222222221},{"$f":"BQ62/BQ65","v":0.70833333333333337},0.72222222222222221,0.68055555555555558,0.70833333333333337,0.70833333333333337,0.72222222222222221,{"$error":"#REF!"},{"$error":"#REF!"},{"$error":"#REF!"},null,null,null,null,61,"A",2,11,1,1,null,null,75,"A",2,25,0,0]
[null,null,null,null,null,null,null,null,null,null,null,null,null,null,null,null,null,null,null,null,null,null,null,null,null,null,null,null,null,null,null,null,null,null,null,null,null,null,null,null,null,null,null,null,null,null,null,null,null,null,null,null,{"$f":"BA66*P28","v":1080},null,null,null,null,null,{"$f":"BG66*BG66","v":8.2390260631001369E-2},null,null,null,{"$f":"BK66*BK66","v":7.2102194787379989E-2},null,null,null,{"$f":"BO66*BO66","v":{"$error":"#REF!"}},{"$f":"BP66*BP66","v":7.7160493827160503E-2},{"$f":"BQ66*BQ66","v":8.5069444444444461E-2},7.7160493827160503E-2,0.10204475308641973,8.5069444444444461E-2,8.5069444444444461E-2,7.7160493827160503E-2,{"$error":"#REF!"},{"$error":"#REF!"},{"$error":"#REF!"},null,null,null,null,62,"A",2,12,0,0,null,null,76,"A",2,26,1,0]
[null,null,null,null,null,null,null,null,null,null,null,null,null,null,null,null,null,null,null,null,null,null,null,null,null,null,null,null,null,null,null,null,null,null,null,null,null,null,null,null,null,null,null,null,null,null,null,null,null,null,null,null,null,null,null,null,null,null,{"$f":"BG67*BG67","v":0.50831618655692723},null,null,null,{"$f":"BK67*BK67","v":0.53506515775034302},null,null,null,{"$f":"BO67*BO67","v":{"$error":"#REF!"}},{"$f":"BP67*BP67","v":0.52160493827160492},0.50173611111111116,0.52160493827160492,0.46315586419753091,0.50173611111111116,0.50173611111111116,0.52160493827160492,{"$error":"#REF!"},{"$error":"#REF!"},{"$error":"#REF!"},null,null,null,null,63,"A",2,13,1,1,null,null,77,"A",2,27,1,1]
[null,null,null,null,null,null,null,null,null,null,null,null,null,null,null,null,null,null,null,null,null,null,null,null,null,null,null,null,null,null,null,null,null,null,null,null,null,null,null,null,null,null,null,null,null,null,null,null,null,null,null,null,null,null,null,null,null,null,null,null,null,null,null,null,null,null,null,null,null,null,null,null,null,null,null,null,null,null,null,null,null,64,"A",2,14,1,1,null,null,78,"A",2,28,1,1]
[null,null,null,null,null,null,null,null,null,null,null,null,null,null,null,null,null,null,null,null,null,null,null,null,null,null,null,null,null,null,null,null,null,null,null,null,null,null,null,null,null,null,null,null,null,null,null,null,null,{"$f":"AX66+AY66","v":0.59876543209876543},null,null,{"$f":"BA60/BA68","v":0.90370370370370368},null,"Pexp",null,null,null,{"$f":"BG69+BG68","v":0.59070644718792864},null,null,null,{"$f":"BK69+BK68","v":0.60716735253772303},null,null,null,{"$f":"BO69+BO68","v":{"$error":"#REF!"}},{"$f":"BP69+BP68","v":0.59876543209876543},{"$f":"BQ69+BQ68","v":0.58680555555555558},0.59876543209876543,0.56520061728395066,0.58680555555555558,0.58680555555555558,0.59876543209876543,{"$error":"#REF!"},{"$error":"#REF!"},{"$error":"#REF!"},null,null,null,null,65,"A",2,15,1,1,null,null,79,"A",2,29,1,1]
[null,null,null,null,null,null,null,null,null,null,null,null,null,null,null,null,null,null,null,null,null,null,null,null,null,null,null,null,null,null,null,null,null,null,null,null,null,null,null,null,null,null,null,null,null,null,null,null,null,null,null,null,null,null,null,null,null,null,"Within Prüfer",null,null,null,null,null,null,null,null,null,null,null,null,null,null,null,null,null,null,null,null,null,null,66,"A",2,16,1,1,null,null,80,"A",2,30,0,0]
[null,null,null,null,null,null,null,null,null,null,null,null,null,null,null,null,null,null,null,null,null,null,null,null,null,null,null,null,null,null,null,null,null,null,null,null,null,null,null,null,null,null,null,null,null,null,null,null,null,null,null,"between",{"$f":"(BA71-AX71)/(1-AX71)","v":0.7599999999999999},null,null,null,null,null,{"$f":"IF(BG60=1,1,(BG60-BG71)/(1-BG71))","v":0.68328445747800581},null,null,null,{"$f":"IF(BK60=1,1,(BK60-BK71)/(1-BK71))","v":0.76429506765604538},null,null,null,{"$f":"IF(BO60=1,1,(BO60-BO71)/(1-BO71))","v":{"$error":"#REF!"}},0.7599999999999999,0.9327731092436975,0.86153846153846148,0.55279503105590067,0.9327731092436975,0.79831932773109238,0.72307692307692295,null,null,null,null,null,null,null,67,"A",2,17,1,1,null,null,81,"A",2,31,1,1]
[null,null,null,null,null,null,null,null,null,null,null,null,null,null,null,null,null,null,null,null,null,null,null,null,null,null,null,null,null,null,null,null,null,null,null,null,null,null,null,null,null,null,null,null,null,null,null,null,null,null,null,null,null,null,null,null,null,null,null,null,null,null,null,null,null,null,null,null,{"$f":"AVERAGE(BQ73:BS73)","v":0.78236886727935318},null,null,{"$f":"AVERAGE(BT73:BV73)","v":0.81805645335057109},null,null,{"$f":"AVERAGE(BW73:BY73)","v":{"$error":"#DIV/0!"}},null,null,null,null,null,null,68,"A",2,18,1,1,null,null,82,"A",2,32,1,1]
[null,null,null,null,null,null,null,null,null,null,null,null,null,null,null,null,null,null,null,null,null,null,null,null,null,null,null,null,null,null,null,null,null,null,null,null,null,null,null,null,null,null,null,null,null,null,null,null,null,null,null,null,null,null,null,null,null,null,null,null,null,null,null,null,null,null,null,null,{"$f":"AVERAGE(BQ73:BY73)","v":0.80021266031496208},null,null,null,null,null,null,null,null,null,null,null,null,69,"A",2,19,1,1,null,null,83,"A",2,33,1,1]
[null,null,null,null,null,null,null,null,null,null,null,null,null,null,null,null,null,null,null,null,null,null,null,null,null,null,null,null,null,null,null,null,null,null,null,null,null,null,null,null,null,null,null,null,null,null,null,null,null,null,null,null,null,null,null,null,null,null,null,null,null,null,null,null,null,null,null,null,null,null,null,null,null,null,null,null,null,null,null,null,null,70,"A",2,20,1,1,null,null,84,"A",2,34,0,0]
[null,null,null,null,null,null,null,null,null,null,null,null,null,null,null,null,null,null,null,null,null,null,null,null,null,null,null,null,null,null,null,null,null,null,null,null,null,null,null,null,null,null,null,null,null,null,null,null,null,null,null,null,null,null,null,null,null,null,null,null,null,null,null,null,null,null,null,null,null,null,null,null,null,null,null,null,null,null,null,null,null,71,"A",2,21,1,1,null,null,85,"A",2,35,1,1]
[null,null,null,null,null,null,null,null,null,null,null,null,null,null,null,null,null,null,null,null,null,null,null,null,null,null,null,null,null,null,null,null,null,null,null,null,null,null,null,null,null,null,null,null,null,null,null,null,null,null,null,null,null,null,null,null,null,null,null,null,null,null,null,null,null,null,null,null,null,null,null,null,null,null,null,null,null,null,null,null,null,72,"A",2,22,0,0,null,null,86,"A",2,36,1,1]
[null,null,null,null,null,null,null,null,null,null,null,null,null,null,null,null,null,null,null,null,null,null,null,null,null,null,null,null,null,null,null,null,null,null,null,null,null,null,null,null,null,null,null,null,null,null,null,null,null,null,null,null,null,null,null,null,null,null,null,null,null,null,null,null,null,null,null,null,null,null,null,null,null,null,null,null,null,null,null,null,null,73,"A",2,23,1,1,null,null,101,"A",3,1,1,0]
[null,null,null,null,null,null,null,null,null,null,null,null,null,null,null,null,null,null,null,null,null,null,null,null,null,null,null,null,null,null,null,null,null,null,null,null,null,null,null,null,null,null,null,null,null,null,null,null,null,null,null,null,null,null,null,null,null,null,null,null,null,null,null,null,null,null,null,null,null,null,null,null,null,null,null,null,null,null,null,null,null,74,"A",2,24,1,1,null,null,102,"A",3,2,1,1]
[null,null,null,null,null,null,null,null,null,null,null,null,null,null,null,null,null,null,null,null,null,null,null,null,null,null,null,null,null,null,null,null,null,null,null,null,null,null,null,null,null,null,null,null,null,null,null,null,null,null,null,null,null,null,null,null,null,null,null,null,null,null,null,null,null,null,null,null,null,null,null,null,null,null,null,null,null,null,null,null,null,75,"A",2,25,0,0,null,null,103,"A",3,3,0,0]
[null,null,null,null,null,null,null,null,null,null,null,null,null,null,null,null,null,null,null,null,null,null,null,null,null,null,null,null,null,null,null,null,null,null,null,null,null,null,null,null,null,null,null,null,null,null,null,null,null,null,null,null,null,null,null,null,null,null,null,null,null,null,null,null,null,null,null,null,null,null,null,null,null,null,null,null,null,null,null,null,null,76,"A",2,26,1,0,null,null,104,"A",3,4,0,0]
[null,null,null,null,null,null,null,null,null,null,null,null,null,null,null,null,null,null,null,null,null,null,null,null,null,null,null,null,null,null,null,null,null,null,null,null,null,null,null,null,null,null,null,null,null,null,null,null,null,null,null,null,null,null,null,null,null,null,null,null,null,null,null,null,null,null,null,null,null,null,null,null,null,null,null,null,null,null,null,null,null,77,"A",2,27,1,1,null,null,105,"A",3,5,0,0]
[null,null,null,null,null,null,null,null,null,null,null,null,null,null,null,null,null,null,null,null,null,null,null,null,null,null,null,null,null,null,null,null,null,null,null,null,null,null,null,null,null,null,null,null,null,null,null,null,null,null,null,null,null,null,null,null,null,null,null,null,null,null,null,null,null,null,null,null,null,null,null,null,null,null,null,null,null,null,null,null,null,78,"A",2,28,1,1,null,null,106,"A",3,6,0,1]
[null,null,null,null,null,null,null,null,null,null,null,null,null,null,null,null,null,null,null,null,null,null,null,null,null,null,null,null,null,null,null,null,null,null,null,null,null,null,null,null,null,null,null,null,null,null,null,null,null,null,null,null,null,null,null,null,null,null,null,null,null,null,null,null,null,null,null,null,null,null,null,null,null,null,null,null,null,null,null,null,null,79,"A",2,29,1,1,null,null,107,"A",3,7,1,1]
[null,null,null,null,null,null,null,null,null,null,null,null,null,null,null,null,null,null,null,null,null,null,null,null,null,null,null,null,null,null,null,null,null,null,null,null,null,null,null,null,null,null,null,null,null,null,null,null,null,null,null,null,null,null,null,null,null,null,null,null,null,null,null,null,null,null,null,null,null,null,null,null,null,null,null,null,null,null,null,null,null,80,"A",2,30,0,0,null,null,108,"A",3,8,1,1]
[null,null,null,null,null,null,null,null,null,null,null,null,null,null,null,null,null,null,null,null,null,null,null,null,null,null,null,null,null,null,null,null,null,null,null,null,null,null,null,null,null,null,null,null,null,null,null,null,null,null,null,null,null,null,null,null,null,null,null,null,null,null,null,null,null,null,null,null,null,null,null,null,null,null,null,null,null,null,null,null,null,81,"A",2,31,1,1,null,null,109,"A",3,9,0,0]
[null,null,null,null,null,null,null,null,null,null,null,null,null,null,null,null,null,null,null,null,null,null,null,null,null,null,null,null,null,null,null,null,null,null,null,null,null,null,null,null,null,null,null,null,null,null,null,null,null,null,null,null,null,null,null,null,null,null,null,null,null,null,null,null,null,null,null,null,null,null,null,null,null,null,null,null,null,null,null,null,null,82,"A",2,32,1,1,null,null,110,"A",3,10,1,1]
[null,null,null,null,null,null,null,null,null,null,null,null,null,null,null,null,null,null,null,null,null,null,null,null,null,null,null,null,null,null,null,null,null,null,null,null,null,null,null,null,null,null,null,null,null,null,null,null,null,null,null,null,null,null,null,null,null,null,null,null,null,null,null,null,null,null,null,null,null,null,null,null,null,null,null,null,null,null,null,null,null,83,"A",2,33,{"$f":"D40","v":1},1,null,null,111,"A",3,11,1,1]
[null,null,null,null,null,null,null,null,null,null,null,null,null,null,null,null,null,null,null,null,null,null,null,null,null,null,null,null,null,null,null,null,null,null,null,null,null,null,null,null,null,null,null,null,null,null,null,null,null,null,null,null,null,null,null,null,null,null,null,null,null,null,null,null,null,null,null,null,null,null,null,null,null,null,null,null,null,null,null,null,null,84,"A",2,34,0,0,null,null,112,"A",3,12,0,0]
[null,null,null,null,null,null,null,null,null,null,null,null,null,null,null,null,null,null,null,null,null,null,null,null,null,null,null,null,null,null,null,null,null,null,null,null,null,null,null,null,null,null,null,null,null,null,null,null,null,null,null,null,null,null,null,null,null,null,null,null,null,null,null,null,null,null,null,null,null,null,null,null,null,null,null,null,null,null,null,null,null,85,"A",2,35,1,1,null,null,113,"A",3,13,1,1]
[null,null,null,null,null,null,null,null,null,null,null,null,null,null,null,null,null,null,null,null,null,null,null,null,null,null,null,null,null,null,null,null,null,null,null,null,null,null,null,null,null,null,null,null,null,null,null,null,null,null,null,null,null,null,null,null,null,null,null,null,null,null,null,null,null,null,null,null,null,null,null,null,null,null,null,null,null,null,null,null,null,86,"A",2,36,1,1,null,null,114,"A",3,14,0,1]
[null,null,null,null,null,null,null,null,null,null,null,null,null,null,null,null,null,null,null,null,null,null,null,null,null,null,null,null,null,null,null,null,null,null,null,null,null,null,null,null,null,null,null,null,null,null,null,null,null,null,null,null,null,null,null,null,null,null,null,null,null,null,null,null,null,null,null,null,null,null,null,null,null,null,null,null,null,null,null,null,null,87,"A",2,37,"","",null,null,115,"A",3,15,1,1]
[null,null,null,null,null,null,null,null,null,null,null,null,null,null,null,null,null,null,null,null,null,null,null,null,null,null,null,null,null,null,null,null,null,null,null,null,null,null,null,null,null,null,null,null,null,null,null,null,null,null,null,null,null,null,null,null,null,null,null,null,null,null,null,null,null,null,null,null,null,null,null,null,null,null,null,null,null,null,null,null,null,88,"A",2,38,"","",null,null,116,"A",3,16,1,1]
[null,null,null,null,null,null,null,null,null,null,null,null,null,null,null,null,null,null,null,null,null,null,null,null,null,null,null,null,null,null,null,null,null,null,null,null,null,null,null,null,null,null,null,null,null,null,null,null,null,null,null,null,null,null,null,null,null,null,null,null,null,null,null,null,null,null,null,null,null,null,null,null,null,null,null,null,null,null,null,null,null,89,"A",2,39,"","",null,null,117,"A",3,17,1,1]
[null,null,null,null,null,null,null,null,null,null,null,null,null,null,null,null,null,null,null,null,null,null,null,null,null,null,null,null,null,null,null,null,null,null,null,null,null,null,null,null,null,null,null,null,null,null,null,null,null,null,null,null,null,null,null,null,null,null,null,null,null,null,null,null,null,null,null,null,null,null,null,null,null,null,null,null,null,null,null,null,null,90,"A",2,40,"","",null,null,118,"A",3,18,1,1]
[null,null,null,null,null,null,null,null,null,null,null,null,null,null,null,null,null,null,null,null,null,null,null,null,null,null,null,null,null,null,null,null,null,null,null,null,null,null,null,null,null,null,null,null,null,null,null,null,null,null,null,null,null,null,null,null,null,null,null,null,null,null,null,null,null,null,null,null,null,null,null,null,null,null,null,null,null,null,null,null,null,91,"A",2,41,"","",null,null,119,"A",3,19,1,1]
[null,null,null,null,null,null,null,null,null,null,null,null,null,null,null,null,null,null,null,null,null,null,null,null,null,null,null,null,null,null,null,null,null,null,null,null,null,null,null,null,null,null,null,null,null,null,null,null,null,null,null,null,null,null,null,null,null,null,null,null,null,null,null,null,null,null,null,null,null,null,null,null,null,null,null,null,null,null,null,null,null,92,"A",2,42,"","",null,null,120,"A",3,20,1,1]
[null,null,null,null,null,null,null,null,null,null,null,null,null,null,null,null,null,null,null,null,null,null,null,null,null,null,null,null,null,null,null,null,null,null,null,null,null,null,null,null,null,null,null,null,null,null,null,null,null,null,null,null,null,null,null,null,null,null,null,null,null,null,null,null,null,null,null,null,null,null,null,null,null,null,null,null,null,null,null,null,null,93,"A",2,43,"","",null,null,121,"A",3,21,0,1]
[null,null,null,null,null,null,null,null,null,null,null,null,null,null,null,null,null,null,null,null,null,null,null,null,null,null,null,null,null,null,null,null,null,null,null,null,null,null,null,null,null,null,null,null,null,null,null,null,null,null,null,null,null,null,null,null,null,null,null,null,null,null,null,null,null,null,null,null,null,null,null,null,null,null,null,null,null,null,null,null,null,94,"A",2,44,"","",null,null,122,"A",3,22,1,0]
[null,null,null,null,null,null,null,null,null,null,null,null,null,null,null,null,null,null,null,null,null,null,null,null,null,null,null,null,null,null,null,null,null,null,null,null,null,null,null,null,null,null,null,null,null,null,null,null,null,null,null,null,null,null,null,null,null,null,null,null,null,null,null,null,null,null,null,null,null,null,null,null,null,null,null,null,null,null,null,null,null,95,"A",2,45,"","",null,null,123,"A",3,23,1,1]
[null,null,null,null,null,null,null,null,null,null,null,null,null,null,null,null,null,null,null,null,null,null,null,null,null,null,null,null,null,null,null,null,null,null,null,null,null,null,null,null,null,null,null,null,null,null,null,null,null,null,null,null,null,null,null,null,null,null,null,null,null,null,null,null,null,null,null,null,null,null,null,null,null,null,null,null,null,null,null,null,null,96,"A",2,46,"","",null,null,124,"A",3,24,1,1]
[null,null,null,null,null,null,null,null,null,null,null,null,null,null,null,null,null,null,null,null,null,null,null,null,null,null,null,null,null,null,null,null,null,null,null,null,null,null,null,null,null,null,null,null,null,null,null,null,null,null,null,null,null,null,null,null,null,null,null,null,null,null,null,null,null,null,null,null,null,null,null,null,null,null,null,null,null,null,null,null,null,97,"A",2,47,"","",null,null,125,"A",3,25,0,0]
[null,null,null,null,null,null,null,null,null,null,null,null,null,null,null,null,null,null,null,null,null,null,null,null,null,null,null,null,null,null,null,null,null,null,null,null,null,null,null,null,null,null,null,null,null,null,null,null,null,null,null,null,null,null,null,null,null,null,null,null,null,null,null,null,null,null,null,null,null,null,null,null,null,null,null,null,null,null,null,null,null,98,"A",2,48,"","",null,null,126,"A",3,26,0,0]
[null,null,null,null,null,null,null,null,null,null,null,null,null,null,null,null,null,null,null,null,null,null,null,null,null,null,null,null,null,null,null,null,null,null,null,null,null,null,null,null,null,null,null,null,null,null,null,null,null,null,null,null,null,null,null,null,null,null,null,null,null,null,null,null,null,null,null,null,null,null,null,null,null,null,null,null,null,null,null,null,null,99,"A",2,49,"","",null,null,127,"A",3,27,1,1]
[null,null,null,null,null,null,null,null,null,null,null,null,null,null,null,null,null,null,null,null,null,null,null,null,null,null,null,null,null,null,null,null,null,null,null,null,null,null,null,null,null,null,null,null,null,null,null,null,null,null,null,null,null,null,null,null,null,null,null,null,null,null,null,null,null,null,null,null,null,null,null,null,null,null,null,null,null,null,null,null,null,100,"A",2,50,"","",null,null,128,"A",3,28,1,1]
[null,null,null,null,null,null,null,null,null,null,null,null,null,null,null,null,null,null,null,null,null,null,null,null,null,null,null,null,null,null,null,null,null,null,null,null,null,null,null,null,null,null,null,null,null,null,null,null,null,null,null,null,null,null,null,null,null,null,null,null,null,null,null,null,null,null,null,null,null,null,null,null,null,null,null,null,null,null,null,null,null,101,"A",3,1,{"$f":"E8","v":1},{"$f":"I8","v":0},null,null,129,"A",3,29,1,1]
[null,null,null,null,null,null,null,null,null,null,null,null,null,null,null,null,null,null,null,null,null,null,null,null,null,null,null,null,null,null,null,null,null,null,null,null,null,null,null,null,null,null,null,null,null,null,null,null,null,null,null,null,null,null,null,null,null,null,null,null,null,null,null,null,null,null,null,null,null,null,null,null,null,null,null,null,null,null,null,null,null,102,"A",3,2,1,{"$f":"I9","v":1},null,null,130,"A",3,30,0,0]
[null,null,null,null,null,null,null,null,null,null,null,null,null,null,null,null,null,null,null,null,null,null,null,null,null,null,null,null,null,null,null,null,null,null,null,null,null,null,null,null,null,null,null,null,null,null,null,null,null,null,null,null,null,null,null,null,null,null,null,null,null,null,null,null,null,null,null,null,null,null,null,null,null,null,null,null,null,null,null,null,null,103,"A",3,3,0,0,null,null,131,"A",3,31,1,1]
[null,null,null,null,null,null,null,null,null,null,null,null,null,null,null,null,null,null,null,null,null,null,null,null,null,null,null,null,null,null,null,null,null,null,null,null,null,null,null,null,null,null,null,null,null,null,null,null,null,null,null,null,null,null,null,null,null,null,null,null,null,null,null,null,null,null,null,null,null,null,null,null,null,null,null,null,null,null,null,null,null,104,"A",3,4,0,0,null,null,132,"A",3,32,1,1]
[null,null,null,null,null,null,null,null,null,null,null,null,null,null,null,null,null,null,null,null,null,null,null,null,null,null,null,null,null,null,null,null,null,null,null,null,null,null,null,null,null,null,null,null,null,null,null,null,null,null,null,null,null,null,null,null,null,null,null,null,null,null,null,null,null,null,null,null,null,null,null,null,null,null,null,null,null,null,null,null,null,105,"A",3,5,0,0,null,null,133,"A",3,33,1,1]
[null,null,null,null,null,null,null,null,null,null,null,null,null,null,null,null,null,null,null,null,null,null,null,null,null,null,null,null,null,null,null,null,null,null,null,null,null,null,null,null,null,null,null,null,null,null,null,null,null,null,null,null,null,null,null,null,null,null,null,null,null,null,null,null,null,null,null,null,null,null,null,null,null,null,null,null,null,null,null,null,null,106,"A",3,6,0,1,null,null,134,"A",3,34,1,0]
[null,null,null,null,null,null,null,null,null,null,null,null,null,null,null,null,null,null,null,null,null,null,null,null,null,null,null,null,null,null,null,null,null,null,null,null,null,null,null,null,null,null,null,null,null,null,null,null,null,null,null,null,null,null,null,null,null,null,null,null,null,null,null,null,null,null,null,null,null,null,null,null,null,null,null,null,null,null,null,null,null,107,"A",3,7,1,1,null,null,135,"A",3,35,1,1]
[null,null,null,null,null,null,null,null,null,null,null,null,null,null,null,null,null,null,null,null,null,null,null,null,null,null,null,null,null,null,null,null,null,null,null,null,null,null,null,null,null,null,null,null,null,null,null,null,null,null,null,null,null,null,null,null,null,null,null,null,null,null,null,null,null,null,null,null,null,null,null,null,null,null,null,null,null,null,null,null,null,108,"A",3,8,1,1,null,null,136,"A",3,36,0,1]
[null,null,null,null,null,null,null,null,null,null,null,null,null,null,null,null,null,null,null,null,null,null,null,null,null,null,null,null,null,null,null,null,null,null,null,null,null,null,null,null,null,null,null,null,null,null,null,null,null,null,null,null,null,null,null,null,null,null,null,null,null,null,null,null,null,null,null,null,null,null,null,null,null,null,null,null,null,null,null,null,null,109,"A",3,9,0,0,null,null,151,"B",4,1,1,0]
[null,null,null,null,null,null,null,null,null,null,null,null,null,null,null,null,null,null,null,null,null,null,null,null,null,null,null,null,null,null,null,null,null,null,null,null,null,null,null,null,null,null,null,null,null,null,null,null,null,null,null,null,null,null,null,null,null,null,null,null,null,null,null,null,null,null,null,null,null,null,null,null,null,null,null,null,null,null,null,null,null,110,"A",3,10,1,1,null,null,152,"B",4,2,1,1]
[null,null,null,null,null,null,null,null,null,null,null,null,null,null,null,null,null,null,null,null,null,null,null,null,null,null,null,null,null,null,null,null,null,null,null,null,null,null,null,null,null,null,null,null,null,null,null,null,null,null,null,null,null,null,null,null,null,null,null,null,null,null,null,null,null,null,null,null,null,null,null,null,null,null,null,null,null,null,null,null,null,111,"A",3,11,1,1,null,null,153,"B",4,3,0,0]
[null,null,null,null,null,null,null,null,null,null,null,null,null,null,null,null,null,null,null,null,null,null,null,null,null,null,null,null,null,null,null,null,null,null,null,null,null,null,null,null,null,null,null,null,null,null,null,null,null,null,null,null,null,null,null,null,null,null,null,null,null,null,null,null,null,null,null,null,null,null,null,null,null,null,null,null,null,null,null,null,null,112,"A",3,12,0,0,null,null,154,"B",4,4,0,0]
[null,null,null,null,null,null,null,null,null,null,null,null,null,null,null,null,null,null,null,null,null,null,null,null,null,null,null,null,null,null,null,null,null,null,null,null,null,null,null,null,null,null,null,null,null,null,null,null,null,null,null,null,null,null,null,null,null,null,null,null,null,null,null,null,null,null,null,null,null,null,null,null,null,null,null,null,null,null,null,null,null,113,"A",3,13,1,1,null,null,155,"B",4,5,0,0]
[null,null,null,null,null,null,null,null,null,null,null,null,null,null,null,null,null,null,null,null,null,null,null,null,null,null,null,null,null,null,null,null,null,null,null,null,null,null,null,null,null,null,null,null,null,null,null,null,null,null,null,null,null,null,null,null,null,null,null,null,null,null,null,null,null,null,null,null,null,null,null,null,null,null,null,null,null,null,null,null,null,114,"A",3,14,0,1,null,null,156,"B",4,6,1,1]
[null,null,null,null,null,null,null,null,null,null,null,null,null,null,null,null,null,null,null,null,null,null,null,null,null,null,null,null,null,null,null,null,null,null,null,null,null,null,null,null,null,null,null,null,null,null,null,null,null,null,null,null,null,null,null,null,null,null,null,null,null,null,null,null,null,null,null,null,null,null,null,null,null,null,null,null,null,null,null,null,null,115,"A",3,15,1,1,null,null,157,"B",4,7,1,1]
[null,null,null,null,null,null,null,null,null,null,null,null,null,null,null,null,null,null,null,null,null,null,null,null,null,null,null,null,null,null,null,null,null,null,null,null,null,null,null,null,null,null,null,null,null,null,null,null,null,null,null,null,null,null,null,null,null,null,null,null,null,null,null,null,null,null,null,null,null,null,null,null,null,null,null,null,null,null,null,null,null,116,"A",3,16,1,1,null,null,158,"B",4,8,1,1]
[null,null,null,null,null,null,null,null,null,null,null,null,null,null,null,null,null,null,null,null,null,null,null,null,null,null,null,null,null,null,null,null,null,null,null,null,null,null,null,null,null,null,null,null,null,null,null,null,null,null,null,null,null,null,null,null,null,null,null,null,null,null,null,null,null,null,null,null,null,null,null,null,null,null,null,null,null,null,null,null,null,117,"A",3,17,1,1,null,null,159,"B",4,9,0,0]
[null,null,null,null,null,null,null,null,null,null,null,null,null,null,null,null,null,null,null,null,null,null,null,null,null,null,null,null,null,null,null,null,null,null,null,null,null,null,null,null,null,null,null,null,null,null,null,null,null,null,null,null,null,null,null,null,null,null,null,null,null,null,null,null,null,null,null,null,null,null,null,null,null,null,null,null,null,null,null,null,null,118,"A",3,18,1,1,null,null,160,"B",4,10,1,1]
[null,null,null,null,null,null,null,null,null,null,null,null,null,null,null,null,null,null,null,null,null,null,null,null,null,null,null,null,null,null,null,null,null,null,null,null,null,null,null,null,null,null,null,null,null,null,null,null,null,null,null,null,null,null,null,null,null,null,null,null,null,null,null,null,null,null,null,null,null,null,null,null,null,null,null,null,null,null,null,null,null,119,"A",3,19,1,1,null,null,161,"B",4,11,1,1]
[null,null,null,null,null,null,null,null,null,null,null,null,null,null,null,null,null,null,null,null,null,null,null,null,null,null,null,null,null,null,null,null,null,null,null,null,null,null,null,null,null,null,null,null,null,null,null,null,null,null,null,null,null,null,null,null,null,null,null,null,null,null,null,null,null,null,null,null,null,null,null,null,null,null,null,null,null,null,null,null,null,120,"A",3,20,1,1,null,null,162,"B",4,12,0,0]
[null,null,null,null,null,null,null,null,null,null,null,null,null,null,null,null,null,null,null,null,null,null,null,null,null,null,null,null,null,null,null,null,null,null,null,null,null,null,null,null,null,null,null,null,null,null,null,null,null,null,null,null,null,null,null,null,null,null,null,null,null,null,null,null,null,null,null,null,null,null,null,null,null,null,null,null,null,null,null,null,null,121,"A",3,21,0,1,null,null,163,"B",4,13,1,1]
[null,null,null,null,null,null,null,null,null,null,null,null,null,null,null,null,null,null,null,null,null,null,null,null,null,null,null,null,null,null,null,null,null,null,null,null,null,null,null,null,null,null,null,null,null,null,null,null,null,null,null,null,null,null,null,null,null,null,null,null,null,null,null,null,null,null,null,null,null,null,null,null,null,null,null,null,null,null,null,null,null,122,"A",3,22,1,0,null,null,164,"B",4,14,1,1]
[null,null,null,null,null,null,null,null,null,null,null,null,null,null,null,null,null,null,null,null,null,null,null,null,null,null,null,null,null,null,null,null,null,null,null,null,null,null,null,null,null,null,null,null,null,null,null,null,null,null,null,null,null,null,null,null,null,null,null,null,null,null,null,null,null,null,null,null,null,null,null,null,null,null,null,null,null,null,null,null,null,123,"A",3,23,1,1,null,null,165,"B",4,15,1,1]
[null,null,null,null,null,null,null,null,null,null,null,null,null,null,null,null,null,null,null,null,null,null,null,null,null,null,null,null,null,null,null,null,null,null,null,null,null,null,null,null,null,null,null,null,null,null,null,null,null,null,null,null,null,null,null,null,null,null,null,null,null,null,null,null,null,null,null,null,null,null,null,null,null,null,null,null,null,null,null,null,null,124,"A",3,24,1,1,null,null,166,"B",4,16,1,1]
[null,null,null,null,null,null,null,null,null,null,null,null,null,null,null,null,null,null,null,null,null,null,null,null,null,null,null,null,null,null,null,null,null,null,null,null,null,null,null,null,null,null,null,null,null,null,null,null,null,null,null,null,null,null,null,null,null,null,null,null,null,null,null,null,null,null,null,null,null,null,null,null,null,null,null,null,null,null,null,null,null,125,"A",3,25,0,0,null,null,167,"B",4,17,1,1]
[null,null,null,null,null,null,null,null,null,null,null,null,null,null,null,null,null,null,null,null,null,null,null,null,null,null,null,null,null,null,null,null,null,null,null,null,null,null,null,null,null,null,null,null,null,null,null,null,null,null,null,null,null,null,null,null,null,null,null,null,null,null,null,null,null,null,null,null,null,null,null,null,null,null,null,null,null,null,null,null,null,126,"A",3,26,0,0,null,null,168,"B",4,18,1,1]
[null,null,null,null,null,null,null,null,null,null,null,null,null,null,null,null,null,null,null,null,null,null,null,null,null,null,null,null,null,null,null,null,null,null,null,null,null,null,null,null,null,null,null,null,null,null,null,null,null,null,null,null,null,null,null,null,null,null,null,null,null,null,null,null,null,null,null,null,null,null,null,null,null,null,null,null,null,null,null,null,null,127,"A",3,27,1,1,null,null,169,"B",4,19,1,1]
[null,null,null,null,null,null,null,null,null,null,null,null,null,null,null,null,null,null,null,null,null,null,null,null,null,null,null,null,null,null,null,null,null,null,null,null,null,null,null,null,null,null,null,null,null,null,null,null,null,null,null,null,null,null,null,null,null,null,null,null,null,null,null,null,null,null,null,null,null,null,null,null,null,null,null,null,null,null,null,null,null,128,"A",3,28,1,1,null,null,170,"B",4,20,1,1]
[null,null,null,null,null,null,null,null,null,null,null,null,null,null,null,null,null,null,null,null,null,null,null,null,null,null,null,null,null,null,null,null,null,null,null,null,null,null,null,null,null,null,null,null,null,null,null,null,null,null,null,null,null,null,null,null,null,null,null,null,null,null,null,null,null,null,null,null,null,null,null,null,null,null,null,null,null,null,null,null,null,129,"A",3,29,1,1,null,null,171,"B",4,21,1,1]
[null,null,null,null,null,null,null,null,null,null,null,null,null,null,null,null,null,null,null,null,null,null,null,null,null,null,null,null,null,null,null,null,null,null,null,null,null,null,null,null,null,null,null,null,null,null,null,null,null,null,null,null,null,null,null,null,null,null,null,null,null,null,null,null,null,null,null,null,null,null,null,null,null,null,null,null,null,null,null,null,null,130,"A",3,30,0,0,null,null,172,"B",4,22,0,0]
[null,null,null,null,null,null,null,null,null,null,null,null,null,null,null,null,null,null,null,null,null,null,null,null,null,null,null,null,null,null,null,null,null,null,null,null,null,null,null,null,null,null,null,null,null,null,null,null,null,null,null,null,null,null,null,null,null,null,null,null,null,null,null,null,null,null,null,null,null,null,null,null,null,null,null,null,null,null,null,null,null,131,"A",3,31,1,1,null,null,173,"B",4,23,1,1]
[null,null,null,null,null,null,null,null,null,null,null,null,null,null,null,null,null,null,null,null,null,null,null,null,null,null,null,null,null,null,null,null,null,null,null,null,null,null,null,null,null,null,null,null,null,null,null,null,null,null,null,null,null,null,null,null,null,null,null,null,null,null,null,null,null,null,null,null,null,null,null,null,null,null,null,null,null,null,null,null,null,132,"A",3,32,1,1,null,null,174,"B",4,24,1,1]
[null,null,null,null,null,null,null,null,null,null,null,null,null,null,null,null,null,null,null,null,null,null,null,null,null,null,null,null,null,null,null,null,null,null,null,null,null,null,null,null,null,null,null,null,null,null,null,null,null,null,null,null,null,null,null,null,null,null,null,null,null,null,null,null,null,null,null,null,null,null,null,null,null,null,null,null,null,null,null,null,null,133,"A",3,33,{"$f":"E40","v":1},1,null,null,175,"B",4,25,0,0]
[null,null,null,null,null,null,null,null,null,null,null,null,null,null,null,null,null,null,null,null,null,null,null,null,null,null,null,null,null,null,null,null,null,null,null,null,null,null,null,null,null,null,null,null,null,null,null,null,null,null,null,null,null,null,null,null,null,null,null,null,null,null,null,null,null,null,null,null,null,null,null,null,null,null,null,null,null,null,null,null,null,134,"A",3,34,1,0,null,null,176,"B",4,26,0,0]
[null,null,null,null,null,null,null,null,null,null,null,null,null,null,null,null,null,null,null,null,null,null,null,null,null,null,null,null,null,null,null,null,null,null,null,null,null,null,null,null,null,null,null,null,null,null,null,null,null,null,null,null,null,null,null,null,null,null,null,null,null,null,null,null,null,null,null,null,null,null,null,null,null,null,null,null,null,null,null,null,null,135,"A",3,35,1,1,null,null,177,"B",4,27,1,1]
[null,null,null,null,null,null,null,null,null,null,null,null,null,null,null,null,null,null,null,null,null,null,null,null,null,null,null,null,null,null,null,null,null,null,null,null,null,null,null,null,null,null,null,null,null,null,null,null,null,null,null,null,null,null,null,null,null,null,null,null,null,null,null,null,null,null,null,null,null,null,null,null,null,null,null,null,null,null,null,null,null,136,"A",3,36,0,1,null,null,178,"B",4,28,1,1]
[null,null,null,null,null,null,null,null,null,null,null,null,null,null,null,null,null,null,null,null,null,null,null,null,null,null,null,null,null,null,null,null,null,null,null,null,null,null,null,null,null,null,null,null,null,null,null,null,null,null,null,null,null,null,null,null,null,null,null,null,null,null,null,null,null,null,null,null,null,null,null,null,null,null,null,null,null,null,null,null,null,137,"A",3,37,"","",null,null,179,"B",4,29,1,1]
[null,null,null,null,null,null,null,null,null,null,null,null,null,null,null,null,null,null,null,null,null,null,null,null,null,null,null,null,null,null,null,null,null,null,null,null,null,null,null,null,null,null,null,null,null,null,null,null,null,null,null,null,null,null,null,null,null,null,null,null,null,null,null,null,null,null,null,null,null,null,null,null,null,null,null,null,null,null,null,null,null,138,"A",3,38,"","",null,null,180,"B",4,30,0,0]
[null,null,null,null,null,null,null,null,null,null,null,null,null,null,null,null,null,null,null,null,null,null,null,null,null,null,null,null,null,null,null,null,null,null,null,null,null,null,null,null,null,null,null,null,null,null,null,null,null,null,null,null,null,null,null,null,null,null,null,null,null,null,null,null,null,null,null,null,null,null,null,null,null,null,null,null,null,null,null,null,null,139,"A",3,39,"","",null,null,181,"B",4,31,1,1]
[null,null,null,null,null,null,null,null,null,null,null,null,null,null,null,null,null,null,null,null,null,null,null,null,null,null,null,null,null,null,null,null,null,null,null,null,null,null,null,null,null,null,null,null,null,null,null,null,null,null,null,null,null,null,null,null,null,null,null,null,null,null,null,null,null,null,null,null,null,null,null,null,null,null,null,null,null,null,null,null,null,140,"A",3,40,"","",null,null,182,"B",4,32,1,1]
[null,null,null,null,null,null,null,null,null,null,null,null,null,null,null,null,null,null,null,null,null,null,null,null,null,null,null,null,null,null,null,null,null,null,null,null,null,null,null,null,null,null,null,null,null,null,null,null,null,null,null,null,null,null,null,null,null,null,null,null,null,null,null,null,null,null,null,null,null,null,null,null,null,null,null,null,null,null,null,null,null,141,"A",3,41,"","",null,null,183,"B",4,33,1,1]
[null,null,null,null,null,null,null,null,null,null,null,null,null,null,null,null,null,null,null,null,null,null,null,null,null,null,null,null,null,null,null,null,null,null,null,null,null,null,null,null,null,null,null,null,null,null,null,null,null,null,null,null,null,null,null,null,null,null,null,null,null,null,null,null,null,null,null,null,null,null,null,null,null,null,null,null,null,null,null,null,null,142,"A",3,42,"","",null,null,184,"B",4,34,0,0]
[null,null,null,null,null,null,null,null,null,null,null,null,null,null,null,null,null,null,null,null,null,null,null,null,null,null,null,null,null,null,null,null,null,null,null,null,null,null,null,null,null,null,null,null,null,null,null,null,null,null,null,null,null,null,null,null,null,null,null,null,null,null,null,null,null,null,null,null,null,null,null,null,null,null,null,null,null,null,null,null,null,143,"A",3,43,"","",null,null,185,"B",4,35,1,1]
[null,null,null,null,null,null,null,null,null,null,null,null,null,null,null,null,null,null,null,null,null,null,null,null,null,null,null,null,null,null,null,null,null,null,null,null,null,null,null,null,null,null,null,null,null,null,null,null,null,null,null,null,null,null,null,null,null,null,null,null,null,null,null,null,null,null,null,null,null,null,null,null,null,null,null,null,null,null,null,null,null,144,"A",3,44,"","",null,null,186,"B",4,36,1,1]
[null,null,null,null,null,null,null,null,null,null,null,null,null,null,null,null,null,null,null,null,null,null,null,null,null,null,null,null,null,null,null,null,null,null,null,null,null,null,null,null,null,null,null,null,null,null,null,null,null,null,null,null,null,null,null,null,null,null,null,null,null,null,null,null,null,null,null,null,null,null,null,null,null,null,null,null,null,null,null,null,null,145,"A",3,45,"","",null,null,201,"B",5,1,1,0]
[null,null,null,null,null,null,null,null,null,null,null,null,null,null,null,null,null,null,null,null,null,null,null,null,null,null,null,null,null,null,null,null,null,null,null,null,null,null,null,null,null,null,null,null,null,null,null,null,null,null,null,null,null,null,null,null,null,null,null,null,null,null,null,null,null,null,null,null,null,null,null,null,null,null,null,null,null,null,null,null,null,146,"A",3,46,"","",null,null,202,"B",5,2,1,1]
[null,null,null,null,null,null,null,null,null,null,null,null,null,null,null,null,null,null,null,null,null,null,null,null,null,null,null,null,null,null,null,null,null,null,null,null,null,null,null,null,null,null,null,null,null,null,null,null,null,null,null,null,null,null,null,null,null,null,null,null,null,null,null,null,null,null,null,null,null,null,null,null,null,null,null,null,null,null,null,null,null,147,"A",3,47,"","",null,null,203,"B",5,3,0,0]
[null,null,null,null,null,null,null,null,null,null,null,null,null,null,null,null,null,null,null,null,null,null,null,null,null,null,null,null,null,null,null,null,null,null,null,null,null,null,null,null,null,null,null,null,null,null,null,null,null,null,null,null,null,null,null,null,null,null,null,null,null,null,null,null,null,null,null,null,null,null,null,null,null,null,null,null,null,null,null,null,null,148,"A",3,48,"","",null,null,204,"B",5,4,0,0]
[null,null,null,null,null,null,null,null,null,null,null,null,null,null,null,null,null,null,null,null,null,null,null,null,null,null,null,null,null,null,null,null,null,null,null,null,null,null,null,null,null,null,null,null,null,null,null,null,null,null,null,null,null,null,null,null,null,null,null,null,null,null,null,null,null,null,null,null,null,null,null,null,null,null,null,null,null,null,null,null,null,149,"A",3,49,"","",null,null,205,"B",5,5,0,0]
[null,null,null,null,null,null,null,null,null,null,null,null,null,null,null,null,null,null,null,null,null,null,null,null,null,null,null,null,null,null,null,null,null,null,null,null,null,null,null,null,null,null,null,null,null,null,null,null,null,null,null,null,null,null,null,null,null,null,null,null,null,null,null,null,null,null,null,null,null,null,null,null,null,null,null,null,null,null,null,null,null,150,"A",3,50,"","",null,null,206,"B",5,6,1,1]
[null,null,null,null,null,null,null,null,null,null,null,null,null,null,null,null,null,null,null,null,null,null,null,null,null,null,null,null,null,null,null,null,null,null,null,null,null,null,null,null,null,null,null,null,null,null,null,null,null,null,null,null,null,null,null,null,null,null,null,null,null,null,null,null,null,null,null,null,null,null,null,null,null,null,null,null,null,null,null,null,null,151,"B",4,1,{"$f":"F8","v":1},{"$f":"I8","v":0},null,null,207,"B",5,7,1,1]
[null,null,null,null,null,null,null,null,null,null,null,null,null,null,null,null,null,null,null,null,null,null,null,null,null,null,null,null,null,null,null,null,null,null,null,null,null,null,null,null,null,null,null,null,null,null,null,null,null,null,null,null,null,null,null,null,null,null,null,null,null,null,null,null,null,null,null,null,null,null,null,null,null,null,null,null,null,null,null,null,null,152,"B",4,2,1,{"$f":"I9","v":1},null,null,208,"B",5,8,1,1]
[null,null,null,null,null,null,null,null,null,null,null,null,null,null,null,null,null,null,null,null,null,null,null,null,null,null,null,null,null,null,null,null,null,null,null,null,null,null,null,null,null,null,null,null,null,null,null,null,null,null,null,null,null,null,null,null,null,null,null,null,null,null,null,null,null,null,null,null,null,null,null,null,null,null,null,null,null,null,null,null,null,153,"B",4,3,0,0,null,null,209,"B",5,9,0,0]
[null,null,null,null,null,null,null,null,null,null,null,null,null,null,null,null,null,null,null,null,null,null,null,null,null,null,null,null,null,null,null,null,null,null,null,null,null,null,null,null,null,null,null,null,null,null,null,null,null,null,null,null,null,null,null,null,null,null,null,null,null,null,null,null,null,null,null,null,null,null,null,null,null,null,null,null,null,null,null,null,null,154,"B",4,4,0,0,null,null,210,"B",5,10,1,1]
[null,null,null,null,null,null,null,null,null,null,null,null,null,null,null,null,null,null,null,null,null,null,null,null,null,null,null,null,null,null,null,null,null,null,null,null,null,null,null,null,null,null,null,null,null,null,null,null,null,null,null,null,null,null,null,null,null,null,null,null,null,null,null,null,null,null,null,null,null,null,null,null,null,null,null,null,null,null,null,null,null,155,"B",4,5,0,0,null,null,211,"B",5,11,1,1]
[null,null,null,null,null,null,null,null,null,null,null,null,null,null,null,null,null,null,null,null,null,null,null,null,null,null,null,null,null,null,null,null,null,null,null,null,null,null,null,null,null,null,null,null,null,null,null,null,null,null,null,null,null,null,null,null,null,null,null,null,null,null,null,null,null,null,null,null,null,null,null,null,null,null,null,null,null,null,null,null,null,156,"B",4,6,1,1,null,null,212,"B",5,12,0,0]
[null,null,null,null,null,null,null,null,null,null,null,null,null,null,null,null,null,null,null,null,null,null,null,null,null,null,null,null,null,null,null,null,null,null,null,null,null,null,null,null,null,null,null,null,null,null,null,null,null,null,null,null,null,null,null,null,null,null,null,null,null,null,null,null,null,null,null,null,null,null,null,null,null,null,null,null,null,null,null,null,null,157,"B",4,7,1,1,null,null,213,"B",5,13,1,1]
[null,null,null,null,null,null,null,null,null,null,null,null,null,null,null,null,null,null,null,null,null,null,null,null,null,null,null,null,null,null,null,null,null,null,null,null,null,null,null,null,null,null,null,null,null,null,null,null,null,null,null,null,null,null,null,null,null,null,null,null,null,null,null,null,null,null,null,null,null,null,null,null,null,null,null,null,null,null,null,null,null,158,"B",4,8,1,1,null,null,214,"B",5,14,1,1]
[null,null,null,null,null,null,null,null,null,null,null,null,null,null,null,null,null,null,null,null,null,null,null,null,null,null,null,null,null,null,null,null,null,null,null,null,null,null,null,null,null,null,null,null,null,null,null,null,null,null,null,null,null,null,null,null,null,null,null,null,null,null,null,null,null,null,null,null,null,null,null,null,null,null,null,null,null,null,null,null,null,159,"B",4,9,0,0,null,null,215,"B",5,15,1,1]
[null,null,null,null,null,null,null,null,null,null,null,null,null,null,null,null,null,null,null,null,null,null,null,null,null,null,null,null,null,null,null,null,null,null,null,null,null,null,null,null,null,null,null,null,null,null,null,null,null,null,null,null,null,null,null,null,null,null,null,null,null,null,null,null,null,null,null,null,null,null,null,null,null,null,null,null,null,null,null,null,null,160,"B",4,10,1,1,null,null,216,"B",5,16,1,1]
[null,null,null,null,null,null,null,null,null,null,null,null,null,null,null,null,null,null,null,null,null,null,null,null,null,null,null,null,null,null,null,null,null,null,null,null,null,null,null,null,null,null,null,null,null,null,null,null,null,null,null,null,null,null,null,null,null,null,null,null,null,null,null,null,null,null,null,null,null,null,null,null,null,null,null,null,null,null,null,null,null,161,"B",4,11,1,1,null,null,217,"B",5,17,1,1]
[null,null,null,null,null,null,null,null,null,null,null,null,null,null,null,null,null,null,null,null,null,null,null,null,null,null,null,null,null,null,null,null,null,null,null,null,null,null,null,null,null,null,null,null,null,null,null,null,null,null,null,null,null,null,null,null,null,null,null,null,null,null,null,null,null,null,null,null,null,null,null,null,null,null,null,null,null,null,null,null,null,162,"B",4,12,0,0,null,null,218,"B",5,18,1,1]
[null,null,null,null,null,null,null,null,null,null,null,null,null,null,null,null,null,null,null,null,null,null,null,null,null,null,null,null,null,null,null,null,null,null,null,null,null,null,null,null,null,null,null,null,null,null,null,null,null,null,null,null,null,null,null,null,null,null,null,null,null,null,null,null,null,null,null,null,null,null,null,null,null,null,null,null,null,null,null,null,null,163,"B",4,13,1,1,null,null,219,"B",5,19,1,1]
[null,null,null,null,null,null,null,null,null,null,null,null,null,null,null,null,null,null,null,null,null,null,null,null,null,null,null,null,null,null,null,null,null,null,null,null,null,null,null,null,null,null,null,null,null,null,null,null,null,null,null,null,null,null,null,null,null,null,null,null,null,null,null,null,null,null,null,null,null,null,null,null,null,null,null,null,null,null,null,null,null,164,"B",4,14,1,1,null,null,220,"B",5,20,1,1]
[null,null,null,null,null,null,null,null,null,null,null,null,null,null,null,null,null,null,null,null,null,null,null,null,null,null,null,null,null,null,null,null,null,null,null,null,null,null,null,null,null,null,null,null,null,null,null,null,null,null,null,null,null,null,null,null,null,null,null,null,null,null,null,null,null,null,null,null,null,null,null,null,null,null,null,null,null,null,null,null,null,165,"B",4,15,1,1,null,null,221,"B",5,21,0,1]
[null,null,null,null,null,null,null,null,null,null,null,null,null,null,null,null,null,null,null,null,null,null,null,null,null,null,null,null,null,null,null,null,null,null,null,null,null,null,null,null,null,null,null,null,null,null,null,null,null,null,null,null,null,null,null,null,null,null,null,null,null,null,null,null,null,null,null,null,null,null,null,null,null,null,null,null,null,null,null,null,null,166,"B",4,16,1,1,null,null,222,"B",5,22,1,0]
[null,null,null,null,null,null,null,null,null,null,null,null,null,null,null,null,null,null,null,null,null,null,null,null,null,null,null,null,null,null,null,null,null,null,null,null,null,null,null,null,null,null,null,null,null,null,null,null,null,null,null,null,null,null,null,null,null,null,null,null,null,null,null,null,null,null,null,null,null,null,null,null,null,null,null,null,null,null,null,null,null,167,"B",4,17,1,1,null,null,223,"B",5,23,1,1]
[null,null,null,null,null,null,null,null,null,null,null,null,null,null,null,null,null,null,null,null,null,null,null,null,null,null,null,null,null,null,null,null,null,null,null,null,null,null,null,null,null,null,null,null,null,null,null,null,null,null,null,null,null,null,null,null,null,null,null,null,null,null,null,null,null,null,null,null,null,null,null,null,null,null,null,null,null,null,null,null,null,168,"B",4,18,1,1,null,null,224,"B",5,24,1,1]
[null,null,null,null,null,null,null,null,null,null,null,null,null,null,null,null,null,null,null,null,null,null,null,null,null,null,null,null,null,null,null,null,null,null,null,null,null,null,null,null,null,null,null,null,null,null,null,null,null,null,null,null,null,null,null,null,null,null,null,null,null,null,null,null,null,null,null,null,null,null,null,null,null,null,null,null,null,null,null,null,null,169,"B",4,19,1,1,null,null,225,"B",5,25,0,0]
[null,null,null,null,null,null,null,null,null,null,null,null,null,null,null,null,null,null,null,null,null,null,null,null,null,null,null,null,null,null,null,null,null,null,null,null,null,null,null,null,null,null,null,null,null,null,null,null,null,null,null,null,null,null,null,null,null,null,null,null,null,null,null,null,null,null,null,null,null,null,null,null,null,null,null,null,null,null,null,null,null,170,"B",4,20,1,1,null,null,226,"B",5,26,0,0]
[null,null,null,null,null,null,null,null,null,null,null,null,null,null,null,null,null,null,null,null,null,null,null,null,null,null,null,null,null,null,null,null,null,null,null,null,null,null,null,null,null,null,null,null,null,null,null,null,null,null,null,null,null,null,null,null,null,null,null,null,null,null,null,null,null,null,null,null,null,null,null,null,null,null,null,null,null,null,null,null,null,171,"B",4,21,1,1,null,null,227,"B",5,27,1,1]
[null,null,null,null,null,null,null,null,null,null,null,null,null,null,null,null,null,null,null,null,null,null,null,null,null,null,null,null,null,null,null,null,null,null,null,null,null,null,null,null,null,null,null,null,null,null,null,null,null,null,null,null,null,null,null,null,null,null,null,null,null,null,null,null,null,null,null,null,null,null,null,null,null,null,null,null,null,null,null,null,null,172,"B",4,22,0,0,null,null,228,"B",5,28,1,1]
[null,null,null,null,null,null,null,null,null,null,null,null,null,null,null,null,null,null,null,null,null,null,null,null,null,null,null,null,null,null,null,null,null,null,null,null,null,null,null,null,null,null,null,null,null,null,null,null,null,null,null,null,null,null,null,null,null,null,null,null,null,null,null,null,null,null,null,null,null,null,null,null,null,null,null,null,null,null,null,null,null,173,"B",4,23,1,1,null,null,229,"B",5,29,1,1]
[null,null,null,null,null,null,null,null,null,null,null,null,null,null,null,null,null,null,null,null,null,null,null,null,null,null,null,null,null,null,null,null,null,null,null,null,null,null,null,null,null,null,null,null,null,null,null,null,null,null,null,null,null,null,null,null,null,null,null,null,null,null,null,null,null,null,null,null,null,null,null,null,null,null,null,null,null,null,null,null,null,174,"B",4,24,1,1,null,null,230,"B",5,30,0,0]
[null,null,null,null,null,null,null,null,null,null,null,null,null,null,null,null,null,null,null,null,null,null,null,null,null,null,null,null,null,null,null,null,null,null,null,null,null,null,null,null,null,null,null,null,null,null,null,null,null,null,null,null,null,null,null,null,null,null,null,null,null,null,null,null,null,null,null,null,null,null,null,null,null,null,null,null,null,null,null,null,null,175,"B",4,25,0,0,null,null,231,"B",5,31,1,1]
[null,null,null,null,null,null,null,null,null,null,null,null,null,null,null,null,null,null,null,null,null,null,null,null,null,null,null,null,null,null,null,null,null,null,null,null,null,null,null,null,null,null,null,null,null,null,null,null,null,null,null,null,null,null,null,null,null,null,null,null,null,null,null,null,null,null,null,null,null,null,null,null,null,null,null,null,null,null,null,null,null,176,"B",4,26,0,0,null,null,232,"B",5,32,1,1]
[null,null,null,null,null,null,null,null,null,null,null,null,null,null,null,null,null,null,null,null,null,null,null,null,null,null,null,null,null,null,null,null,null,null,null,null,null,null,null,null,null,null,null,null,null,null,null,null,null,null,null,null,null,null,null,null,null,null,null,null,null,null,null,null,null,null,null,null,null,null,null,null,null,null,null,null,null,null,null,null,null,177,"B",4,27,1,1,null,null,233,"B",5,33,1,1]
[null,null,null,null,null,null,null,null,null,null,null,null,null,null,null,null,null,null,null,null,null,null,null,null,null,null,null,null,null,null,null,null,null,null,null,null,null,null,null,null,null,null,null,null,null,null,null,null,null,null,null,null,null,null,null,null,null,null,null,null,null,null,null,null,null,null,null,null,null,null,null,null,null,null,null,null,null,null,null,null,null,178,"B",4,28,1,1,null,null,234,"B",5,34,0,0]
[null,null,null,null,null,null,null,null,null,null,null,null,null,null,null,null,null,null,null,null,null,null,null,null,null,null,null,null,null,null,null,null,null,null,null,null,null,null,null,null,null,null,null,null,null,null,null,null,null,null,null,null,null,null,null,null,null,null,null,null,null,null,null,null,null,null,null,null,null,null,null,null,null,null,null,null,null,null,null,null,null,179,"B",4,29,1,1,null,null,235,"B",5,35,1,1]
[null,null,null,null,null,null,null,null,null,null,null,null,null,null,null,null,null,null,null,null,null,null,null,null,null,null,null,null,null,null,null,null,null,null,null,null,null,null,null,null,null,null,null,null,null,null,null,null,null,null,null,null,null,null,null,null,null,null,null,null,null,null,null,null,null,null,null,null,null,null,null,null,null,null,null,null,null,null,null,null,null,180,"B",4,30,0,0,null,null,236,"B",5,36,1,1]
[null,null,null,null,null,null,null,null,null,null,null,null,null,null,null,null,null,null,null,null,null,null,null,null,null,null,null,null,null,null,null,null,null,null,null,null,null,null,null,null,null,null,null,null,null,null,null,null,null,null,null,null,null,null,null,null,null,null,null,null,null,null,null,null,null,null,null,null,null,null,null,null,null,null,null,null,null,null,null,null,null,181,"B",4,31,1,1,null,null,251,"B",6,1,1,0]
[null,null,null,null,null,null,null,null,null,null,null,null,null,null,null,null,null,null,null,null,null,null,null,null,null,null,null,null,null,null,null,null,null,null,null,null,null,null,null,null,null,null,null,null,null,null,null,null,null,null,null,null,null,null,null,null,null,null,null,null,null,null,null,null,null,null,null,null,null,null,null,null,null,null,null,null,null,null,null,null,null,182,"B",4,32,1,1,null,null,252,"B",6,2,1,1]
[null,null,null,null,null,null,null,null,null,null,null,null,null,null,null,null,null,null,null,null,null,null,null,null,null,null,null,null,null,null,null,null,null,null,null,null,null,null,null,null,null,null,null,null,null,null,null,null,null,null,null,null,null,null,null,null,null,null,null,null,null,null,null,null,null,null,null,null,null,null,null,null,null,null,null,null,null,null,null,null,null,183,"B",4,33,{"$f":"F40","v":1},1,null,null,253,"B",6,3,0,0]
[null,null,null,null,null,null,null,null,null,null,null,null,null,null,null,null,null,null,null,null,null,null,null,null,null,null,null,null,null,null,null,null,null,null,null,null,null,null,null,null,null,null,null,null,null,null,null,null,null,null,null,null,null,null,null,null,null,null,null,null,null,null,null,null,null,null,null,null,null,null,null,null,null,null,null,null,null,null,null,null,null,184,"B",4,34,0,0,null,null,254,"B",6,4,0,0]
[null,null,null,null,null,null,null,null,null,null,null,null,null,null,null,null,null,null,null,null,null,null,null,null,null,null,null,null,null,null,null,null,null,null,null,null,null,null,null,null,null,null,null,null,null,null,null,null,null,null,null,null,null,null,null,null,null,null,null,null,null,null,null,null,null,null,null,null,null,null,null,null,null,null,null,null,null,null,null,null,null,185,"B",4,35,1,1,null,null,255,"B",6,5,0,0]
[null,null,null,null,null,null,null,null,null,null,null,null,null,null,null,null,null,null,null,null,null,null,null,null,null,null,null,null,null,null,null,null,null,null,null,null,null,null,null,null,null,null,null,null,null,null,null,null,null,null,null,null,null,null,null,null,null,null,null,null,null,null,null,null,null,null,null,null,null,null,null,null,null,null,null,null,null,null,null,null,null,186,"B",4,36,1,1,null,null,256,"B",6,6,0,1]
[null,null,null,null,null,null,null,null,null,null,null,null,null,null,null,null,null,null,null,null,null,null,null,null,null,null,null,null,null,null,null,null,null,null,null,null,null,null,null,null,null,null,null,null,null,null,null,null,null,null,null,null,null,null,null,null,null,null,null,null,null,null,null,null,null,null,null,null,null,null,null,null,null,null,null,null,null,null,null,null,null,187,"B",4,37,"","",null,null,257,"B",6,7,1,1]
[null,null,null,null,null,null,null,null,null,null,null,null,null,null,null,null,null,null,null,null,null,null,null,null,null,null,null,null,null,null,null,null,null,null,null,null,null,null,null,null,null,null,null,null,null,null,null,null,null,null,null,null,null,null,null,null,null,null,null,null,null,null,null,null,null,null,null,null,null,null,null,null,null,null,null,null,null,null,null,null,null,188,"B",4,38,"","",null,null,258,"B",6,8,1,1]
[null,null,null,null,null,null,null,null,null,null,null,null,null,null,null,null,null,null,null,null,null,null,null,null,null,null,null,null,null,null,null,null,null,null,null,null,null,null,null,null,null,null,null,null,null,null,null,null,null,null,null,null,null,null,null,null,null,null,null,null,null,null,null,null,null,null,null,null,null,null,null,null,null,null,null,null,null,null,null,null,null,189,"B",4,39,"","",null,null,259,"B",6,9,0,0]
[null,null,null,null,null,null,null,null,null,null,null,null,null,null,null,null,null,null,null,null,null,null,null,null,null,null,null,null,null,null,null,null,null,null,null,null,null,null,null,null,null,null,null,null,null,null,null,null,null,null,null,null,null,null,null,null,null,null,null,null,null,null,null,null,null,null,null,null,null,null,null,null,null,null,null,null,null,null,null,null,null,190,"B",4,40,"","",null,null,260,"B",6,10,1,1]
[null,null,null,null,null,null,null,null,null,null,null,null,null,null,null,null,null,null,null,null,null,null,null,null,null,null,null,null,null,null,null,null,null,null,null,null,null,null,null,null,null,null,null,null,null,null,null,null,null,null,null,null,null,null,null,null,null,null,null,null,null,null,null,null,null,null,null,null,null,null,null,null,null,null,null,null,null,null,null,null,null,191,"B",4,41,"","",null,null,261,"B",6,11,1,1]
[null,null,null,null,null,null,null,null,null,null,null,null,null,null,null,null,null,null,null,null,null,null,null,null,null,null,null,null,null,null,null,null,null,null,null,null,null,null,null,null,null,null,null,null,null,null,null,null,null,null,null,null,null,null,null,null,null,null,null,null,null,null,null,null,null,null,null,null,null,null,null,null,null,null,null,null,null,null,null,null,null,192,"B",4,42,"","",null,null,262,"B",6,12,0,0]
[null,null,null,null,null,null,null,null,null,null,null,null,null,null,null,null,null,null,null,null,null,null,null,null,null,null,null,null,null,null,null,null,null,null,null,null,null,null,null,null,null,null,null,null,null,null,null,null,null,null,null,null,null,null,null,null,null,null,null,null,null,null,null,null,null,null,null,null,null,null,null,null,null,null,null,null,null,null,null,null,null,193,"B",4,43,"","",null,null,263,"B",6,13,1,1]
[null,null,null,null,null,null,null,null,null,null,null,null,null,null,null,null,null,null,null,null,null,null,null,null,null,null,null,null,null,null,null,null,null,null,null,null,null,null,null,null,null,null,null,null,null,null,null,null,null,null,null,null,null,null,null,null,null,null,null,null,null,null,null,null,null,null,null,null,null,null,null,null,null,null,null,null,null,null,null,null,null,194,"B",4,44,"","",null,null,264,"B",6,14,1,1]
[null,null,null,null,null,null,null,null,null,null,null,null,null,null,null,null,null,null,null,null,null,null,null,null,null,null,null,null,null,null,null,null,null,null,null,null,null,null,null,null,null,null,null,null,null,null,null,null,null,null,null,null,null,null,null,null,null,null,null,null,null,null,null,null,null,null,null,null,null,null,null,null,null,null,null,null,null,null,null,null,null,195,"B",4,45,"","",null,null,265,"B",6,15,1,1]
[null,null,null,null,null,null,null,null,null,null,null,null,null,null,null,null,null,null,null,null,null,null,null,null,null,null,null,null,null,null,null,null,null,null,null,null,null,null,null,null,null,null,null,null,null,null,null,null,null,null,null,null,null,null,null,null,null,null,null,null,null,null,null,null,null,null,null,null,null,null,null,null,null,null,null,null,null,null,null,null,null,196,"B",4,46,"","",null,null,266,"B",6,16,1,1]
[null,null,null,null,null,null,null,null,null,null,null,null,null,null,null,null,null,null,null,null,null,null,null,null,null,null,null,null,null,null,null,null,null,null,null,null,null,null,null,null,null,null,null,null,null,null,null,null,null,null,null,null,null,null,null,null,null,null,null,null,null,null,null,null,null,null,null,null,null,null,null,null,null,null,null,null,null,null,null,null,null,197,"B",4,47,"","",null,null,267,"B",6,17,1,1]
[null,null,null,null,null,null,null,null,null,null,null,null,null,null,null,null,null,null,null,null,null,null,null,null,null,null,null,null,null,null,null,null,null,null,null,null,null,null,null,null,null,null,null,null,null,null,null,null,null,null,null,null,null,null,null,null,null,null,null,null,null,null,null,null,null,null,null,null,null,null,null,null,null,null,null,null,null,null,null,null,null,198,"B",4,48,"","",null,null,268,"B",6,18,1,1]
[null,null,null,null,null,null,null,null,null,null,null,null,null,null,null,null,null,null,null,null,null,null,null,null,null,null,null,null,null,null,null,null,null,null,null,null,null,null,null,null,null,null,null,null,null,null,null,null,null,null,null,null,null,null,null,null,null,null,null,null,null,null,null,null,null,null,null,null,null,null,null,null,null,null,null,null,null,null,null,null,null,199,"B",4,49,"","",null,null,269,"B",6,19,1,1]
[null,null,null,null,null,null,null,null,null,null,null,null,null,null,null,null,null,null,null,null,null,null,null,null,null,null,null,null,null,null,null,null,null,null,null,null,null,null,null,null,null,null,null,null,null,null,null,null,null,null,null,null,null,null,null,null,null,null,null,null,null,null,null,null,null,null,null,null,null,null,null,null,null,null,null,null,null,null,null,null,null,200,"B",4,50,"","",null,null,270,"B",6,20,1,1]
[null,null,null,null,null,null,null,null,null,null,null,null,null,null,null,null,null,null,null,null,null,null,null,null,null,null,null,null,null,null,null,null,null,null,null,null,null,null,null,null,null,null,null,null,null,null,null,null,null,null,null,null,null,null,null,null,null,null,null,null,null,null,null,null,null,null,null,null,null,null,null,null,null,null,null,null,null,null,null,null,null,201,"B",5,1,{"$f":"G8","v":1},{"$f":"I8","v":0},null,null,271,"B",6,21,1,1]
[null,null,null,null,null,null,null,null,null,null,null,null,null,null,null,null,null,null,null,null,null,null,null,null,null,null,null,null,null,null,null,null,null,null,null,null,null,null,null,null,null,null,null,null,null,null,null,null,null,null,null,null,null,null,null,null,null,null,null,null,null,null,null,null,null,null,null,null,null,null,null,null,null,null,null,null,null,null,null,null,null,202,"B",5,2,1,{"$f":"I9","v":1},null,null,272,"B",6,22,0,0]
[null,null,null,null,null,null,null,null,null,null,null,null,null,null,null,null,null,null,null,null,null,null,null,null,null,null,null,null,null,null,null,null,null,null,null,null,null,null,null,null,null,null,null,null,null,null,null,null,null,null,null,null,null,null,null,null,null,null,null,null,null,null,null,null,null,null,null,null,null,null,null,null,null,null,null,null,null,null,null,null,null,203,"B",5,3,0,0,null,null,273,"B",6,23,1,1]
[null,null,null,null,null,null,null,null,null,null,null,null,null,null,null,null,null,null,null,null,null,null,null,null,null,null,null,null,null,null,null,null,null,null,null,null,null,null,null,null,null,null,null,null,null,null,null,null,null,null,null,null,null,null,null,null,null,null,null,null,null,null,null,null,null,null,null,null,null,null,null,null,null,null,null,null,null,null,null,null,null,204,"B",5,4,0,0,null,null,274,"B",6,24,1,1]
[null,null,null,null,null,null,null,null,null,null,null,null,null,null,null,null,null,null,null,null,null,null,null,null,null,null,null,null,null,null,null,null,null,null,null,null,null,null,null,null,null,null,null,null,null,null,null,null,null,null,null,null,null,null,null,null,null,null,null,null,null,null,null,null,null,null,null,null,null,null,null,null,null,null,null,null,null,null,null,null,null,205,"B",5,5,0,0,null,null,275,"B",6,25,0,0]
[null,null,null,null,null,null,null,null,null,null,null,null,null,null,null,null,null,null,null,null,null,null,null,null,null,null,null,null,null,null,null,null,null,null,null,null,null,null,null,null,null,null,null,null,null,null,null,null,null,null,null,null,null,null,null,null,null,null,null,null,null,null,null,null,null,null,null,null,null,null,null,null,null,null,null,null,null,null,null,null,null,206,"B",5,6,1,1,null,null,276,"B",6,26,0,0]
[null,null,null,null,null,null,null,null,null,null,null,null,null,null,null,null,null,null,null,null,null,null,null,null,null,null,null,null,null,null,null,null,null,null,null,null,null,null,null,null,null,null,null,null,null,null,null,null,null,null,null,null,null,null,null,null,null,null,null,null,null,null,null,null,null,null,null,null,null,null,null,null,null,null,null,null,null,null,null,null,null,207,"B",5,7,1,1,null,null,277,"B",6,27,1,1]
[null,null,null,null,null,null,null,null,null,null,null,null,null,null,null,null,null,null,null,null,null,null,null,null,null,null,null,null,null,null,null,null,null,null,null,null,null,null,null,null,null,null,null,null,null,null,null,null,null,null,null,null,null,null,null,null,null,null,null,null,null,null,null,null,null,null,null,null,null,null,null,null,null,null,null,null,null,null,null,null,null,208,"B",5,8,1,1,null,null,278,"B",6,28,1,1]
[null,null,null,null,null,null,null,null,null,null,null,null,null,null,null,null,null,null,null,null,null,null,null,null,null,null,null,null,null,null,null,null,null,null,null,null,null,null,null,null,null,null,null,null,null,null,null,null,null,null,null,null,null,null,null,null,null,null,null,null,null,null,null,null,null,null,null,null,null,null,null,null,null,null,null,null,null,null,null,null,null,209,"B",5,9,0,0,null,null,279,"B",6,29,1,1]
[null,null,null,null,null,null,null,null,null,null,null,null,null,null,null,null,null,null,null,null,null,null,null,null,null,null,null,null,null,null,null,null,null,null,null,null,null,null,null,null,null,null,null,null,null,null,null,null,null,null,null,null,null,null,null,null,null,null,null,null,null,null,null,null,null,null,null,null,null,null,null,null,null,null,null,null,null,null,null,null,null,210,"B",5,10,1,1,null,null,280,"B",6,30,1,0]
[null,null,null,null,null,null,null,null,null,null,null,null,null,null,null,null,null,null,null,null,null,null,null,null,null,null,null,null,null,null,null,null,null,null,null,null,null,null,null,null,null,null,null,null,null,null,null,null,null,null,null,null,null,null,null,null,null,null,null,null,null,null,null,null,null,null,null,null,null,null,null,null,null,null,null,null,null,null,null,null,null,211,"B",5,11,1,1,null,null,281,"B",6,31,1,1]
[null,null,null,null,null,null,null,null,null,null,null,null,null,null,null,null,null,null,null,null,null,null,null,null,null,null,null,null,null,null,null,null,null,null,null,null,null,null,null,null,null,null,null,null,null,null,null,null,null,null,null,null,null,null,null,null,null,null,null,null,null,null,null,null,null,null,null,null,null,null,null,null,null,null,null,null,null,null,null,null,null,212,"B",5,12,0,0,null,null,282,"B",6,32,1,1]
[null,null,null,null,null,null,null,null,null,null,null,null,null,null,null,null,null,null,null,null,null,null,null,null,null,null,null,null,null,null,null,null,null,null,null,null,null,null,null,null,null,null,null,null,null,null,null,null,null,null,null,null,null,null,null,null,null,null,null,null,null,null,null,null,null,null,null,null,null,null,null,null,null,null,null,null,null,null,null,null,null,213,"B",5,13,1,1,null,null,283,"B",6,33,1,1]
[null,null,null,null,null,null,null,null,null,null,null,null,null,null,null,null,null,null,null,null,null,null,null,null,null,null,null,null,null,null,null,null,null,null,null,null,null,null,null,null,null,null,null,null,null,null,null,null,null,null,null,null,null,null,null,null,null,null,null,null,null,null,null,null,null,null,null,null,null,null,null,null,null,null,null,null,null,null,null,null,null,214,"B",5,14,1,1,null,null,284,"B",6,34,1,0]
[null,null,null,null,null,null,null,null,null,null,null,null,null,null,null,null,null,null,null,null,null,null,null,null,null,null,null,null,null,null,null,null,null,null,null,null,null,null,null,null,null,null,null,null,null,null,null,null,null,null,null,null,null,null,null,null,null,null,null,null,null,null,null,null,null,null,null,null,null,null,null,null,null,null,null,null,null,null,null,null,null,215,"B",5,15,1,1,null,null,285,"B",6,35,1,1]
[null,null,null,null,null,null,null,null,null,null,null,null,null,null,null,null,null,null,null,null,null,null,null,null,null,null,null,null,null,null,null,null,null,null,null,null,null,null,null,null,null,null,null,null,null,null,null,null,null,null,null,null,null,null,null,null,null,null,null,null,null,null,null,null,null,null,null,null,null,null,null,null,null,null,null,null,null,null,null,null,null,216,"B",5,16,1,1,null,null,286,"B",6,36,1,1]
[null,null,null,null,null,null,null,null,null,null,null,null,null,null,null,null,null,null,null,null,null,null,null,null,null,null,null,null,null,null,null,null,null,null,null,null,null,null,null,null,null,null,null,null,null,null,null,null,null,null,null,null,null,null,null,null,null,null,null,null,null,null,null,null,null,null,null,null,null,null,null,null,null,null,null,null,null,null,null,null,null,217,"B",5,17,1,1]
[null,null,null,null,null,null,null,null,null,null,null,null,null,null,null,null,null,null,null,null,null,null,null,null,null,null,null,null,null,null,null,null,null,null,null,null,null,null,null,null,null,null,null,null,null,null,null,null,null,null,null,null,null,null,null,null,null,null,null,null,null,null,null,null,null,null,null,null,null,null,null,null,null,null,null,null,null,null,null,null,null,218,"B",5,18,1,1]
[null,null,null,null,null,null,null,null,null,null,null,null,null,null,null,null,null,null,null,null,null,null,null,null,null,null,null,null,null,null,null,null,null,null,null,null,null,null,null,null,null,null,null,null,null,null,null,null,null,null,null,null,null,null,null,null,null,null,null,null,null,null,null,null,null,null,null,null,null,null,null,null,null,null,null,null,null,null,null,null,null,219,"B",5,19,1,1]
[null,null,null,null,null,null,null,null,null,null,null,null,null,null,null,null,null,null,null,null,null,null,null,null,null,null,null,null,null,null,null,null,null,null,null,null,null,null,null,null,null,null,null,null,null,null,null,null,null,null,null,null,null,null,null,null,null,null,null,null,null,null,null,null,null,null,null,null,null,null,null,null,null,null,null,null,null,null,null,null,null,220,"B",5,20,1,1]
[null,null,null,null,null,null,null,null,null,null,null,null,null,null,null,null,null,null,null,null,null,null,null,null,null,null,null,null,null,null,null,null,null,null,null,null,null,null,null,null,null,null,null,null,null,null,null,null,null,null,null,null,null,null,null,null,null,null,null,null,null,null,null,null,null,null,null,null,null,null,null,null,null,null,null,null,null,null,null,null,null,221,"B",5,21,0,1]
[null,null,null,null,null,null,null,null,null,null,null,null,null,null,null,null,null,null,null,null,null,null,null,null,null,null,null,null,null,null,null,null,null,null,null,null,null,null,null,null,null,null,null,null,null,null,null,null,null,null,null,null,null,null,null,null,null,null,null,null,null,null,null,null,null,null,null,null,null,null,null,null,null,null,null,null,null,null,null,null,null,222,"B",5,22,1,0]
[null,null,null,null,null,null,null,null,null,null,null,null,null,null,null,null,null,null,null,null,null,null,null,null,null,null,null,null,null,null,null,null,null,null,null,null,null,null,null,null,null,null,null,null,null,null,null,null,null,null,null,null,null,null,null,null,null,null,null,null,null,null,null,null,null,null,null,null,null,null,null,null,null,null,null,null,null,null,null,null,null,223,"B",5,23,1,1]
[null,null,null,null,null,null,null,null,null,null,null,null,null,null,null,null,null,null,null,null,null,null,null,null,null,null,null,null,null,null,null,null,null,null,null,null,null,null,null,null,null,null,null,null,null,null,null,null,null,null,null,null,null,null,null,null,null,null,null,null,null,null,null,null,null,null,null,null,null,null,null,null,null,null,null,null,null,null,null,null,null,224,"B",5,24,1,1]
[null,null,null,null,null,null,null,null,null,null,null,null,null,null,null,null,null,null,null,null,null,null,null,null,null,null,null,null,null,null,null,null,null,null,null,null,null,null,null,null,null,null,null,null,null,null,null,null,null,null,null,null,null,null,null,null,null,null,null,null,null,null,null,null,null,null,null,null,null,null,null,null,null,null,null,null,null,null,null,null,null,225,"B",5,25,0,0]
[null,null,null,null,null,null,null,null,null,null,null,null,null,null,null,null,null,null,null,null,null,null,null,null,null,null,null,null,null,null,null,null,null,null,null,null,null,null,null,null,null,null,null,null,null,null,null,null,null,null,null,null,null,null,null,null,null,null,null,null,null,null,null,null,null,null,null,null,null,null,null,null,null,null,null,null,null,null,null,null,null,226,"B",5,26,0,0]
[null,null,null,null,null,null,null,null,null,null,null,null,null,null,null,null,null,null,null,null,null,null,null,null,null,null,null,null,null,null,null,null,null,null,null,null,null,null,null,null,null,null,null,null,null,null,null,null,null,null,null,null,null,null,null,null,null,null,null,null,null,null,null,null,null,null,null,null,null,null,null,null,null,null,null,null,null,null,null,null,null,227,"B",5,27,1,1]
[null,null,null,null,null,null,null,null,null,null,null,null,null,null,null,null,null,null,null,null,null,null,null,null,null,null,null,null,null,null,null,null,null,null,null,null,null,null,null,null,null,null,null,null,null,null,null,null,null,null,null,null,null,null,null,null,null,null,null,null,null,null,null,null,null,null,null,null,null,null,null,null,null,null,null,null,null,null,null,null,null,228,"B",5,28,1,1]
[null,null,null,null,null,null,null,null,null,null,null,null,null,null,null,null,null,null,null,null,null,null,null,null,null,null,null,null,null,null,null,null,null,null,null,null,null,null,null,null,null,null,null,null,null,null,null,null,null,null,null,null,null,null,null,null,null,null,null,null,null,null,null,null,null,null,null,null,null,null,null,null,null,null,null,null,null,null,null,null,null,229,"B",5,29,1,1]
[null,null,null,null,null,null,null,null,null,null,null,null,null,null,null,null,null,null,null,null,null,null,null,null,null,null,null,null,null,null,null,null,null,null,null,null,null,null,null,null,null,null,null,null,null,null,null,null,null,null,null,null,null,null,null,null,null,null,null,null,null,null,null,null,null,null,null,null,null,null,null,null,null,null,null,null,null,null,null,null,null,230,"B",5,30,0,0]
[null,null,null,null,null,null,null,null,null,null,null,null,null,null,null,null,null,null,null,null,null,null,null,null,null,null,null,null,null,null,null,null,null,null,null,null,null,null,null,null,null,null,null,null,null,null,null,null,null,null,null,null,null,null,null,null,null,null,null,null,null,null,null,null,null,null,null,null,null,null,null,null,null,null,null,null,null,null,null,null,null,231,"B",5,31,1,1]
[null,null,null,null,null,null,null,null,null,null,null,null,null,null,null,null,null,null,null,null,null,null,null,null,null,null,null,null,null,null,null,null,null,null,null,null,null,null,null,null,null,null,null,null,null,null,null,null,null,null,null,null,null,null,null,null,null,null,null,null,null,null,null,null,null,null,null,null,null,null,null,null,null,null,null,null,null,null,null,null,null,232,"B",5,32,1,1]
[null,null,null,null,null,null,null,null,null,null,null,null,null,null,null,null,null,null,null,null,null,null,null,null,null,null,null,null,null,null,null,null,null,null,null,null,null,null,null,null,null,null,null,null,null,null,null,null,null,null,null,null,null,null,null,null,null,null,null,null,null,null,null,null,null,null,null,null,null,null,null,null,null,null,null,null,null,null,null,null,null,233,"B",5,33,{"$f":"G40","v":1},1]
[null,null,null,null,null,null,null,null,null,null,null,null,null,null,null,null,null,null,null,null,null,null,null,null,null,null,null,null,null,null,null,null,null,null,null,null,null,null,null,null,null,null,null,null,null,null,null,null,null,null,null,null,null,null,null,null,null,null,null,null,null,null,null,null,null,null,null,null,null,null,null,null,null,null,null,null,null,null,null,null,null,234,"B",5,34,0,0]
[null,null,null,null,null,null,null,null,null,null,null,null,null,null,null,null,null,null,null,null,null,null,null,null,null,null,null,null,null,null,null,null,null,null,null,null,null,null,null,null,null,null,null,null,null,null,null,null,null,null,null,null,null,null,null,null,null,null,null,null,null,null,null,null,null,null,null,null,null,null,null,null,null,null,null,null,null,null,null,null,null,235,"B",5,35,1,1]
[null,null,null,null,null,null,null,null,null,null,null,null,null,null,null,null,null,null,null,null,null,null,null,null,null,null,null,null,null,null,null,null,null,null,null,null,null,null,null,null,null,null,null,null,null,null,null,null,null,null,null,null,null,null,null,null,null,null,null,null,null,null,null,null,null,null,null,null,null,null,null,null,null,null,null,null,null,null,null,null,null,236,"B",5,36,1,1]
[null,null,null,null,null,null,null,null,null,null,null,null,null,null,null,null,null,null,null,null,null,null,null,null,null,null,null,null,null,null,null,null,null,null,null,null,null,null,null,null,null,null,null,null,null,null,null,null,null,null,null,null,null,null,null,null,null,null,null,null,null,null,null,null,null,null,null,null,null,null,null,null,null,null,null,null,null,null,null,null,null,237,"B",5,37,"",""]
[null,null,null,null,null,null,null,null,null,null,null,null,null,null,null,null,null,null,null,null,null,null,null,null,null,null,null,null,null,null,null,null,null,null,null,null,null,null,null,null,null,null,null,null,null,null,null,null,null,null,null,null,null,null,null,null,null,null,null,null,null,null,null,null,null,null,null,null,null,null,null,null,null,null,null,null,null,null,null,null,null,238,"B",5,38,"",""]
[null,null,null,null,null,null,null,null,null,null,null,null,null,null,null,null,null,null,null,null,null,null,null,null,null,null,null,null,null,null,null,null,null,null,null,null,null,null,null,null,null,null,null,null,null,null,null,null,null,null,null,null,null,null,null,null,null,null,null,null,null,null,null,null,null,null,null,null,null,null,null,null,null,null,null,null,null,null,null,null,null,239,"B",5,39,"",""]
[null,null,null,null,null,null,null,null,null,null,null,null,null,null,null,null,null,null,null,null,null,null,null,null,null,null,null,null,null,null,null,null,null,null,null,null,null,null,null,null,null,null,null,null,null,null,null,null,null,null,null,null,null,null,null,null,null,null,null,null,null,null,null,null,null,null,null,null,null,null,null,null,null,null,null,null,null,null,null,null,null,240,"B",5,40,"",""]
[null,null,null,null,null,null,null,null,null,null,null,null,null,null,null,null,null,null,null,null,null,null,null,null,null,null,null,null,null,null,null,null,null,null,null,null,null,null,null,null,null,null,null,null,null,null,null,null,null,null,null,null,null,null,null,null,null,null,null,null,null,null,null,null,null,null,null,null,null,null,null,null,null,null,null,null,null,null,null,null,null,241,"B",5,41,"",""]
[null,null,null,null,null,null,null,null,null,null,null,null,null,null,null,null,null,null,null,null,null,null,null,null,null,null,null,null,null,null,null,null,null,null,null,null,null,null,null,null,null,null,null,null,null,null,null,null,null,null,null,null,null,null,null,null,null,null,null,null,null,null,null,null,null,null,null,null,null,null,null,null,null,null,null,null,null,null,null,null,null,242,"B",5,42,"",""]
[null,null,null,null,null,null,null,null,null,null,null,null,null,null,null,null,null,null,null,null,null,null,null,null,null,null,null,null,null,null,null,null,null,null,null,null,null,null,null,null,null,null,null,null,null,null,null,null,null,null,null,null,null,null,null,null,null,null,null,null,null,null,null,null,null,null,null,null,null,null,null,null,null,null,null,null,null,null,null,null,null,243,"B",5,43,"",""]
[null,null,null,null,null,null,null,null,null,null,null,null,null,null,null,null,null,null,null,null,null,null,null,null,null,null,null,null,null,null,null,null,null,null,null,null,null,null,null,null,null,null,null,null,null,null,null,null,null,null,null,null,null,null,null,null,null,null,null,null,null,null,null,null,null,null,null,null,null,null,null,null,null,null,null,null,null,null,null,null,null,244,"B",5,44,"",""]
[null,null,null,null,null,null,null,null,null,null,null,null,null,null,null,null,null,null,null,null,null,null,null,null,null,null,null,null,null,null,null,null,null,null,null,null,null,null,null,null,null,null,null,null,null,null,null,null,null,null,null,null,null,null,null,null,null,null,null,null,null,null,null,null,null,null,null,null,null,null,null,null,null,null,null,null,null,null,null,null,null,245,"B",5,45,"",""]
[null,null,null,null,null,null,null,null,null,null,null,null,null,null,null,null,null,null,null,null,null,null,null,null,null,null,null,null,null,null,null,null,null,null,null,null,null,null,null,null,null,null,null,null,null,null,null,null,null,null,null,null,null,null,null,null,null,null,null,null,null,null,null,null,null,null,null,null,null,null,null,null,null,null,null,null,null,null,null,null,null,246,"B",5,46,"",""]
[null,null,null,null,null,null,null,null,null,null,null,null,null,null,null,null,null,null,null,null,null,null,null,null,null,null,null,null,null,null,null,null,null,null,null,null,null,null,null,null,null,null,null,null,null,null,null,null,null,null,null,null,null,null,null,null,null,null,null,null,null,null,null,null,null,null,null,null,null,null,null,null,null,null,null,null,null,null,null,null,null,247,"B",5,47,"",""]
[null,null,null,null,null,null,null,null,null,null,null,null,null,null,null,null,null,null,null,null,null,null,null,null,null,null,null,null,null,null,null,null,null,null,null,null,null,null,null,null,null,null,null,null,null,null,null,null,null,null,null,null,null,null,null,null,null,null,null,null,null,null,null,null,null,null,null,null,null,null,null,null,null,null,null,null,null,null,null,null,null,248,"B",5,48,"",""]
[null,null,null,null,null,null,null,null,null,null,null,null,null,null,null,null,null,null,null,null,null,null,null,null,null,null,null,null,null,null,null,null,null,null,null,null,null,null,null,null,null,null,null,null,null,null,null,null,null,null,null,null,null,null,null,null,null,null,null,null,null,null,null,null,null,null,null,null,null,null,null,null,null,null,null,null,null,null,null,null,null,249,"B",5,49,"",""]
[null,null,null,null,null,null,null,null,null,null,null,null,null,null,null,null,null,null,null,null,null,null,null,null,null,null,null,null,null,null,null,null,null,null,null,null,null,null,null,null,null,null,null,null,null,null,null,null,null,null,null,null,null,null,null,null,null,null,null,null,null,null,null,null,null,null,null,null,null,null,null,null,null,null,null,null,null,null,null,null,null,250,"B",5,50,"",""]
[null,null,null,null,null,null,null,null,null,null,null,null,null,null,null,null,null,null,null,null,null,null,null,null,null,null,null,null,null,null,null,null,null,null,null,null,null,null,null,null,null,null,null,null,null,null,null,null,null,null,null,null,null,null,null,null,null,null,null,null,null,null,null,null,null,null,null,null,null,null,null,null,null,null,null,null,null,null,null,null,null,251,"B",6,1,{"$f":"H8","v":1},{"$f":"I8","v":0}]
[null,null,null,null,null,null,null,null,null,null,null,null,null,null,null,null,null,null,null,null,null,null,null,null,null,null,null,null,null,null,null,null,null,null,null,null,null,null,null,null,null,null,null,null,null,null,null,null,null,null,null,null,null,null,null,null,null,null,null,null,null,null,null,null,null,null,null,null,null,null,null,null,null,null,null,null,null,null,null,null,null,252,"B",6,2,{"$f":"H9","v":1},{"$f":"I9","v":1}]
[null,null,null,null,null,null,null,null,null,null,null,null,null,null,null,null,null,null,null,null,null,null,null,null,null,null,null,null,null,null,null,null,null,null,null,null,null,null,null,null,null,null,null,null,null,null,null,null,null,null,null,null,null,null,null,null,null,null,null,null,null,null,null,null,null,null,null,null,null,null,null,null,null,null,null,null,null,null,null,null,null,253,"B",6,3,0,0]
[null,null,null,null,null,null,null,null,null,null,null,null,null,null,null,null,null,null,null,null,null,null,null,null,null,null,null,null,null,null,null,null,null,null,null,null,null,null,null,null,null,null,null,null,null,null,null,null,null,null,null,null,null,null,null,null,null,null,null,null,null,null,null,null,null,null,null,null,null,null,null,null,null,null,null,null,null,null,null,null,null,254,"B",6,4,0,0]
[null,null,null,null,null,null,null,null,null,null,null,null,null,null,null,null,null,null,null,null,null,null,null,null,null,null,null,null,null,null,null,null,null,null,null,null,null,null,null,null,null,null,null,null,null,null,null,null,null,null,null,null,null,null,null,null,null,null,null,null,null,null,null,null,null,null,null,null,null,null,null,null,null,null,null,null,null,null,null,null,null,255,"B",6,5,0,0]
[null,null,null,null,null,null,null,null,null,null,null,null,null,null,null,null,null,null,null,null,null,null,null,null,null,null,null,null,null,null,null,null,null,null,null,null,null,null,null,null,null,null,null,null,null,null,null,null,null,null,null,null,null,null,null,null,null,null,null,null,null,null,null,null,null,null,null,null,null,null,null,null,null,null,null,null,null,null,null,null,null,256,"B",6,6,0,1]
[null,null,null,null,null,null,null,null,null,null,null,null,null,null,null,null,null,null,null,null,null,null,null,null,null,null,null,null,null,null,null,null,null,null,null,null,null,null,null,null,null,null,null,null,null,null,null,null,null,null,null,null,null,null,null,null,null,null,null,null,null,null,null,null,null,null,null,null,null,null,null,null,null,null,null,null,null,null,null,null,null,257,"B",6,7,1,1]
[null,null,null,null,null,null,null,null,null,null,null,null,null,null,null,null,null,null,null,null,null,null,null,null,null,null,null,null,null,null,null,null,null,null,null,null,null,null,null,null,null,null,null,null,null,null,null,null,null,null,null,null,null,null,null,null,null,null,null,null,null,null,null,null,null,null,null,null,null,null,null,null,null,null,null,null,null,null,null,null,null,258,"B",6,8,1,1]
[null,null,null,null,null,null,null,null,null,null,null,null,null,null,null,null,null,null,null,null,null,null,null,null,null,null,null,null,null,null,null,null,null,null,null,null,null,null,null,null,null,null,null,null,null,null,null,null,null,null,null,null,null,null,null,null,null,null,null,null,null,null,null,null,null,null,null,null,null,null,null,null,null,null,null,null,null,null,null,null,null,259,"B",6,9,0,0]
[null,null,null,null,null,null,null,null,null,null,null,null,null,null,null,null,null,null,null,null,null,null,null,null,null,null,null,null,null,null,null,null,null,null,null,null,null,null,null,null,null,null,null,null,null,null,null,null,null,null,null,null,null,null,null,null,null,null,null,null,null,null,null,null,null,null,null,null,null,null,null,null,null,null,null,null,null,null,null,null,null,260,"B",6,10,1,1]
[null,null,null,null,null,null,null,null,null,null,null,null,null,null,null,null,null,null,null,null,null,null,null,null,null,null,null,null,null,null,null,null,null,null,null,null,null,null,null,null,null,null,null,null,null,null,null,null,null,null,null,null,null,null,null,null,null,null,null,null,null,null,null,null,null,null,null,null,null,null,null,null,null,null,null,null,null,null,null,null,null,261,"B",6,11,1,1]
[null,null,null,null,null,null,null,null,null,null,null,null,null,null,null,null,null,null,null,null,null,null,null,null,null,null,null,null,null,null,null,null,null,null,null,null,null,null,null,null,null,null,null,null,null,null,null,null,null,null,null,null,null,null,null,null,null,null,null,null,null,null,null,null,null,null,null,null,null,null,null,null,null,null,null,null,null,null,null,null,null,262,"B",6,12,0,0]
[null,null,null,null,null,null,null,null,null,null,null,null,null,null,null,null,null,null,null,null,null,null,null,null,null,null,null,null,null,null,null,null,null,null,null,null,null,null,null,null,null,null,null,null,null,null,null,null,null,null,null,null,null,null,null,null,null,null,null,null,null,null,null,null,null,null,null,null,null,null,null,null,null,null,null,null,null,null,null,null,null,263,"B",6,13,1,1]
[null,null,null,null,null,null,null,null,null,null,null,null,null,null,null,null,null,null,null,null,null,null,null,null,null,null,null,null,null,null,null,null,null,null,null,null,null,null,null,null,null,null,null,null,null,null,null,null,null,null,null,null,null,null,null,null,null,null,null,null,null,null,null,null,null,null,null,null,null,null,null,null,null,null,null,null,null,null,null,null,null,264,"B",6,14,1,1]
[null,null,null,null,null,null,null,null,null,null,null,null,null,null,null,null,null,null,null,null,null,null,null,null,null,null,null,null,null,null,null,null,null,null,null,null,null,null,null,null,null,null,null,null,null,null,null,null,null,null,null,null,null,null,null,null,null,null,null,null,null,null,null,null,null,null,null,null,null,null,null,null,null,null,null,null,null,null,null,null,null,265,"B",6,15,1,1]
[null,null,null,null,null,null,null,null,null,null,null,null,null,null,null,null,null,null,null,null,null,null,null,null,null,null,null,null,null,null,null,null,null,null,null,null,null,null,null,null,null,null,null,null,null,null,null,null,null,null,null,null,null,null,null,null,null,null,null,null,null,null,null,null,null,null,null,null,null,null,null,null,null,null,null,null,null,null,null,null,null,266,"B",6,16,1,1]
[null,null,null,null,null,null,null,null,null,null,null,null,null,null,null,null,null,null,null,null,null,null,null,null,null,null,null,null,null,null,null,null,null,null,null,null,null,null,null,null,null,null,null,null,null,null,null,null,null,null,null,null,null,null,null,null,null,null,null,null,null,null,null,null,null,null,null,null,null,null,null,null,null,null,null,null,null,null,null,null,null,267,"B",6,17,1,1]
[null,null,null,null,null,null,null,null,null,null,null,null,null,null,null,null,null,null,null,null,null,null,null,null,null,null,null,null,null,null,null,null,null,null,null,null,null,null,null,null,null,null,null,null,null,null,null,null,null,null,null,null,null,null,null,null,null,null,null,null,null,null,null,null,null,null,null,null,null,null,null,null,null,null,null,null,null,null,null,null,null,268,"B",6,18,1,1]
[null,null,null,null,null,null,null,null,null,null,null,null,null,null,null,null,null,null,null,null,null,null,null,null,null,null,null,null,null,null,null,null,null,null,null,null,null,null,null,null,null,null,null,null,null,null,null,null,null,null,null,null,null,null,null,null,null,null,null,null,null,null,null,null,null,null,null,null,null,null,null,null,null,null,null,null,null,null,null,null,null,269,"B",6,19,1,1]
[null,null,null,null,null,null,null,null,null,null,null,null,null,null,null,null,null,null,null,null,null,null,null,null,null,null,null,null,null,null,null,null,null,null,null,null,null,null,null,null,null,null,null,null,null,null,null,null,null,null,null,null,null,null,null,null,null,null,null,null,null,null,null,null,null,null,null,null,null,null,null,null,null,null,null,null,null,null,null,null,null,270,"B",6,20,1,1]
[null,null,null,null,null,null,null,null,null,null,null,null,null,null,null,null,null,null,null,null,null,null,null,null,null,null,null,null,null,null,null,null,null,null,null,null,null,null,null,null,null,null,null,null,null,null,null,null,null,null,null,null,null,null,null,null,null,null,null,null,null,null,null,null,null,null,null,null,null,null,null,null,null,null,null,null,null,null,null,null,null,271,"B",6,21,1,1]
[null,null,null,null,null,null,null,null,null,null,null,null,null,null,null,null,null,null,null,null,null,null,null,null,null,null,null,null,null,null,null,null,null,null,null,null,null,null,null,null,null,null,null,null,null,null,null,null,null,null,null,null,null,null,null,null,null,null,null,null,null,null,null,null,null,null,null,null,null,null,null,null,null,null,null,null,null,null,null,null,null,272,"B",6,22,0,0]
[null,null,null,null,null,null,null,null,null,null,null,null,null,null,null,null,null,null,null,null,null,null,null,null,null,null,null,null,null,null,null,null,null,null,null,null,null,null,null,null,null,null,null,null,null,null,null,null,null,null,null,null,null,null,null,null,null,null,null,null,null,null,null,null,null,null,null,null,null,null,null,null,null,null,null,null,null,null,null,null,null,273,"B",6,23,1,1]
[null,null,null,null,null,null,null,null,null,null,null,null,null,null,null,null,null,null,null,null,null,null,null,null,null,null,null,null,null,null,null,null,null,null,null,null,null,null,null,null,null,null,null,null,null,null,null,null,null,null,null,null,null,null,null,null,null,null,null,null,null,null,null,null,null,null,null,null,null,null,null,null,null,null,null,null,null,null,null,null,null,274,"B",6,24,1,1]
[null,null,null,null,null,null,null,null,null,null,null,null,null,null,null,null,null,null,null,null,null,null,null,null,null,null,null,null,null,null,null,null,null,null,null,null,null,null,null,null,null,null,null,null,null,null,null,null,null,null,null,null,null,null,null,null,null,null,null,null,null,null,null,null,null,null,null,null,null,null,null,null,null,null,null,null,null,null,null,null,null,275,"B",6,25,0,0]
[null,null,null,null,null,null,null,null,null,null,null,null,null,null,null,null,null,null,null,null,null,null,null,null,null,null,null,null,null,null,null,null,null,null,null,null,null,null,null,null,null,null,null,null,null,null,null,null,null,null,null,null,null,null,null,null,null,null,null,null,null,null,null,null,null,null,null,null,null,null,null,null,null,null,null,null,null,null,null,null,null,276,"B",6,26,0,0]
[null,null,null,null,null,null,null,null,null,null,null,null,null,null,null,null,null,null,null,null,null,null,null,null,null,null,null,null,null,null,null,null,null,null,null,null,null,null,null,null,null,null,null,null,null,null,null,null,null,null,null,null,null,null,null,null,null,null,null,null,null,null,null,null,null,null,null,null,null,null,null,null,null,null,null,null,null,null,null,null,null,277,"B",6,27,1,1]
[null,null,null,null,null,null,null,null,null,null,null,null,null,null,null,null,null,null,null,null,null,null,null,null,null,null,null,null,null,null,null,null,null,null,null,null,null,null,null,null,null,null,null,null,null,null,null,null,null,null,null,null,null,null,null,null,null,null,null,null,null,null,null,null,null,null,null,null,null,null,null,null,null,null,null,null,null,null,null,null,null,278,"B",6,28,1,1]
[null,null,null,null,null,null,null,null,null,null,null,null,null,null,null,null,null,null,null,null,null,null,null,null,null,null,null,null,null,null,null,null,null,null,null,null,null,null,null,null,null,null,null,null,null,null,null,null,null,null,null,null,null,null,null,null,null,null,null,null,null,null,null,null,null,null,null,null,null,null,null,null,null,null,null,null,null,null,null,null,null,279,"B",6,29,1,1]
[null,null,null,null,null,null,null,null,null,null,null,null,null,null,null,null,null,null,null,null,null,null,null,null,null,null,null,null,null,null,null,null,null,null,null,null,null,null,null,null,null,null,null,null,null,null,null,null,null,null,null,null,null,null,null,null,null,null,null,null,null,null,null,null,null,null,null,null,null,null,null,null,null,null,null,null,null,null,null,null,null,280,"B",6,30,1,0]
[null,null,null,null,null,null,null,null,null,null,null,null,null,null,null,null,null,null,null,null,null,null,null,null,null,null,null,null,null,null,null,null,null,null,null,null,null,null,null,null,null,null,null,null,null,null,null,null,null,null,null,null,null,null,null,null,null,null,null,null,null,null,null,null,null,null,null,null,null,null,null,null,null,null,null,null,null,null,null,null,null,281,"B",6,31,1,1]
[null,null,null,null,null,null,null,null,null,null,null,null,null,null,null,null,null,null,null,null,null,null,null,null,null,null,null,null,null,null,null,null,null,null,null,null,null,null,null,null,null,null,null,null,null,null,null,null,null,null,null,null,null,null,null,null,null,null,null,null,null,null,null,null,null,null,null,null,null,null,null,null,null,null,null,null,null,null,null,null,null,282,"B",6,32,1,1]
[null,null,null,null,null,null,null,null,null,null,null,null,null,null,null,null,null,null,null,null,null,null,null,null,null,null,null,null,null,null,null,null,null,null,null,null,null,null,null,null,null,null,null,null,null,null,null,null,null,null,null,null,null,null,null,null,null,null,null,null,null,null,null,null,null,null,null,null,null,null,null,null,null,null,null,null,null,null,null,null,null,283,"B",6,33,1,1]
[null,null,null,null,null,null,null,null,null,null,null,null,null,null,null,null,null,null,null,null,null,null,null,null,null,null,null,null,null,null,null,null,null,null,null,null,null,null,null,null,null,null,null,null,null,null,null,null,null,null,null,null,null,null,null,null,null,null,null,null,null,null,null,null,null,null,null,null,null,null,null,null,null,null,null,null,null,null,null,null,null,284,"B",6,34,{"$f":"H41","v":1},0]
[null,null,null,null,null,null,null,null,null,null,null,null,null,null,null,null,null,null,null,null,null,null,null,null,null,null,null,null,null,null,null,null,null,null,null,null,null,null,null,null,null,null,null,null,null,null,null,null,null,null,null,null,null,null,null,null,null,null,null,null,null,null,null,null,null,null,null,null,null,null,null,null,null,null,null,null,null,null,null,null,null,285,"B",6,35,1,1]
[null,null,null,null,null,null,null,null,null,null,null,null,null,null,null,null,null,null,null,null,null,null,null,null,null,null,null,null,null,null,null,null,null,null,null,null,null,null,null,null,null,null,null,null,null,null,null,null,null,null,null,null,null,null,null,null,null,null,null,null,null,null,null,null,null,null,null,null,null,null,null,null,null,null,null,null,null,null,null,null,null,286,"B",6,36,1,1]
[null,null,null,null,null,null,null,null,null,null,null,null,null,null,null,null,null,null,null,null,null,null,null,null,null,null,null,null,null,null,null,null,null,null,null,null,null,null,null,null,null,null,null,null,null,null,null,null,null,null,null,null,null,null,null,null,null,null,null,null,null,null,null,null,null,null,null,null,null,null,null,null,null,null,null,null,null,null,null,null,null,287,"B",6,37,"",""]
[null,null,null,null,null,null,null,null,null,null,null,null,null,null,null,null,null,null,null,null,null,null,null,null,null,null,null,null,null,null,null,null,null,null,null,null,null,null,null,null,null,null,null,null,null,null,null,null,null,null,null,null,null,null,null,null,null,null,null,null,null,null,null,null,null,null,null,null,null,null,null,null,null,null,null,null,null,null,null,null,null,288,"B",6,38,"",""]
[null,null,null,null,null,null,null,null,null,null,null,null,null,null,null,null,null,null,null,null,null,null,null,null,null,null,null,null,null,null,null,null,null,null,null,null,null,null,null,null,null,null,null,null,null,null,null,null,null,null,null,null,null,null,null,null,null,null,null,null,null,null,null,null,null,null,null,null,null,null,null,null,null,null,null,null,null,null,null,null,null,289,"B",6,39,"",""]
[null,null,null,null,null,null,null,null,null,null,null,null,null,null,null,null,null,null,null,null,null,null,null,null,null,null,null,null,null,null,null,null,null,null,null,null,null,null,null,null,null,null,null,null,null,null,null,null,null,null,null,null,null,null,null,null,null,null,null,null,null,null,null,null,null,null,null,null,null,null,null,null,null,null,null,null,null,null,null,null,null,290,"B",6,40,"",""]
[null,null,null,null,null,null,null,null,null,null,null,null,null,null,null,null,null,null,null,null,null,null,null,null,null,null,null,null,null,null,null,null,null,null,null,null,null,null,null,null,null,null,null,null,null,null,null,null,null,null,null,null,null,null,null,null,null,null,null,null,null,null,null,null,null,null,null,null,null,null,null,null,null,null,null,null,null,null,null,null,null,291,"B",6,41,"",""]
[null,null,null,null,null,null,null,null,null,null,null,null,null,null,null,null,null,null,null,null,null,null,null,null,null,null,null,null,null,null,null,null,null,null,null,null,null,null,null,null,null,null,null,null,null,null,null,null,null,null,null,null,null,null,null,null,null,null,null,null,null,null,null,null,null,null,null,null,null,null,null,null,null,null,null,null,null,null,null,null,null,292,"B",6,42,"",""]
[null,null,null,null,null,null,null,null,null,null,null,null,null,null,null,null,null,null,null,null,null,null,null,null,null,null,null,null,null,null,null,null,null,null,null,null,null,null,null,null,null,null,null,null,null,null,null,null,null,null,null,null,null,null,null,null,null,null,null,null,null,null,null,null,null,null,null,null,null,null,null,null,null,null,null,null,null,null,null,null,null,293,"B",6,43,"",""]
[null,null,null,null,null,null,null,null,null,null,null,null,null,null,null,null,null,null,null,null,null,null,null,null,null,null,null,null,null,null,null,null,null,null,null,null,null,null,null,null,null,null,null,null,null,null,null,null,null,null,null,null,null,null,null,null,null,null,null,null,null,null,null,null,null,null,null,null,null,null,null,null,null,null,null,null,null,null,null,null,null,294,"B",6,44,"",""]
[null,null,null,null,null,null,null,null,null,null,null,null,null,null,null,null,null,null,null,null,null,null,null,null,null,null,null,null,null,null,null,null,null,null,null,null,null,null,null,null,null,null,null,null,null,null,null,null,null,null,null,null,null,null,null,null,null,null,null,null,null,null,null,null,null,null,null,null,null,null,null,null,null,null,null,null,null,null,null,null,null,295,"B",6,45,"",""]
[null,null,null,null,null,null,null,null,null,null,null,null,null,null,null,null,null,null,null,null,null,null,null,null,null,null,null,null,null,null,null,null,null,null,null,null,null,null,null,null,null,null,null,null,null,null,null,null,null,null,null,null,null,null,null,null,null,null,null,null,null,null,null,null,null,null,null,null,null,null,null,null,null,null,null,null,null,null,null,null,null,296,"B",6,46,"",""]
[null,null,null,null,null,null,null,null,null,null,null,null,null,null,null,null,null,null,null,null,null,null,null,null,null,null,null,null,null,null,null,null,null,null,null,null,null,null,null,null,null,null,null,null,null,null,null,null,null,null,null,null,null,null,null,null,null,null,null,null,null,null,null,null,null,null,null,null,null,null,null,null,null,null,null,null,null,null,null,null,null,297,"B",6,47,"",""]
[null,null,null,null,null,null,null,null,null,null,null,null,null,null,null,null,null,null,null,null,null,null,null,null,null,null,null,null,null,null,null,null,null,null,null,null,null,null,null,null,null,null,null,null,null,null,null,null,null,null,null,null,null,null,null,null,null,null,null,null,null,null,null,null,null,null,null,null,null,null,null,null,null,null,null,null,null,null,null,null,null,298,"B",6,48,"",""]
[null,null,null,null,null,null,null,null,null,null,null,null,null,null,null,null,null,null,null,null,null,null,null,null,null,null,null,null,null,null,null,null,null,null,null,null,null,null,null,null,null,null,null,null,null,null,null,null,null,null,null,null,null,null,null,null,null,null,null,null,null,null,null,null,null,null,null,null,null,null,null,null,null,null,null,null,null,null,null,null,null,299,"B",6,49,"",""]
[null,null,null,null,null,null,null,null,null,null,null,null,null,null,null,null,null,null,null,null,null,null,null,null,null,null,null,null,null,null,null,null,null,null,null,null,null,null,null,null,null,null,null,null,null,null,null,null,null,null,null,null,null,null,null,null,null,null,null,null,null,null,null,null,null,null,null,null,null,null,null,null,null,null,null,null,null,null,null,null,null,300,"B",6,50,"",""]
[null,null,null,null,null,null,null,null,null,null,null,null,null,null,null,null,null,null,null,null,null,null,null,null,null,null,null,null,null,null,null,null,null,null,null,null,null,null,null,null,null,null,null,null,null,null,null,null,null,null,null,null,null,null,null,null,null,null,null,null,null,null,null,null,null,null,null,null,null,null,null,null,null,null,null,null,null,null,null,null,null,301,"C",7,1,{"$f":"#REF!","v":{"$error":"#REF!"}},{"$f":"I8","v":0}]
[null,null,null,null,null,null,null,null,null,null,null,null,null,null,null,null,null,null,null,null,null,null,null,null,null,null,null,null,null,null,null,null,null,null,null,null,null,null,null,null,null,null,null,null,null,null,null,null,null,null,null,null,null,null,null,null,null,null,null,null,null,null,null,null,null,null,null,null,null,null,null,null,null,null,null,null,null,null,null,null,null,302,"C",7,2,{"$f":"#REF!","v":{"$error":"#REF!"}},{"$f":"I9","v":1}]
[null,null,null,null,null,null,null,null,null,null,null,null,null,null,null,null,null,null,null,null,null,null,null,null,null,null,null,null,null,null,null,null,null,null,null,null,null,null,null,null,null,null,null,null,null,null,null,null,null,null,null,null,null,null,null,null,null,null,null,null,null,null,null,null,null,null,null,null,null,null,null,null,null,null,null,null,null,null,null,null,null,303,"C",7,3,{"$f":"#REF!","v":{"$error":"#REF!"}},0]
[null,null,null,null,null,null,null,null,null,null,null,null,null,null,null,null,null,null,null,null,null,null,null,null,null,null,null,null,null,null,null,null,null,null,null,null,null,null,null,null,null,null,null,null,null,null,null,null,null,null,null,null,null,null,null,null,null,null,null,null,null,null,null,null,null,null,null,null,null,null,null,null,null,null,null,null,null,null,null,null,null,304,"C",7,4,{"$f":"#REF!","v":{"$error":"#REF!"}},0]
[null,null,null,null,null,null,null,null,null,null,null,null,null,null,null,null,null,null,null,null,null,null,null,null,null,null,null,null,null,null,null,null,null,null,null,null,null,null,null,null,null,null,null,null,null,null,null,null,null,null,null,null,null,null,null,null,null,null,null,null,null,null,null,null,null,null,null,null,null,null,null,null,null,null,null,null,null,null,null,null,null,305,"C",7,5,{"$f":"#REF!","v":{"$error":"#REF!"}},0]
[null,null,null,null,null,null,null,null,null,null,null,null,null,null,null,null,null,null,null,null,null,null,null,null,null,null,null,null,null,null,null,null,null,null,null,null,null,null,null,null,null,null,null,null,null,null,null,null,null,null,null,null,null,null,null,null,null,null,null,null,null,null,null,null,null,null,null,null,null,null,null,null,null,null,null,null,null,null,null,null,null,306,"C",7,6,{"$f":"#REF!","v":{"$error":"#REF!"}},1]
[null,null,null,null,null,null,null,null,null,null,null,null,null,null,null,null,null,null,null,null,null,null,null,null,null,null,null,null,null,null,null,null,null,null,null,null,null,null,null,null,null,null,null,null,null,null,null,null,null,null,null,null,null,null,null,null,null,null,null,null,null,null,null,null,null,null,null,null,null,null,null,null,null,null,null,null,null,null,null,null,null,307,"C",7,7,{"$f":"#REF!","v":{"$error":"#REF!"}},1]
[null,null,null,null,null,null,null,null,null,null,null,null,null,null,null,null,null,null,null,null,null,null,null,null,null,null,null,null,null,null,null,null,null,null,null,null,null,null,null,null,null,null,null,null,null,null,null,null,null,null,null,null,null,null,null,null,null,null,null,null,null,null,null,null,null,null,null,null,null,null,null,null,null,null,null,null,null,null,null,null,null,308,"C",7,8,{"$f":"#REF!","v":{"$error":"#REF!"}},1]
[null,null,null,null,null,null,null,null,null,null,null,null,null,null,null,null,null,null,null,null,null,null,null,null,null,null,null,null,null,null,null,null,null,null,null,null,null,null,null,null,null,null,null,null,null,null,null,null,null,null,null,null,null,null,null,null,null,null,null,null,null,null,null,null,null,null,null,null,null,null,null,null,null,null,null,null,null,null,null,null,null,309,"C",7,9,{"$f":"#REF!","v":{"$error":"#REF!"}},0]
[null,null,null,null,null,null,null,null,null,null,null,null,null,null,null,null,null,null,null,null,null,null,null,null,null,null,null,null,null,null,null,null,null,null,null,null,null,null,null,null,null,null,null,null,null,null,null,null,null,null,null,null,null,null,null,null,null,null,null,null,null,null,null,null,null,null,null,null,null,null,null,null,null,null,null,null,null,null,null,null,null,310,"C",7,10,{"$f":"#REF!","v":{"$error":"#REF!"}},1]
[null,null,null,null,null,null,null,null,null,null,null,null,null,null,null,null,null,null,null,null,null,null,null,null,null,null,null,null,null,null,null,null,null,null,null,null,null,null,null,null,null,null,null,null,null,null,null,null,null,null,null,null,null,null,null,null,null,null,null,null,null,null,null,null,null,null,null,null,null,null,null,null,null,null,null,null,null,null,null,null,null,311,"C",7,11,{"$f":"#REF!","v":{"$error":"#REF!"}},1]
[null,null,null,null,null,null,null,null,null,null,null,null,null,null,null,null,null,null,null,null,null,null,null,null,null,null,null,null,null,null,null,null,null,null,null,null,null,null,null,null,null,null,null,null,null,null,null,null,null,null,null,null,null,null,null,null,null,null,null,null,null,null,null,null,null,null,null,null,null,null,null,null,null,null,null,null,null,null,null,null,null,312,"C",7,12,{"$f":"#REF!","v":{"$error":"#REF!"}},0]
[null,null,null,null,null,null,null,null,null,null,null,null,null,null,null,null,null,null,null,null,null,null,null,null,null,null,null,null,null,null,null,null,null,null,null,null,null,null,null,null,null,null,null,null,null,null,null,null,null,null,null,null,null,null,null,null,null,null,null,null,null,null,null,null,null,null,null,null,null,null,null,null,null,null,null,null,null,null,null,null,null,313,"C",7,13,{"$f":"#REF!","v":{"$error":"#REF!"}},1]
[null,null,null,null,null,null,null,null,null,null,null,null,null,null,null,null,null,null,null,null,null,null,null,null,null,null,null,null,null,null,null,null,null,null,null,null,null,null,null,null,null,null,null,null,null,null,null,null,null,null,null,null,null,null,null,null,null,null,null,null,null,null,null,null,null,null,null,null,null,null,null,null,null,null,null,null,null,null,null,null,null,314,"C",7,14,{"$f":"#REF!","v":{"$error":"#REF!"}},1]
[null,null,null,null,null,null,null,null,null,null,null,null,null,null,null,null,null,null,null,null,null,null,null,null,null,null,null,null,null,null,null,null,null,null,null,null,null,null,null,null,null,null,null,null,null,null,null,null,null,null,null,null,null,null,null,null,null,null,null,null,null,null,null,null,null,null,null,null,null,null,null,null,null,null,null,null,null,null,null,null,null,315,"C",7,15,{"$f":"#REF!","v":{"$error":"#REF!"}},1]
[null,null,null,null,null,null,null,null,null,null,null,null,null,null,null,null,null,null,null,null,null,null,null,null,null,null,null,null,null,null,null,null,null,null,null,null,null,null,null,null,null,null,null,null,null,null,null,null,null,null,null,null,null,null,null,null,null,null,null,null,null,null,null,null,null,null,null,null,null,null,null,null,null,null,null,null,null,null,null,null,null,316,"C",7,16,{"$f":"#REF!","v":{"$error":"#REF!"}},1]
[null,null,null,null,null,null,null,null,null,null,null,null,null,null,null,null,null,null,null,null,null,null,null,null,null,null,null,null,null,null,null,null,null,null,null,null,null,null,null,null,null,null,null,null,null,null,null,null,null,null,null,null,null,null,null,null,null,null,null,null,null,null,null,null,null,null,null,null,null,null,null,null,null,null,null,null,null,null,null,null,null,317,"C",7,17,{"$f":"#REF!","v":{"$error":"#REF!"}},1]
[null,null,null,null,null,null,null,null,null,null,null,null,null,null,null,null,null,null,null,null,null,null,null,null,null,null,null,null,null,null,null,null,null,null,null,null,null,null,null,null,null,null,null,null,null,null,null,null,null,null,null,null,null,null,null,null,null,null,null,null,null,null,null,null,null,null,null,null,null,null,null,null,null,null,null,null,null,null,null,null,null,318,"C",7,18,{"$f":"#REF!","v":{"$error":"#REF!"}},1]
[null,null,null,null,null,null,null,null,null,null,null,null,null,null,null,null,null,null,null,null,null,null,null,null,null,null,null,null,null,null,null,null,null,null,null,null,null,null,null,null,null,null,null,null,null,null,null,null,null,null,null,null,null,null,null,null,null,null,null,null,null,null,null,null,null,null,null,null,null,null,null,null,null,null,null,null,null,null,null,null,null,319,"C",7,19,{"$f":"#REF!","v":{"$error":"#REF!"}},1]
[null,null,null,null,null,null,null,null,null,null,null,null,null,null,null,null,null,null,null,null,null,null,null,null,null,null,null,null,null,null,null,null,null,null,null,null,null,null,null,null,null,null,null,null,null,null,null,null,null,null,null,null,null,null,null,null,null,null,null,null,null,null,null,null,null,null,null,null,null,null,null,null,null,null,null,null,null,null,null,null,null,320,"C",7,20,{"$f":"#REF!","v":{"$error":"#REF!"}},1]
[null,null,null,null,null,null,null,null,null,null,null,null,null,null,null,null,null,null,null,null,null,null,null,null,null,null,null,null,null,null,null,null,null,null,null,null,null,null,null,null,null,null,null,null,null,null,null,null,null,null,null,null,null,null,null,null,null,null,null,null,null,null,null,null,null,null,null,null,null,null,null,null,null,null,null,null,null,null,null,null,null,321,"C",7,21,{"$f":"#REF!","v":{"$error":"#REF!"}},1]
[null,null,null,null,null,null,null,null,null,null,null,null,null,null,null,null,null,null,null,null,null,null,null,null,null,null,null,null,null,null,null,null,null,null,null,null,null,null,null,null,null,null,null,null,null,null,null,null,null,null,null,null,null,null,null,null,null,null,null,null,null,null,null,null,null,null,null,null,null,null,null,null,null,null,null,null,null,null,null,null,null,322,"C",7,22,{"$f":"#REF!","v":{"$error":"#REF!"}},0]
[null,null,null,null,null,null,null,null,null,null,null,null,null,null,null,null,null,null,null,null,null,null,null,null,null,null,null,null,null,null,null,null,null,null,null,null,null,null,null,null,null,null,null,null,null,null,null,null,null,null,null,null,null,null,null,null,null,null,null,null,null,null,null,null,null,null,null,null,null,null,null,null,null,null,null,null,null,null,null,null,null,323,"C",7,23,{"$f":"#REF!","v":{"$error":"#REF!"}},1]
[null,null,null,null,null,null,null,null,null,null,null,null,null,null,null,null,null,null,null,null,null,null,null,null,null,null,null,null,null,null,null,null,null,null,null,null,null,null,null,null,null,null,null,null,null,null,null,null,null,null,null,null,null,null,null,null,null,null,null,null,null,null,null,null,null,null,null,null,null,null,null,null,null,null,null,null,null,null,null,null,null,324,"C",7,24,{"$f":"#REF!","v":{"$error":"#REF!"}},1]
[null,null,null,null,null,null,null,null,null,null,null,null,null,null,null,null,null,null,null,null,null,null,null,null,null,null,null,null,null,null,null,null,null,null,null,null,null,null,null,null,null,null,null,null,null,null,null,null,null,null,null,null,null,null,null,null,null,null,null,null,null,null,null,null,null,null,null,null,null,null,null,null,null,null,null,null,null,null,null,null,null,325,"C",7,25,{"$f":"#REF!","v":{"$error":"#REF!"}},0]
[null,null,null,null,null,null,null,null,null,null,null,null,null,null,null,null,null,null,null,null,null,null,null,null,null,null,null,null,null,null,null,null,null,null,null,null,null,null,null,null,null,null,null,null,null,null,null,null,null,null,null,null,null,null,null,null,null,null,null,null,null,null,null,null,null,null,null,null,null,null,null,null,null,null,null,null,null,null,null,null,null,326,"C",7,26,{"$f":"#REF!","v":{"$error":"#REF!"}},0]
[null,null,null,null,null,null,null,null,null,null,null,null,null,null,null,null,null,null,null,null,null,null,null,null,null,null,null,null,null,null,null,null,null,null,null,null,null,null,null,null,null,null,null,null,null,null,null,null,null,null,null,null,null,null,null,null,null,null,null,null,null,null,null,null,null,null,null,null,null,null,null,null,null,null,null,null,null,null,null,null,null,327,"C",7,27,{"$f":"#REF!","v":{"$error":"#REF!"}},1]
[null,null,null,null,null,null,null,null,null,null,null,null,null,null,null,null,null,null,null,null,null,null,null,null,null,null,null,null,null,null,null,null,null,null,null,null,null,null,null,null,null,null,null,null,null,null,null,null,null,null,null,null,null,null,null,null,null,null,null,null,null,null,null,null,null,null,null,null,null,null,null,null,null,null,null,null,null,null,null,null,null,328,"C",7,28,{"$f":"#REF!","v":{"$error":"#REF!"}},1]
[null,null,null,null,null,null,null,null,null,null,null,null,null,null,null,null,null,null,null,null,null,null,null,null,null,null,null,null,null,null,null,null,null,null,null,null,null,null,null,null,null,null,null,null,null,null,null,null,null,null,null,null,null,null,null,null,null,null,null,null,null,null,null,null,null,null,null,null,null,null,null,null,null,null,null,null,null,null,null,null,null,329,"C",7,29,{"$f":"#REF!","v":{"$error":"#REF!"}},1]
[null,null,null,null,null,null,null,null,null,null,null,null,null,null,null,null,null,null,null,null,null,null,null,null,null,null,null,null,null,null,null,null,null,null,null,null,null,null,null,null,null,null,null,null,null,null,null,null,null,null,null,null,null,null,null,null,null,null,null,null,null,null,null,null,null,null,null,null,null,null,null,null,null,null,null,null,null,null,null,null,null,330,"C",7,30,{"$f":"#REF!","v":{"$error":"#REF!"}},0]
[null,null,null,null,null,null,null,null,null,null,null,null,null,null,null,null,null,null,null,null,null,null,null,null,null,null,null,null,null,null,null,null,null,null,null,null,null,null,null,null,null,null,null,null,null,null,null,null,null,null,null,null,null,null,null,null,null,null,null,null,null,null,null,null,null,null,null,null,null,null,null,null,null,null,null,null,null,null,null,null,null,331,"C",7,31,{"$f":"#REF!","v":{"$error":"#REF!"}},1]
[null,null,null,null,null,null,null,null,null,null,null,null,null,null,null,null,null,null,null,null,null,null,null,null,null,null,null,null,null,null,null,null,null,null,null,null,null,null,null,null,null,null,null,null,null,null,null,null,null,null,null,null,null,null,null,null,null,null,null,null,null,null,null,null,null,null,null,null,null,null,null,null,null,null,null,null,null,null,null,null,null,332,"C",7,32,{"$f":"#REF!","v":{"$error":"#REF!"}},1]
[null,null,null,null,null,null,null,null,null,null,null,null,null,null,null,null,null,null,null,null,null,null,null,null,null,null,null,null,null,null,null,null,null,null,null,null,null,null,null,null,null,null,null,null,null,null,null,null,null,null,null,null,null,null,null,null,null,null,null,null,null,null,null,null,null,null,null,null,null,null,null,null,null,null,null,null,null,null,null,null,null,333,"C",7,33,{"$f":"#REF!","v":{"$error":"#REF!"}},1]
[null,null,null,null,null,null,null,null,null,null,null,null,null,null,null,null,null,null,null,null,null,null,null,null,null,null,null,null,null,null,null,null,null,null,null,null,null,null,null,null,null,null,null,null,null,null,null,null,null,null,null,null,null,null,null,null,null,null,null,null,null,null,null,null,null,null,null,null,null,null,null,null,null,null,null,null,null,null,null,null,null,334,"C",7,34,{"$f":"#REF!","v":{"$error":"#REF!"}},0]
[null,null,null,null,null,null,null,null,null,null,null,null,null,null,null,null,null,null,null,null,null,null,null,null,null,null,null,null,null,null,null,null,null,null,null,null,null,null,null,null,null,null,null,null,null,null,null,null,null,null,null,null,null,null,null,null,null,null,null,null,null,null,null,null,null,null,null,null,null,null,null,null,null,null,null,null,null,null,null,null,null,335,"C",7,35,{"$f":"#REF!","v":{"$error":"#REF!"}},1]
[null,null,null,null,null,null,null,null,null,null,null,null,null,null,null,null,null,null,null,null,null,null,null,null,null,null,null,null,null,null,null,null,null,null,null,null,null,null,null,null,null,null,null,null,null,null,null,null,null,null,null,null,null,null,null,null,null,null,null,null,null,null,null,null,null,null,null,null,null,null,null,null,null,null,null,null,null,null,null,null,null,336,"C",7,36,{"$f":"#REF!","v":{"$error":"#REF!"}},1]
[null,null,null,null,null,null,null,null,null,null,null,null,null,null,null,null,null,null,null,null,null,null,null,null,null,null,null,null,null,null,null,null,null,null,null,null,null,null,null,null,null,null,null,null,null,null,null,null,null,null,null,null,null,null,null,null,null,null,null,null,null,null,null,null,null,null,null,null,null,null,null,null,null,null,null,null,null,null,null,null,null,337,"C",7,37,{"$f":"#REF!","v":{"$error":"#REF!"}},""]
[null,null,null,null,null,null,null,null,null,null,null,null,null,null,null,null,null,null,null,null,null,null,null,null,null,null,null,null,null,null,null,null,null,null,null,null,null,null,null,null,null,null,null,null,null,null,null,null,null,null,null,null,null,null,null,null,null,null,null,null,null,null,null,null,null,null,null,null,null,null,null,null,null,null,null,null,null,null,null,null,null,338,"C",7,38,{"$f":"#REF!","v":{"$error":"#REF!"}},""]
[null,null,null,null,null,null,null,null,null,null,null,null,null,null,null,null,null,null,null,null,null,null,null,null,null,null,null,null,null,null,null,null,null,null,null,null,null,null,null,null,null,null,null,null,null,null,null,null,null,null,null,null,null,null,null,null,null,null,null,null,null,null,null,null,null,null,null,null,null,null,null,null,null,null,null,null,null,null,null,null,null,339,"C",7,39,{"$f":"#REF!","v":{"$error":"#REF!"}},""]
[null,null,null,null,null,null,null,null,null,null,null,null,null,null,null,null,null,null,null,null,null,null,null,null,null,null,null,null,null,null,null,null,null,null,null,null,null,null,null,null,null,null,null,null,null,null,null,null,null,null,null,null,null,null,null,null,null,null,null,null,null,null,null,null,null,null,null,null,null,null,null,null,null,null,null,null,null,null,null,null,null,340,"C",7,40,{"$f":"#REF!","v":{"$error":"#REF!"}},""]
[null,null,null,null,null,null,null,null,null,null,null,null,null,null,null,null,null,null,null,null,null,null,null,null,null,null,null,null,null,null,null,null,null,null,null,null,null,null,null,null,null,null,null,null,null,null,null,null,null,null,null,null,null,null,null,null,null,null,null,null,null,null,null,null,null,null,null,null,null,null,null,null,null,null,null,null,null,null,null,null,null,341,"C",7,41,{"$f":"#REF!","v":{"$error":"#REF!"}},""]
[null,null,null,null,null,null,null,null,null,null,null,null,null,null,null,null,null,null,null,null,null,null,null,null,null,null,null,null,null,null,null,null,null,null,null,null,null,null,null,null,null,null,null,null,null,null,null,null,null,null,null,null,null,null,null,null,null,null,null,null,null,null,null,null,null,null,null,null,null,null,null,null,null,null,null,null,null,null,null,null,null,342,"C",7,42,{"$f":"#REF!","v":{"$error":"#REF!"}},""]
[null,null,null,null,null,null,null,null,null,null,null,null,null,null,null,null,null,null,null,null,null,null,null,null,null,null,null,null,null,null,null,null,null,null,null,null,null,null,null,null,null,null,null,null,null,null,null,null,null,null,null,null,null,null,null,null,null,null,null,null,null,null,null,null,null,null,null,null,null,null,null,null,null,null,null,null,null,null,null,null,null,343,"C",7,43,{"$f":"#REF!","v":{"$error":"#REF!"}},""]
[null,null,null,null,null,null,null,null,null,null,null,null,null,null,null,null,null,null,null,null,null,null,null,null,null,null,null,null,null,null,null,null,null,null,null,null,null,null,null,null,null,null,null,null,null,null,null,null,null,null,null,null,null,null,null,null,null,null,null,null,null,null,null,null,null,null,null,null,null,null,null,null,null,null,null,null,null,null,null,null,null,344,"C",7,44,{"$f":"#REF!","v":{"$error":"#REF!"}},""]
[null,null,null,null,null,null,null,null,null,null,null,null,null,null,null,null,null,null,null,null,null,null,null,null,null,null,null,null,null,null,null,null,null,null,null,null,null,null,null,null,null,null,null,null,null,null,null,null,null,null,null,null,null,null,null,null,null,null,null,null,null,null,null,null,null,null,null,null,null,null,null,null,null,null,null,null,null,null,null,null,null,345,"C",7,45,{"$f":"#REF!","v":{"$error":"#REF!"}},""]
[null,null,null,null,null,null,null,null,null,null,null,null,null,null,null,null,null,null,null,null,null,null,null,null,null,null,null,null,null,null,null,null,null,null,null,null,null,null,null,null,null,null,null,null,null,null,null,null,null,null,null,null,null,null,null,null,null,null,null,null,null,null,null,null,null,null,null,null,null,null,null,null,null,null,null,null,null,null,null,null,null,346,"C",7,46,{"$f":"#REF!","v":{"$error":"#REF!"}},""]
[null,null,null,null,null,null,null,null,null,null,null,null,null,null,null,null,null,null,null,null,null,null,null,null,null,null,null,null,null,null,null,null,null,null,null,null,null,null,null,null,null,null,null,null,null,null,null,null,null,null,null,null,null,null,null,null,null,null,null,null,null,null,null,null,null,null,null,null,null,null,null,null,null,null,null,null,null,null,null,null,null,347,"C",7,47,{"$f":"#REF!","v":{"$error":"#REF!"}},""]
[null,null,null,null,null,null,null,null,null,null,null,null,null,null,null,null,null,null,null,null,null,null,null,null,null,null,null,null,null,null,null,null,null,null,null,null,null,null,null,null,null,null,null,null,null,null,null,null,null,null,null,null,null,null,null,null,null,null,null,null,null,null,null,null,null,null,null,null,null,null,null,null,null,null,null,null,null,null,null,null,null,348,"C",7,48,{"$f":"#REF!","v":{"$error":"#REF!"}},""]
[null,null,null,null,null,null,null,null,null,null,null,null,null,null,null,null,null,null,null,null,null,null,null,null,null,null,null,null,null,null,null,null,null,null,null,null,null,null,null,null,null,null,null,null,null,null,null,null,null,null,null,null,null,null,null,null,null,null,null,null,null,null,null,null,null,null,null,null,null,null,null,null,null,null,null,null,null,null,null,null,null,349,"C",7,49,{"$f":"#REF!","v":{"$error":"#REF!"}},""]
[null,null,null,null,null,null,null,null,null,null,null,null,null,null,null,null,null,null,null,null,null,null,null,null,null,null,null,null,null,null,null,null,null,null,null,null,null,null,null,null,null,null,null,null,null,null,null,null,null,null,null,null,null,null,null,null,null,null,null,null,null,null,null,null,null,null,null,null,null,null,null,null,null,null,null,null,null,null,null,null,null,350,"C",7,50,{"$f":"#REF!","v":{"$error":"#REF!"}},""]
[null,null,null,null,null,null,null,null,null,null,null,null,null,null,null,null,null,null,null,null,null,null,null,null,null,null,null,null,null,null,null,null,null,null,null,null,null,null,null,null,null,null,null,null,null,null,null,null,null,null,null,null,null,null,null,null,null,null,null,null,null,null,null,null,null,null,null,null,null,null,null,null,null,null,null,null,null,null,null,null,null,351,"C",8,1,{"$f":"#REF!","v":{"$error":"#REF!"}},{"$f":"I8","v":0}]
[null,null,null,null,null,null,null,null,null,null,null,null,null,null,null,null,null,null,null,null,null,null,null,null,null,null,null,null,null,null,null,null,null,null,null,null,null,null,null,null,null,null,null,null,null,null,null,null,null,null,null,null,null,null,null,null,null,null,null,null,null,null,null,null,null,null,null,null,null,null,null,null,null,null,null,null,null,null,null,null,null,352,"C",8,2,{"$f":"#REF!","v":{"$error":"#REF!"}},{"$f":"I9","v":1}]
[null,null,null,null,null,null,null,null,null,null,null,null,null,null,null,null,null,null,null,null,null,null,null,null,null,null,null,null,null,null,null,null,null,null,null,null,null,null,null,null,null,null,null,null,null,null,null,null,null,null,null,null,null,null,null,null,null,null,null,null,null,null,null,null,null,null,null,null,null,null,null,null,null,null,null,null,null,null,null,null,null,353,"C",8,3,{"$f":"#REF!","v":{"$error":"#REF!"}},0]
[null,null,null,null,null,null,null,null,null,null,null,null,null,null,null,null,null,null,null,null,null,null,null,null,null,null,null,null,null,null,null,null,null,null,null,null,null,null,null,null,null,null,null,null,null,null,null,null,null,null,null,null,null,null,null,null,null,null,null,null,null,null,null,null,null,null,null,null,null,null,null,null,null,null,null,null,null,null,null,null,null,354,"C",8,4,{"$f":"#REF!","v":{"$error":"#REF!"}},0]
[null,null,null,null,null,null,null,null,null,null,null,null,null,null,null,null,null,null,null,null,null,null,null,null,null,null,null,null,null,null,null,null,null,null,null,null,null,null,null,null,null,null,null,null,null,null,null,null,null,null,null,null,null,null,null,null,null,null,null,null,null,null,null,null,null,null,null,null,null,null,null,null,null,null,null,null,null,null,null,null,null,355,"C",8,5,{"$f":"#REF!","v":{"$error":"#REF!"}},0]
[null,null,null,null,null,null,null,null,null,null,null,null,null,null,null,null,null,null,null,null,null,null,null,null,null,null,null,null,null,null,null,null,null,null,null,null,null,null,null,null,null,null,null,null,null,null,null,null,null,null,null,null,null,null,null,null,null,null,null,null,null,null,null,null,null,null,null,null,null,null,null,null,null,null,null,null,null,null,null,null,null,356,"C",8,6,{"$f":"#REF!","v":{"$error":"#REF!"}},1]
[null,null,null,null,null,null,null,null,null,null,null,null,null,null,null,null,null,null,null,null,null,null,null,null,null,null,null,null,null,null,null,null,null,null,null,null,null,null,null,null,null,null,null,null,null,null,null,null,null,null,null,null,null,null,null,null,null,null,null,null,null,null,null,null,null,null,null,null,null,null,null,null,null,null,null,null,null,null,null,null,null,357,"C",8,7,{"$f":"#REF!","v":{"$error":"#REF!"}},1]
[null,null,null,null,null,null,null,null,null,null,null,null,null,null,null,null,null,null,null,null,null,null,null,null,null,null,null,null,null,null,null,null,null,null,null,null,null,null,null,null,null,null,null,null,null,null,null,null,null,null,null,null,null,null,null,null,null,null,null,null,null,null,null,null,null,null,null,null,null,null,null,null,null,null,null,null,null,null,null,null,null,358,"C",8,8,{"$f":"#REF!","v":{"$error":"#REF!"}},1]
[null,null,null,null,null,null,null,null,null,null,null,null,null,null,null,null,null,null,null,null,null,null,null,null,null,null,null,null,null,null,null,null,null,null,null,null,null,null,null,null,null,null,null,null,null,null,null,null,null,null,null,null,null,null,null,null,null,null,null,null,null,null,null,null,null,null,null,null,null,null,null,null,null,null,null,null,null,null,null,null,null,359,"C",8,9,{"$f":"#REF!","v":{"$error":"#REF!"}},0]
[null,null,null,null,null,null,null,null,null,null,null,null,null,null,null,null,null,null,null,null,null,null,null,null,null,null,null,null,null,null,null,null,null,null,null,null,null,null,null,null,null,null,null,null,null,null,null,null,null,null,null,null,null,null,null,null,null,null,null,null,null,null,null,null,null,null,null,null,null,null,null,null,null,null,null,null,null,null,null,null,null,360,"C",8,10,{"$f":"#REF!","v":{"$error":"#REF!"}},1]
[null,null,null,null,null,null,null,null,null,null,null,null,null,null,null,null,null,null,null,null,null,null,null,null,null,null,null,null,null,null,null,null,null,null,null,null,null,null,null,null,null,null,null,null,null,null,null,null,null,null,null,null,null,null,null,null,null,null,null,null,null,null,null,null,null,null,null,null,null,null,null,null,null,null,null,null,null,null,null,null,null,361,"C",8,11,{"$f":"#REF!","v":{"$error":"#REF!"}},1]
[null,null,null,null,null,null,null,null,null,null,null,null,null,null,null,null,null,null,null,null,null,null,null,null,null,null,null,null,null,null,null,null,null,null,null,null,null,null,null,null,null,null,null,null,null,null,null,null,null,null,null,null,null,null,null,null,null,null,null,null,null,null,null,null,null,null,null,null,null,null,null,null,null,null,null,null,null,null,null,null,null,362,"C",8,12,{"$f":"#REF!","v":{"$error":"#REF!"}},0]
[null,null,null,null,null,null,null,null,null,null,null,null,null,null,null,null,null,null,null,null,null,null,null,null,null,null,null,null,null,null,null,null,null,null,null,null,null,null,null,null,null,null,null,null,null,null,null,null,null,null,null,null,null,null,null,null,null,null,null,null,null,null,null,null,null,null,null,null,null,null,null,null,null,null,null,null,null,null,null,null,null,363,"C",8,13,{"$f":"#REF!","v":{"$error":"#REF!"}},1]
[null,null,null,null,null,null,null,null,null,null,null,null,null,null,null,null,null,null,null,null,null,null,null,null,null,null,null,null,null,null,null,null,null,null,null,null,null,null,null,null,null,null,null,null,null,null,null,null,null,null,null,null,null,null,null,null,null,null,null,null,null,null,null,null,null,null,null,null,null,null,null,null,null,null,null,null,null,null,null,null,null,364,"C",8,14,{"$f":"#REF!","v":{"$error":"#REF!"}},1]
[null,null,null,null,null,null,null,null,null,null,null,null,null,null,null,null,null,null,null,null,null,null,null,null,null,null,null,null,null,null,null,null,null,null,null,null,null,null,null,null,null,null,null,null,null,null,null,null,null,null,null,null,null,null,null,null,null,null,null,null,null,null,null,null,null,null,null,null,null,null,null,null,null,null,null,null,null,null,null,null,null,365,"C",8,15,{"$f":"#REF!","v":{"$error":"#REF!"}},1]
[null,null,null,null,null,null,null,null,null,null,null,null,null,null,null,null,null,null,null,null,null,null,null,null,null,null,null,null,null,null,null,null,null,null,null,null,null,null,null,null,null,null,null,null,null,null,null,null,null,null,null,null,null,null,null,null,null,null,null,null,null,null,null,null,null,null,null,null,null,null,null,null,null,null,null,null,null,null,null,null,null,366,"C",8,16,{"$f":"#REF!","v":{"$error":"#REF!"}},1]
[null,null,null,null,null,null,null,null,null,null,null,null,null,null,null,null,null,null,null,null,null,null,null,null,null,null,null,null,null,null,null,null,null,null,null,null,null,null,null,null,null,null,null,null,null,null,null,null,null,null,null,null,null,null,null,null,null,null,null,null,null,null,null,null,null,null,null,null,null,null,null,null,null,null,null,null,null,null,null,null,null,367,"C",8,17,{"$f":"#REF!","v":{"$error":"#REF!"}},1]
[null,null,null,null,null,null,null,null,null,null,null,null,null,null,null,null,null,null,null,null,null,null,null,null,null,null,null,null,null,null,null,null,null,null,null,null,null,null,null,null,null,null,null,null,null,null,null,null,null,null,null,null,null,null,null,null,null,null,null,null,null,null,null,null,null,null,null,null,null,null,null,null,null,null,null,null,null,null,null,null,null,368,"C",8,18,{"$f":"#REF!","v":{"$error":"#REF!"}},1]
[null,null,null,null,null,null,null,null,null,null,null,null,null,null,null,null,null,null,null,null,null,null,null,null,null,null,null,null,null,null,null,null,null,null,null,null,null,null,null,null,null,null,null,null,null,null,null,null,null,null,null,null,null,null,null,null,null,null,null,null,null,null,null,null,null,null,null,null,null,null,null,null,null,null,null,null,null,null,null,null,null,369,"C",8,19,{"$f":"#REF!","v":{"$error":"#REF!"}},1]
[null,null,null,null,null,null,null,null,null,null,null,null,null,null,null,null,null,null,null,null,null,null,null,null,null,null,null,null,null,null,null,null,null,null,null,null,null,null,null,null,null,null,null,null,null,null,null,null,null,null,null,null,null,null,null,null,null,null,null,null,null,null,null,null,null,null,null,null,null,null,null,null,null,null,null,null,null,null,null,null,null,370,"C",8,20,{"$f":"#REF!","v":{"$error":"#REF!"}},1]
[null,null,null,null,null,null,null,null,null,null,null,null,null,null,null,null,null,null,null,null,null,null,null,null,null,null,null,null,null,null,null,null,null,null,null,null,null,null,null,null,null,null,null,null,null,null,null,null,null,null,null,null,null,null,null,null,null,null,null,null,null,null,null,null,null,null,null,null,null,null,null,null,null,null,null,null,null,null,null,null,null,371,"C",8,21,{"$f":"#REF!","v":{"$error":"#REF!"}},1]
[null,null,null,null,null,null,null,null,null,null,null,null,null,null,null,null,null,null,null,null,null,null,null,null,null,null,null,null,null,null,null,null,null,null,null,null,null,null,null,null,null,null,null,null,null,null,null,null,null,null,null,null,null,null,null,null,null,null,null,null,null,null,null,null,null,null,null,null,null,null,null,null,null,null,null,null,null,null,null,null,null,372,"C",8,22,{"$f":"#REF!","v":{"$error":"#REF!"}},0]
[null,null,null,null,null,null,null,null,null,null,null,null,null,null,null,null,null,null,null,null,null,null,null,null,null,null,null,null,null,null,null,null,null,null,null,null,null,null,null,null,null,null,null,null,null,null,null,null,null,null,null,null,null,null,null,null,null,null,null,null,null,null,null,null,null,null,null,null,null,null,null,null,null,null,null,null,null,null,null,null,null,373,"C",8,23,{"$f":"#REF!","v":{"$error":"#REF!"}},1]
[null,null,null,null,null,null,null,null,null,null,null,null,null,null,null,null,null,null,null,null,null,null,null,null,null,null,null,null,null,null,null,null,null,null,null,null,null,null,null,null,null,null,null,null,null,null,null,null,null,null,null,null,null,null,null,null,null,null,null,null,null,null,null,null,null,null,null,null,null,null,null,null,null,null,null,null,null,null,null,null,null,374,"C",8,24,{"$f":"#REF!","v":{"$error":"#REF!"}},1]
[null,null,null,null,null,null,null,null,null,null,null,null,null,null,null,null,null,null,null,null,null,null,null,null,null,null,null,null,null,null,null,null,null,null,null,null,null,null,null,null,null,null,null,null,null,null,null,null,null,null,null,null,null,null,null,null,null,null,null,null,null,null,null,null,null,null,null,null,null,null,null,null,null,null,null,null,null,null,null,null,null,375,"C",8,25,{"$f":"#REF!","v":{"$error":"#REF!"}},0]
[null,null,null,null,null,null,null,null,null,null,null,null,null,null,null,null,null,null,null,null,null,null,null,null,null,null,null,null,null,null,null,null,null,null,null,null,null,null,null,null,null,null,null,null,null,null,null,null,null,null,null,null,null,null,null,null,null,null,null,null,null,null,null,null,null,null,null,null,null,null,null,null,null,null,null,null,null,null,null,null,null,376,"C",8,26,{"$f":"#REF!","v":{"$error":"#REF!"}},0]
[null,null,null,null,null,null,null,null,null,null,null,null,null,null,null,null,null,null,null,null,null,null,null,null,null,null,null,null,null,null,null,null,null,null,null,null,null,null,null,null,null,null,null,null,null,null,null,null,null,null,null,null,null,null,null,null,null,null,null,null,null,null,null,null,null,null,null,null,null,null,null,null,null,null,null,null,null,null,null,null,null,377,"C",8,27,{"$f":"#REF!","v":{"$error":"#REF!"}},1]
[null,null,null,null,null,null,null,null,null,null,null,null,null,null,null,null,null,null,null,null,null,null,null,null,null,null,null,null,null,null,null,null,null,null,null,null,null,null,null,null,null,null,null,null,null,null,null,null,null,null,null,null,null,null,null,null,null,null,null,null,null,null,null,null,null,null,null,null,null,null,null,null,null,null,null,null,null,null,null,null,null,378,"C",8,28,{"$f":"#REF!","v":{"$error":"#REF!"}},1]
[null,null,null,null,null,null,null,null,null,null,null,null,null,null,null,null,null,null,null,null,null,null,null,null,null,null,null,null,null,null,null,null,null,null,null,null,null,null,null,null,null,null,null,null,null,null,null,null,null,null,null,null,null,null,null,null,null,null,null,null,null,null,null,null,null,null,null,null,null,null,null,null,null,null,null,null,null,null,null,null,null,379,"C",8,29,{"$f":"#REF!","v":{"$error":"#REF!"}},1]
[null,null,null,null,null,null,null,null,null,null,null,null,null,null,null,null,null,null,null,null,null,null,null,null,null,null,null,null,null,null,null,null,null,null,null,null,null,null,null,null,null,null,null,null,null,null,null,null,null,null,null,null,null,null,null,null,null,null,null,null,null,null,null,null,null,null,null,null,null,null,null,null,null,null,null,null,null,null,null,null,null,380,"C",8,30,{"$f":"#REF!","v":{"$error":"#REF!"}},0]
[null,null,null,null,null,null,null,null,null,null,null,null,null,null,null,null,null,null,null,null,null,null,null,null,null,null,null,null,null,null,null,null,null,null,null,null,null,null,null,null,null,null,null,null,null,null,null,null,null,null,null,null,null,null,null,null,null,null,null,null,null,null,null,null,null,null,null,null,null,null,null,null,null,null,null,null,null,null,null,null,null,381,"C",8,31,{"$f":"#REF!","v":{"$error":"#REF!"}},1]
[null,null,null,null,null,null,null,null,null,null,null,null,null,null,null,null,null,null,null,null,null,null,null,null,null,null,null,null,null,null,null,null,null,null,null,null,null,null,null,null,null,null,null,null,null,null,null,null,null,null,null,null,null,null,null,null,null,null,null,null,null,null,null,null,null,null,null,null,null,null,null,null,null,null,null,null,null,null,null,null,null,382,"C",8,32,{"$f":"#REF!","v":{"$error":"#REF!"}},1]
[null,null,null,null,null,null,null,null,null,null,null,null,null,null,null,null,null,null,null,null,null,null,null,null,null,null,null,null,null,null,null,null,null,null,null,null,null,null,null,null,null,null,null,null,null,null,null,null,null,null,null,null,null,null,null,null,null,null,null,null,null,null,null,null,null,null,null,null,null,null,null,null,null,null,null,null,null,null,null,null,null,383,"C",8,33,{"$f":"#REF!","v":{"$error":"#REF!"}},1]
[null,null,null,null,null,null,null,null,null,null,null,null,null,null,null,null,null,null,null,null,null,null,null,null,null,null,null,null,null,null,null,null,null,null,null,null,null,null,null,null,null,null,null,null,null,null,null,null,null,null,null,null,null,null,null,null,null,null,null,null,null,null,null,null,null,null,null,null,null,null,null,null,null,null,null,null,null,null,null,null,null,384,"C",8,34,{"$f":"#REF!","v":{"$error":"#REF!"}},0]
[null,null,null,null,null,null,null,null,null,null,null,null,null,null,null,null,null,null,null,null,null,null,null,null,null,null,null,null,null,null,null,null,null,null,null,null,null,null,null,null,null,null,null,null,null,null,null,null,null,null,null,null,null,null,null,null,null,null,null,null,null,null,null,null,null,null,null,null,null,null,null,null,null,null,null,null,null,null,null,null,null,385,"C",8,35,{"$f":"#REF!","v":{"$error":"#REF!"}},1]
[null,null,null,null,null,null,null,null,null,null,null,null,null,null,null,null,null,null,null,null,null,null,null,null,null,null,null,null,null,null,null,null,null,null,null,null,null,null,null,null,null,null,null,null,null,null,null,null,null,null,null,null,null,null,null,null,null,null,null,null,null,null,null,null,null,null,null,null,null,null,null,null,null,null,null,null,null,null,null,null,null,386,"C",8,36,{"$f":"#REF!","v":{"$error":"#REF!"}},1]
[null,null,null,null,null,null,null,null,null,null,null,null,null,null,null,null,null,null,null,null,null,null,null,null,null,null,null,null,null,null,null,null,null,null,null,null,null,null,null,null,null,null,null,null,null,null,null,null,null,null,null,null,null,null,null,null,null,null,null,null,null,null,null,null,null,null,null,null,null,null,null,null,null,null,null,null,null,null,null,null,null,387,"C",8,37,{"$f":"#REF!","v":{"$error":"#REF!"}},""]
[null,null,null,null,null,null,null,null,null,null,null,null,null,null,null,null,null,null,null,null,null,null,null,null,null,null,null,null,null,null,null,null,null,null,null,null,null,null,null,null,null,null,null,null,null,null,null,null,null,null,null,null,null,null,null,null,null,null,null,null,null,null,null,null,null,null,null,null,null,null,null,null,null,null,null,null,null,null,null,null,null,388,"C",8,38,{"$f":"#REF!","v":{"$error":"#REF!"}},""]
[null,null,null,null,null,null,null,null,null,null,null,null,null,null,null,null,null,null,null,null,null,null,null,null,null,null,null,null,null,null,null,null,null,null,null,null,null,null,null,null,null,null,null,null,null,null,null,null,null,null,null,null,null,null,null,null,null,null,null,null,null,null,null,null,null,null,null,null,null,null,null,null,null,null,null,null,null,null,null,null,null,389,"C",8,39,{"$f":"#REF!","v":{"$error":"#REF!"}},""]
[null,null,null,null,null,null,null,null,null,null,null,null,null,null,null,null,null,null,null,null,null,null,null,null,null,null,null,null,null,null,null,null,null,null,null,null,null,null,null,null,null,null,null,null,null,null,null,null,null,null,null,null,null,null,null,null,null,null,null,null,null,null,null,null,null,null,null,null,null,null,null,null,null,null,null,null,null,null,null,null,null,390,"C",8,40,{"$f":"#REF!","v":{"$error":"#REF!"}},""]
[null,null,null,null,null,null,null,null,null,null,null,null,null,null,null,null,null,null,null,null,null,null,null,null,null,null,null,null,null,null,null,null,null,null,null,null,null,null,null,null,null,null,null,null,null,null,null,null,null,null,null,null,null,null,null,null,null,null,null,null,null,null,null,null,null,null,null,null,null,null,null,null,null,null,null,null,null,null,null,null,null,391,"C",8,41,{"$f":"#REF!","v":{"$error":"#REF!"}},""]
[null,null,null,null,null,null,null,null,null,null,null,null,null,null,null,null,null,null,null,null,null,null,null,null,null,null,null,null,null,null,null,null,null,null,null,null,null,null,null,null,null,null,null,null,null,null,null,null,null,null,null,null,null,null,null,null,null,null,null,null,null,null,null,null,null,null,null,null,null,null,null,null,null,null,null,null,null,null,null,null,null,392,"C",8,42,{"$f":"#REF!","v":{"$error":"#REF!"}},""]
[null,null,null,null,null,null,null,null,null,null,null,null,null,null,null,null,null,null,null,null,null,null,null,null,null,null,null,null,null,null,null,null,null,null,null,null,null,null,null,null,null,null,null,null,null,null,null,null,null,null,null,null,null,null,null,null,null,null,null,null,null,null,null,null,null,null,null,null,null,null,null,null,null,null,null,null,null,null,null,null,null,393,"C",8,43,{"$f":"#REF!","v":{"$error":"#REF!"}},""]
[null,null,null,null,null,null,null,null,null,null,null,null,null,null,null,null,null,null,null,null,null,null,null,null,null,null,null,null,null,null,null,null,null,null,null,null,null,null,null,null,null,null,null,null,null,null,null,null,null,null,null,null,null,null,null,null,null,null,null,null,null,null,null,null,null,null,null,null,null,null,null,null,null,null,null,null,null,null,null,null,null,394,"C",8,44,{"$f":"#REF!","v":{"$error":"#REF!"}},""]
[null,null,null,null,null,null,null,null,null,null,null,null,null,null,null,null,null,null,null,null,null,null,null,null,null,null,null,null,null,null,null,null,null,null,null,null,null,null,null,null,null,null,null,null,null,null,null,null,null,null,null,null,null,null,null,null,null,null,null,null,null,null,null,null,null,null,null,null,null,null,null,null,null,null,null,null,null,null,null,null,null,395,"C",8,45,{"$f":"#REF!","v":{"$error":"#REF!"}},""]
[null,null,null,null,null,null,null,null,null,null,null,null,null,null,null,null,null,null,null,null,null,null,null,null,null,null,null,null,null,null,null,null,null,null,null,null,null,null,null,null,null,null,null,null,null,null,null,null,null,null,null,null,null,null,null,null,null,null,null,null,null,null,null,null,null,null,null,null,null,null,null,null,null,null,null,null,null,null,null,null,null,396,"C",8,46,{"$f":"#REF!","v":{"$error":"#REF!"}},""]
[null,null,null,null,null,null,null,null,null,null,null,null,null,null,null,null,null,null,null,null,null,null,null,null,null,null,null,null,null,null,null,null,null,null,null,null,null,null,null,null,null,null,null,null,null,null,null,null,null,null,null,null,null,null,null,null,null,null,null,null,null,null,null,null,null,null,null,null,null,null,null,null,null,null,null,null,null,null,null,null,null,397,"C",8,47,{"$f":"#REF!","v":{"$error":"#REF!"}},""]
[null,null,null,null,null,null,null,null,null,null,null,null,null,null,null,null,null,null,null,null,null,null,null,null,null,null,null,null,null,null,null,null,null,null,null,null,null,null,null,null,null,null,null,null,null,null,null,null,null,null,null,null,null,null,null,null,null,null,null,null,null,null,null,null,null,null,null,null,null,null,null,null,null,null,null,null,null,null,null,null,null,398,"C",8,48,{"$f":"#REF!","v":{"$error":"#REF!"}},""]
[null,null,null,null,null,null,null,null,null,null,null,null,null,null,null,null,null,null,null,null,null,null,null,null,null,null,null,null,null,null,null,null,null,null,null,null,null,null,null,null,null,null,null,null,null,null,null,null,null,null,null,null,null,null,null,null,null,null,null,null,null,null,null,null,null,null,null,null,null,null,null,null,null,null,null,null,null,null,null,null,null,399,"C",8,49,{"$f":"#REF!","v":{"$error":"#REF!"}},""]
[null,null,null,null,null,null,null,null,null,null,null,null,null,null,null,null,null,null,null,null,null,null,null,null,null,null,null,null,null,null,null,null,null,null,null,null,null,null,null,null,null,null,null,null,null,null,null,null,null,null,null,null,null,null,null,null,null,null,null,null,null,null,null,null,null,null,null,null,null,null,null,null,null,null,null,null,null,null,null,null,null,400,"C",8,50,{"$f":"#REF!","v":{"$error":"#REF!"}},""]
[null,null,null,null,null,null,null,null,null,null,null,null,null,null,null,null,null,null,null,null,null,null,null,null,null,null,null,null,null,null,null,null,null,null,null,null,null,null,null,null,null,null,null,null,null,null,null,null,null,null,null,null,null,null,null,null,null,null,null,null,null,null,null,null,null,null,null,null,null,null,null,null,null,null,null,null,null,null,null,null,null,401,"C",9,1,{"$f":"#REF!","v":{"$error":"#REF!"}},{"$f":"I8","v":0}]
[null,null,null,null,null,null,null,null,null,null,null,null,null,null,null,null,null,null,null,null,null,null,null,null,null,null,null,null,null,null,null,null,null,null,null,null,null,null,null,null,null,null,null,null,null,null,null,null,null,null,null,null,null,null,null,null,null,null,null,null,null,null,null,null,null,null,null,null,null,null,null,null,null,null,null,null,null,null,null,null,null,402,"C",9,2,{"$f":"#REF!","v":{"$error":"#REF!"}},{"$f":"I9","v":1}]
[null,null,null,null,null,null,null,null,null,null,null,null,null,null,null,null,null,null,null,null,null,null,null,null,null,null,null,null,null,null,null,null,null,null,null,null,null,null,null,null,null,null,null,null,null,null,null,null,null,null,null,null,null,null,null,null,null,null,null,null,null,null,null,null,null,null,null,null,null,null,null,null,null,null,null,null,null,null,null,null,null,403,"C",9,3,{"$f":"#REF!","v":{"$error":"#REF!"}},0]
[null,null,null,null,null,null,null,null,null,null,null,null,null,null,null,null,null,null,null,null,null,null,null,null,null,null,null,null,null,null,null,null,null,null,null,null,null,null,null,null,null,null,null,null,null,null,null,null,null,null,null,null,null,null,null,null,null,null,null,null,null,null,null,null,null,null,null,null,null,null,null,null,null,null,null,null,null,null,null,null,null,404,"C",9,4,{"$f":"#REF!","v":{"$error":"#REF!"}},0]
[null,null,null,null,null,null,null,null,null,null,null,null,null,null,null,null,null,null,null,null,null,null,null,null,null,null,null,null,null,null,null,null,null,null,null,null,null,null,null,null,null,null,null,null,null,null,null,null,null,null,null,null,null,null,null,null,null,null,null,null,null,null,null,null,null,null,null,null,null,null,null,null,null,null,null,null,null,null,null,null,null,405,"C",9,5,{"$f":"#REF!","v":{"$error":"#REF!"}},0]
[null,null,null,null,null,null,null,null,null,null,null,null,null,null,null,null,null,null,null,null,null,null,null,null,null,null,null,null,null,null,null,null,null,null,null,null,null,null,null,null,null,null,null,null,null,null,null,null,null,null,null,null,null,null,null,null,null,null,null,null,null,null,null,null,null,null,null,null,null,null,null,null,null,null,null,null,null,null,null,null,null,406,"C",9,6,{"$f":"#REF!","v":{"$error":"#REF!"}},1]
[null,null,null,null,null,null,null,null,null,null,null,null,null,null,null,null,null,null,null,null,null,null,null,null,null,null,null,null,null,null,null,null,null,null,null,null,null,null,null,null,null,null,null,null,null,null,null,null,null,null,null,null,null,null,null,null,null,null,null,null,null,null,null,null,null,null,null,null,null,null,null,null,null,null,null,null,null,null,null,null,null,407,"C",9,7,{"$f":"#REF!","v":{"$error":"#REF!"}},1]
[null,null,null,null,null,null,null,null,null,null,null,null,null,null,null,null,null,null,null,null,null,null,null,null,null,null,null,null,null,null,null,null,null,null,null,null,null,null,null,null,null,null,null,null,null,null,null,null,null,null,null,null,null,null,null,null,null,null,null,null,null,null,null,null,null,null,null,null,null,null,null,null,null,null,null,null,null,null,null,null,null,408,"C",9,8,{"$f":"#REF!","v":{"$error":"#REF!"}},1]
[null,null,null,null,null,null,null,null,null,null,null,null,null,null,null,null,null,null,null,null,null,null,null,null,null,null,null,null,null,null,null,null,null,null,null,null,null,null,null,null,null,null,null,null,null,null,null,null,null,null,null,null,null,null,null,null,null,null,null,null,null,null,null,null,null,null,null,null,null,null,null,null,null,null,null,null,null,null,null,null,null,409,"C",9,9,{"$f":"#REF!","v":{"$error":"#REF!"}},0]
[null,null,null,null,null,null,null,null,null,null,null,null,null,null,null,null,null,null,null,null,null,null,null,null,null,null,null,null,null,null,null,null,null,null,null,null,null,null,null,null,null,null,null,null,null,null,null,null,null,null,null,null,null,null,null,null,null,null,null,null,null,null,null,null,null,null,null,null,null,null,null,null,null,null,null,null,null,null,null,null,null,410,"C",9,10,{"$f":"#REF!","v":{"$error":"#REF!"}},1]
[null,null,null,null,null,null,null,null,null,null,null,null,null,null,null,null,null,null,null,null,null,null,null,null,null,null,null,null,null,null,null,null,null,null,null,null,null,null,null,null,null,null,null,null,null,null,null,null,null,null,null,null,null,null,null,null,null,null,null,null,null,null,null,null,null,null,null,null,null,null,null,null,null,null,null,null,null,null,null,null,null,411,"C",9,11,{"$f":"#REF!","v":{"$error":"#REF!"}},1]
[null,null,null,null,null,null,null,null,null,null,null,null,null,null,null,null,null,null,null,null,null,null,null,null,null,null,null,null,null,null,null,null,null,null,null,null,null,null,null,null,null,null,null,null,null,null,null,null,null,null,null,null,null,null,null,null,null,null,null,null,null,null,null,null,null,null,null,null,null,null,null,null,null,null,null,null,null,null,null,null,null,412,"C",9,12,{"$f":"#REF!","v":{"$error":"#REF!"}},0]
[null,null,null,null,null,null,null,null,null,null,null,null,null,null,null,null,null,null,null,null,null,null,null,null,null,null,null,null,null,null,null,null,null,null,null,null,null,null,null,null,null,null,null,null,null,null,null,null,null,null,null,null,null,null,null,null,null,null,null,null,null,null,null,null,null,null,null,null,null,null,null,null,null,null,null,null,null,null,null,null,null,413,"C",9,13,{"$f":"#REF!","v":{"$error":"#REF!"}},1]
[null,null,null,null,null,null,null,null,null,null,null,null,null,null,null,null,null,null,null,null,null,null,null,null,null,null,null,null,null,null,null,null,null,null,null,null,null,null,null,null,null,null,null,null,null,null,null,null,null,null,null,null,null,null,null,null,null,null,null,null,null,null,null,null,null,null,null,null,null,null,null,null,null,null,null,null,null,null,null,null,null,414,"C",9,14,{"$f":"#REF!","v":{"$error":"#REF!"}},1]
[null,null,null,null,null,null,null,null,null,null,null,null,null,null,null,null,null,null,null,null,null,null,null,null,null,null,null,null,null,null,null,null,null,null,null,null,null,null,null,null,null,null,null,null,null,null,null,null,null,null,null,null,null,null,null,null,null,null,null,null,null,null,null,null,null,null,null,null,null,null,null,null,null,null,null,null,null,null,null,null,null,415,"C",9,15,{"$f":"#REF!","v":{"$error":"#REF!"}},1]
[null,null,null,null,null,null,null,null,null,null,null,null,null,null,null,null,null,null,null,null,null,null,null,null,null,null,null,null,null,null,null,null,null,null,null,null,null,null,null,null,null,null,null,null,null,null,null,null,null,null,null,null,null,null,null,null,null,null,null,null,null,null,null,null,null,null,null,null,null,null,null,null,null,null,null,null,null,null,null,null,null,416,"C",9,16,{"$f":"#REF!","v":{"$error":"#REF!"}},1]
[null,null,null,null,null,null,null,null,null,null,null,null,null,null,null,null,null,null,null,null,null,null,null,null,null,null,null,null,null,null,null,null,null,null,null,null,null,null,null,null,null,null,null,null,null,null,null,null,null,null,null,null,null,null,null,null,null,null,null,null,null,null,null,null,null,null,null,null,null,null,null,null,null,null,null,null,null,null,null,null,null,417,"C",9,17,{"$f":"#REF!","v":{"$error":"#REF!"}},1]
[null,null,null,null,null,null,null,null,null,null,null,null,null,null,null,null,null,null,null,null,null,null,null,null,null,null,null,null,null,null,null,null,null,null,null,null,null,null,null,null,null,null,null,null,null,null,null,null,null,null,null,null,null,null,null,null,null,null,null,null,null,null,null,null,null,null,null,null,null,null,null,null,null,null,null,null,null,null,null,null,null,418,"C",9,18,{"$f":"#REF!","v":{"$error":"#REF!"}},1]
[null,null,null,null,null,null,null,null,null,null,null,null,null,null,null,null,null,null,null,null,null,null,null,null,null,null,null,null,null,null,null,null,null,null,null,null,null,null,null,null,null,null,null,null,null,null,null,null,null,null,null,null,null,null,null,null,null,null,null,null,null,null,null,null,null,null,null,null,null,null,null,null,null,null,null,null,null,null,null,null,null,419,"C",9,19,{"$f":"#REF!","v":{"$error":"#REF!"}},1]
[null,null,null,null,null,null,null,null,null,null,null,null,null,null,null,null,null,null,null,null,null,null,null,null,null,null,null,null,null,null,null,null,null,null,null,null,null,null,null,null,null,null,null,null,null,null,null,null,null,null,null,null,null,null,null,null,null,null,null,null,null,null,null,null,null,null,null,null,null,null,null,null,null,null,null,null,null,null,null,null,null,420,"C",9,20,{"$f":"#REF!","v":{"$error":"#REF!"}},1]
[null,null,null,null,null,null,null,null,null,null,null,null,null,null,null,null,null,null,null,null,null,null,null,null,null,null,null,null,null,null,null,null,null,null,null,null,null,null,null,null,null,null,null,null,null,null,null,null,null,null,null,null,null,null,null,null,null,null,null,null,null,null,null,null,null,null,null,null,null,null,null,null,null,null,null,null,null,null,null,null,null,421,"C",9,21,{"$f":"#REF!","v":{"$error":"#REF!"}},1]
[null,null,null,null,null,null,null,null,null,null,null,null,null,null,null,null,null,null,null,null,null,null,null,null,null,null,null,null,null,null,null,null,null,null,null,null,null,null,null,null,null,null,null,null,null,null,null,null,null,null,null,null,null,null,null,null,null,null,null,null,null,null,null,null,null,null,null,null,null,null,null,null,null,null,null,null,null,null,null,null,null,422,"C",9,22,{"$f":"#REF!","v":{"$error":"#REF!"}},0]
[null,null,null,null,null,null,null,null,null,null,null,null,null,null,null,null,null,null,null,null,null,null,null,null,null,null,null,null,null,null,null,null,null,null,null,null,null,null,null,null,null,null,null,null,null,null,null,null,null,null,null,null,null,null,null,null,null,null,null,null,null,null,null,null,null,null,null,null,null,null,null,null,null,null,null,null,null,null,null,null,null,423,"C",9,23,{"$f":"#REF!","v":{"$error":"#REF!"}},1]
[null,null,null,null,null,null,null,null,null,null,null,null,null,null,null,null,null,null,null,null,null,null,null,null,null,null,null,null,null,null,null,null,null,null,null,null,null,null,null,null,null,null,null,null,null,null,null,null,null,null,null,null,null,null,null,null,null,null,null,null,null,null,null,null,null,null,null,null,null,null,null,null,null,null,null,null,null,null,null,null,null,424,"C",9,24,{"$f":"#REF!","v":{"$error":"#REF!"}},1]
[null,null,null,null,null,null,null,null,null,null,null,null,null,null,null,null,null,null,null,null,null,null,null,null,null,null,null,null,null,null,null,null,null,null,null,null,null,null,null,null,null,null,null,null,null,null,null,null,null,null,null,null,null,null,null,null,null,null,null,null,null,null,null,null,null,null,null,null,null,null,null,null,null,null,null,null,null,null,null,null,null,425,"C",9,25,{"$f":"#REF!","v":{"$error":"#REF!"}},0]
[null,null,null,null,null,null,null,null,null,null,null,null,null,null,null,null,null,null,null,null,null,null,null,null,null,null,null,null,null,null,null,null,null,null,null,null,null,null,null,null,null,null,null,null,null,null,null,null,null,null,null,null,null,null,null,null,null,null,null,null,null,null,null,null,null,null,null,null,null,null,null,null,null,null,null,null,null,null,null,null,null,426,"C",9,26,{"$f":"#REF!","v":{"$error":"#REF!"}},0]
[null,null,null,null,null,null,null,null,null,null,null,null,null,null,null,null,null,null,null,null,null,null,null,null,null,null,null,null,null,null,null,null,null,null,null,null,null,null,null,null,null,null,null,null,null,null,null,null,null,null,null,null,null,null,null,null,null,null,null,null,null,null,null,null,null,null,null,null,null,null,null,null,null,null,null,null,null,null,null,null,null,427,"C",9,27,{"$f":"#REF!","v":{"$error":"#REF!"}},1]
[null,null,null,null,null,null,null,null,null,null,null,null,null,null,null,null,null,null,null,null,null,null,null,null,null,null,null,null,null,null,null,null,null,null,null,null,null,null,null,null,null,null,null,null,null,null,null,null,null,null,null,null,null,null,null,null,null,null,null,null,null,null,null,null,null,null,null,null,null,null,null,null,null,null,null,null,null,null,null,null,null,428,"C",9,28,{"$f":"#REF!","v":{"$error":"#REF!"}},1]
[null,null,null,null,null,null,null,null,null,null,null,null,null,null,null,null,null,null,null,null,null,null,null,null,null,null,null,null,null,null,null,null,null,null,null,null,null,null,null,null,null,null,null,null,null,null,null,null,null,null,null,null,null,null,null,null,null,null,null,null,null,null,null,null,null,null,null,null,null,null,null,null,null,null,null,null,null,null,null,null,null,429,"C",9,29,{"$f":"#REF!","v":{"$error":"#REF!"}},1]
[null,null,null,null,null,null,null,null,null,null,null,null,null,null,null,null,null,null,null,null,null,null,null,null,null,null,null,null,null,null,null,null,null,null,null,null,null,null,null,null,null,null,null,null,null,null,null,null,null,null,null,null,null,null,null,null,null,null,null,null,null,null,null,null,null,null,null,null,null,null,null,null,null,null,null,null,null,null,null,null,null,430,"C",9,30,{"$f":"#REF!","v":{"$error":"#REF!"}},0]
[null,null,null,null,null,null,null,null,null,null,null,null,null,null,null,null,null,null,null,null,null,null,null,null,null,null,null,null,null,null,null,null,null,null,null,null,null,null,null,null,null,null,null,null,null,null,null,null,null,null,null,null,null,null,null,null,null,null,null,null,null,null,null,null,null,null,null,null,null,null,null,null,null,null,null,null,null,null,null,null,null,431,"C",9,31,{"$f":"#REF!","v":{"$error":"#REF!"}},1]
[null,null,null,null,null,null,null,null,null,null,null,null,null,null,null,null,null,null,null,null,null,null,null,null,null,null,null,null,null,null,null,null,null,null,null,null,null,null,null,null,null,null,null,null,null,null,null,null,null,null,null,null,null,null,null,null,null,null,null,null,null,null,null,null,null,null,null,null,null,null,null,null,null,null,null,null,null,null,null,null,null,432,"C",9,32,{"$f":"#REF!","v":{"$error":"#REF!"}},1]
[null,null,null,null,null,null,null,null,null,null,null,null,null,null,null,null,null,null,null,null,null,null,null,null,null,null,null,null,null,null,null,null,null,null,null,null,null,null,null,null,null,null,null,null,null,null,null,null,null,null,null,null,null,null,null,null,null,null,null,null,null,null,null,null,null,null,null,null,null,null,null,null,null,null,null,null,null,null,null,null,null,433,"C",9,33,{"$f":"#REF!","v":{"$error":"#REF!"}},1]
[null,null,null,null,null,null,null,null,null,null,null,null,null,null,null,null,null,null,null,null,null,null,null,null,null,null,null,null,null,null,null,null,null,null,null,null,null,null,null,null,null,null,null,null,null,null,null,null,null,null,null,null,null,null,null,null,null,null,null,null,null,null,null,null,null,null,null,null,null,null,null,null,null,null,null,null,null,null,null,null,null,434,"C",9,34,{"$f":"#REF!","v":{"$error":"#REF!"}},0]
[null,null,null,null,null,null,null,null,null,null,null,null,null,null,null,null,null,null,null,null,null,null,null,null,null,null,null,null,null,null,null,null,null,null,null,null,null,null,null,null,null,null,null,null,null,null,null,null,null,null,null,null,null,null,null,null,null,null,null,null,null,null,null,null,null,null,null,null,null,null,null,null,null,null,null,null,null,null,null,null,null,435,"C",9,35,{"$f":"#REF!","v":{"$error":"#REF!"}},1]
[null,null,null,null,null,null,null,null,null,null,null,null,null,null,null,null,null,null,null,null,null,null,null,null,null,null,null,null,null,null,null,null,null,null,null,null,null,null,null,null,null,null,null,null,null,null,null,null,null,null,null,null,null,null,null,null,null,null,null,null,null,null,null,null,null,null,null,null,null,null,null,null,null,null,null,null,null,null,null,null,null,436,"C",9,36,{"$f":"#REF!","v":{"$error":"#REF!"}},1]
[null,null,null,null,null,null,null,null,null,null,null,null,null,null,null,null,null,null,null,null,null,null,null,null,null,null,null,null,null,null,null,null,null,null,null,null,null,null,null,null,null,null,null,null,null,null,null,null,null,null,null,null,null,null,null,null,null,null,null,null,null,null,null,null,null,null,null,null,null,null,null,null,null,null,null,null,null,null,null,null,null,437,"C",9,37,{"$f":"#REF!","v":{"$error":"#REF!"}},""]
[null,null,null,null,null,null,null,null,null,null,null,null,null,null,null,null,null,null,null,null,null,null,null,null,null,null,null,null,null,null,null,null,null,null,null,null,null,null,null,null,null,null,null,null,null,null,null,null,null,null,null,null,null,null,null,null,null,null,null,null,null,null,null,null,null,null,null,null,null,null,null,null,null,null,null,null,null,null,null,null,null,438,"C",9,38,{"$f":"#REF!","v":{"$error":"#REF!"}},""]
[null,null,null,null,null,null,null,null,null,null,null,null,null,null,null,null,null,null,null,null,null,null,null,null,null,null,null,null,null,null,null,null,null,null,null,null,null,null,null,null,null,null,null,null,null,null,null,null,null,null,null,null,null,null,null,null,null,null,null,null,null,null,null,null,null,null,null,null,null,null,null,null,null,null,null,null,null,null,null,null,null,439,"C",9,39,{"$f":"#REF!","v":{"$error":"#REF!"}},""]
[null,null,null,null,null,null,null,null,null,null,null,null,null,null,null,null,null,null,null,null,null,null,null,null,null,null,null,null,null,null,null,null,null,null,null,null,null,null,null,null,null,null,null,null,null,null,null,null,null,null,null,null,null,null,null,null,null,null,null,null,null,null,null,null,null,null,null,null,null,null,null,null,null,null,null,null,null,null,null,null,null,440,"C",9,40,{"$f":"#REF!","v":{"$error":"#REF!"}},""]
[null,null,null,null,null,null,null,null,null,null,null,null,null,null,null,null,null,null,null,null,null,null,null,null,null,null,null,null,null,null,null,null,null,null,null,null,null,null,null,null,null,null,null,null,null,null,null,null,null,null,null,null,null,null,null,null,null,null,null,null,null,null,null,null,null,null,null,null,null,null,null,null,null,null,null,null,null,null,null,null,null,441,"C",9,41,{"$f":"#REF!","v":{"$error":"#REF!"}},""]
[null,null,null,null,null,null,null,null,null,null,null,null,null,null,null,null,null,null,null,null,null,null,null,null,null,null,null,null,null,null,null,null,null,null,null,null,null,null,null,null,null,null,null,null,null,null,null,null,null,null,null,null,null,null,null,null,null,null,null,null,null,null,null,null,null,null,null,null,null,null,null,null,null,null,null,null,null,null,null,null,null,442,"C",9,42,{"$f":"#REF!","v":{"$error":"#REF!"}},""]
[null,null,null,null,null,null,null,null,null,null,null,null,null,null,null,null,null,null,null,null,null,null,null,null,null,null,null,null,null,null,null,null,null,null,null,null,null,null,null,null,null,null,null,null,null,null,null,null,null,null,null,null,null,null,null,null,null,null,null,null,null,null,null,null,null,null,null,null,null,null,null,null,null,null,null,null,null,null,null,null,null,443,"C",9,43,{"$f":"#REF!","v":{"$error":"#REF!"}},""]
[null,null,null,null,null,null,null,null,null,null,null,null,null,null,null,null,null,null,null,null,null,null,null,null,null,null,null,null,null,null,null,null,null,null,null,null,null,null,null,null,null,null,null,null,null,null,null,null,null,null,null,null,null,null,null,null,null,null,null,null,null,null,null,null,null,null,null,null,null,null,null,null,null,null,null,null,null,null,null,null,null,444,"C",9,44,{"$f":"#REF!","v":{"$error":"#REF!"}},""]
[null,null,null,null,null,null,null,null,null,null,null,null,null,null,null,null,null,null,null,null,null,null,null,null,null,null,null,null,null,null,null,null,null,null,null,null,null,null,null,null,null,null,null,null,null,null,null,null,null,null,null,null,null,null,null,null,null,null,null,null,null,null,null,null,null,null,null,null,null,null,null,null,null,null,null,null,null,null,null,null,null,445,"C",9,45,{"$f":"#REF!","v":{"$error":"#REF!"}},""]
[null,null,null,null,null,null,null,null,null,null,null,null,null,null,null,null,null,null,null,null,null,null,null,null,null,null,null,null,null,null,null,null,null,null,null,null,null,null,null,null,null,null,null,null,null,null,null,null,null,null,null,null,null,null,null,null,null,null,null,null,null,null,null,null,null,null,null,null,null,null,null,null,null,null,null,null,null,null,null,null,null,446,"C",9,46,{"$f":"#REF!","v":{"$error":"#REF!"}},""]
[null,null,null,null,null,null,null,null,null,null,null,null,null,null,null,null,null,null,null,null,null,null,null,null,null,null,null,null,null,null,null,null,null,null,null,null,null,null,null,null,null,null,null,null,null,null,null,null,null,null,null,null,null,null,null,null,null,null,null,null,null,null,null,null,null,null,null,null,null,null,null,null,null,null,null,null,null,null,null,null,null,447,"C",9,47,{"$f":"#REF!","v":{"$error":"#REF!"}},""]
[null,null,null,null,null,null,null,null,null,null,null,null,null,null,null,null,null,null,null,null,null,null,null,null,null,null,null,null,null,null,null,null,null,null,null,null,null,null,null,null,null,null,null,null,null,null,null,null,null,null,null,null,null,null,null,null,null,null,null,null,null,null,null,null,null,null,null,null,null,null,null,null,null,null,null,null,null,null,null,null,null,448,"C",9,48,{"$f":"#REF!","v":{"$error":"#REF!"}},""]
[null,null,null,null,null,null,null,null,null,null,null,null,null,null,null,null,null,null,null,null,null,null,null,null,null,null,null,null,null,null,null,null,null,null,null,null,null,null,null,null,null,null,null,null,null,null,null,null,null,null,null,null,null,null,null,null,null,null,null,null,null,null,null,null,null,null,null,null,null,null,null,null,null,null,null,null,null,null,null,null,null,449,"C",9,49,{"$f":"#REF!","v":{"$error":"#REF!"}},""]
[null,null,null,null,null,null,null,null,null,null,null,null,null,null,null,null,null,null,null,null,null,null,null,null,null,null,null,null,null,null,null,null,null,null,null,null,null,null,null,null,null,null,null,null,null,null,null,null,null,null,null,null,null,null,null,null,null,null,null,null,null,null,null,null,null,null,null,null,null,null,null,null,null,null,null,null,null,null,null,null,null,450,"C",9,50,{"$f":"#REF!","v":{"$error":"#REF!"}},""]

{"sheet":"Musterwerte Validierung Info","index":2,"n_rows":56,"n_cols":31,"rows_kept":56,"cut":false,"hidden":false,"merged":[[4,20,4,25],[4,26,5,26],[4,27,5,27],[4,28,5,28],[4,0,5,0],[4,1,4,6],[4,7,5,7],[4,19,5,19]]}
["Info und Kontakt",null,"roland.schnurr@sixsigmablackbelt.de"]
["Homepage:",null,"www.sixsigmablackbelt.de"]
[]
[]
["Teil","Prüfergebnisse",null,null,null,null,null,"Refe-renz",null,null,null,null,null,null,null,null,null,null,null,"Teil","Prüfergebnisse",null,null,null,null,null,"Refe-renz"," Ref. Wert","Code"]
[null,"A-1","A-2","A-3","A-4","A-5","A-6",null,null,null,null,null,null,null,null,null,null,null,null,null,"A-1","A-2","A-3","A-4","A-5","A-6"]
[1,1,1,1,1,1,1,0,null,null,null,null,null,null,null,null,null,null,null,1,1,1,1,1,1,1,0,null,{"$f":"IF(U7<>\"\",IF(SUM(U7:AA7)=COUNT(U7:AA7),\"+\",IF(SUM(U7:AA7)=0,\"-\",\"x\")),\"\")","v":"x"}]
[{"$f":"A7+1","v":2},1,1,1,1,1,1,1,null,null,null,null,null,null,null,null,null,null,null,{"$f":"T7+1","v":2},1,1,1,1,1,1,1,null,"+"]
[3,0,0,0,0,0,0,0,null,null,null,null,null,null,null,null,null,null,null,3,0,0,0,0,0,0,0,null,"-"]
[4,0,0,0,0,0,0,0,null,null,null,null,null,null,null,null,null,null,null,4,0,0,0,0,0,0,0,null,"-"]
[5,0,0,0,0,0,0,0,null,null,null,null,null,null,null,null,null,null,null,5,0,0,0,0,0,0,0,null,"-"]
[6,1,1,0,1,1,0,1,null,null,null,null,null,null,null,null,null,null,null,6,1,1,0,1,1,0,1,null,"x"]
[7,1,1,1,1,1,1,1,null,null,null,null,null,null,null,null,null,null,null,7,1,1,1,1,1,1,1,null,"+"]
[8,1,1,1,1,1,1,1,null,null,null,null,null,null,null,null,null,null,null,8,1,1,1,1,1,1,1,null,"+"]
[9,0,0,0,0,0,0,0,null,null,null,null,null,null,null,null,null,null,null,9,0,0,0,0,0,0,0,null,"-"]
[10,1,1,1,1,1,1,1,null,null,null,null,null,null,null,null,null,null,null,10,1,1,1,1,1,1,1,null,"+"]
[11,1,1,1,1,1,1,1,null,null,null,null,null,null,null,null,null,null,null,11,1,1,1,1,1,1,1,null,"+"]
[12,0,0,0,0,0,0,0,null,null,null,null,null,null,null,null,null,null,null,12,0,0,0,0,0,0,0,null,"-"]
[13,1,1,1,1,1,1,1,null,null,null,null,null,null,null,null,null,null,null,13,1,1,1,1,1,1,1,null,"+"]
[14,1,1,0,1,1,1,1,null,null,null,null,null,null,null,null,null,null,null,14,1,1,0,1,1,1,1,null,"x"]
[15,1,1,1,1,1,1,1,null,null,null,null,null,null,null,null,null,null,null,15,1,1,1,1,1,1,1,null,"+"]
[16,1,1,1,1,1,1,1,null,null,null,null,null,null,null,null,null,null,null,16,1,1,1,1,1,1,1,null,"+"]
[17,1,1,1,1,1,1,1,null,null,null,null,null,null,null,null,null,null,null,17,1,1,1,1,1,1,1,null,"+"]
[18,1,1,1,1,1,1,1,null,null,null,null,null,null,null,null,null,null,null,18,1,1,1,1,1,1,1,null,"+"]
[19,1,1,1,1,1,1,1,null,null,null,null,null,null,null,null,null,null,null,19,1,1,1,1,1,1,1,null,"+"]
[20,1,1,1,1,1,1,1,null,null,null,null,null,null,null,null,null,null,null,20,1,1,1,1,1,1,1,null,"+"]
[21,1,1,0,1,0,1,1,null,"Minitab  2023",null,null,null,null,null,null,null,null,null,21,1,1,0,1,0,1,1,null,"x",null,"Minitab  2023"]
[22,0,0,1,0,1,0,0,null,null,null,null,null,null,null,null,null,null,null,22,0,0,1,0,1,0,0,null,"x"]
[23,1,1,1,1,1,1,1,null,null,null,null,null,null,null,null,null,null,null,23,1,1,1,1,1,1,1,null,"+"]
[24,1,1,1,1,1,1,1,null,null,null,null,null,null,null,null,null,null,null,24,1,1,1,1,1,1,1,null,"+"]
[25,0,0,0,0,0,0,0,null,null,null,null,null,null,null,null,null,null,null,25,0,0,0,0,0,0,0,null,"-"]
[26,0,1,0,0,0,0,0,null,null,null,null,null,null,null,null,null,null,null,26,0,1,0,0,0,0,0,null,"x"]
[27,1,1,1,1,1,1,1,null,null,null,null,null,null,null,null,null,null,null,27,1,1,1,1,1,1,1,null,"+"]
[28,1,1,1,1,1,1,1,null,null,null,null,null,null,null,null,null,null,null,28,1,1,1,1,1,1,1,null,"+"]
[29,1,1,1,1,1,1,1,null,null,null,null,null,null,null,null,null,null,null,29,1,1,1,1,1,1,1,null,"+"]
[30,0,0,0,0,0,1,0,null,null,null,null,null,null,null,null,null,null,null,30,0,0,0,0,0,1,0,null,"x"]
[31,1,1,1,1,1,1,1,null,null,null,null,null,null,null,null,null,null,null,31,1,1,1,1,1,1,1,null,"+"]
[32,1,1,1,1,1,1,1,null,null,null,null,null,null,null,null,null,null,null,32,1,1,1,1,1,1,1,null,"+"]
[33,1,1,1,1,1,1,1,null,null,null,null,null,null,null,null,null,null,null,33,1,1,1,1,1,1,1,null,"+"]
[34,0,0,1,0,0,1,0,null,null,null,null,null,null,null,null,null,null,null,34,0,0,1,0,0,1,0,null,"x"]
[35,1,1,1,1,1,1,1,null,null,null,null,null,null,null,null,null,null,null,35,1,1,1,1,1,1,1,null,"+"]
[36,1,1,0,1,1,1,1,null,null,null,null,null,null,null,null,null,null,null,36,1,1,0,1,1,1,1,null,"x"]
[37,0,0,0,0,0,0,0]
[38,1,1,1,1,1,1,1]
[39,0,0,0,0,0,0,0]
[40,1,1,1,1,1,1,1]
[{"$f":"A46+1","v":41},1,1,1,1,1,1,1]
[{"$f":"A47+1","v":42},0,0,0,0,0,0,0]
[43,1,0,1,1,1,1,1]
[44,1,1,1,1,1,1,1]
[45,0,0,0,0,0,0,0]
[46,1,1,1,1,1,1,1]
[47,1,1,1,1,1,1,1]
[48,0,0,0,0,0,0,0]
[49,1,1,1,1,1,1,1]
[50,0,0,0,0,0,0,0]